{"text_format":"1","workbook":"xlsx","n_sheets":2,"sheets":["Продажи","Товары"],"not_rendered":{"charts":0,"images":0,"macros":1,"external_links":0,"defined_names":4,"comments":0,"pivot_tables":0},"unopened":[],"bounds":{"document_bytes":16777216,"sheet_cells":100000,"rows_first":2000,"rows_last":500,"rows_between":2000,"halvings":0,"cell_chars":16384,"cell_head_chars":4096},"cells_cut":0,"cells_raw":0,"read":"whole","date_system":"1900"}

{"sheet":"Продажи","index":0,"n_rows":5815,"n_cols":52,"rows_kept":2250,"cut":true,"hidden":false,"merged":[[2,3,2,25]],"bounds":{"rows_first":1000,"rows_last":250,"rows_between":1000,"halvings":1}}
[]
[]
[null,null,null,"Код товара"]
[null,null,"№ \nпокупки",1,2,3,4,5,6,7,8,9,10,11,12,13,14,15,16,17,18,19,20,21,22,23]
[null,null,1,null,1,null,null,null,1,null,1,null,1,1,null,null,null,null,null,null,null,null,null,null,1,1,null,null,null,1,2,3,4,5,6,7,8,9,10,11,12,13,14,15,16,17,18,19,20,21,22,23]
[null,null,2,null,1,null,null,1,1,1,1,null,1,null,1,null,null,1,1,null,1,1,null,1,null,null,null,null,1,{"$f":"COUNTIFS($D5:$D$5814,$AD$5,D$5:D$5814,$AD$5)","v":2043},{"$f":"COUNTIFS($D5:$D$5814,$AD5,E$5:E$5814,$AD$5)","v":1262},{"$f":"COUNTIFS($D5:$D$5814,$AD5,F$5:F$5814,$AD$5)","v":1252},{"$f":"COUNTIFS($D5:$D$5814,$AD5,G$5:G$5814,$AD$5)","v":1169},{"$f":"COUNTIFS($D5:$D$5814,$AD5,H$5:H$5814,$AD$5)","v":1075},{"$f":"COUNTIFS($D5:$D$5814,$AD5,I$5:I$5814,$AD$5)","v":1011},{"$f":"COUNTIFS($D5:$D$5814,$AD5,J$5:J$5814,$AD$5)","v":1154},{"$f":"COUNTIFS($D5:$D$5814,$AD5,K$5:K$5814,$AD$5)","v":600},{"$f":"COUNTIFS($D5:$D$5814,$AD5,L$5:L$5814,$AD$5)","v":1238},{"$f":"COUNTIFS($D5:$D$5814,$AD5,M$5:M$5814,$AD$5)","v":470},{"$f":"COUNTIFS($D5:$D$5814,$AD5,N$5:N$5814,$AD$5)","v":478},{"$f":"COUNTIFS($D5:$D$5814,$AD5,O$5:O$5814,$AD$5)","v":411},{"$f":"COUNTIFS($D5:$D$5814,$AD5,P$5:P$5814,$AD$5)","v":322},{"$f":"COUNTIFS($D5:$D$5814,$AD5,Q$5:Q$5814,$AD$5)","v":307},{"$f":"COUNTIFS($D5:$D$5814,$AD5,R$5:R$5814,$AD$5)","v":475},{"$f":"COUNTIFS($D5:$D$5814,$AD5,S$5:S$5814,$AD$5)","v":586},{"$f":"COUNTIFS($D5:$D$5814,$AD5,T$5:T$5814,$AD$5)","v":201},{"$f":"COUNTIFS($D5:$D$5814,$AD5,U$5:U$5814,$AD$5)","v":227},{"$f":"COUNTIFS($D5:$D$5814,$AD5,V$5:V$5814,$AD$5)","v":296},{"$f":"COUNTIFS($D5:$D$5814,$AD5,W$5:W$5814,$AD$5)","v":605},{"$f":"COUNTIFS($D5:$D$5814,$AD5,X$5:X$5814,$AD$5)","v":432},{"$f":"COUNTIFS($D5:$D$5814,$AD5,Y$5:Y$5814,$AD$5)","v":255},{"$f":"COUNTIFS($D5:$D$5814,$AD5,Z$5:Z$5814,$AD$5)","v":237}]
[null,null,3,null,1,1,null,null,1,null,1,null,null,null,null,null,null,1,1,null,1,1,null,1,null,1,null,null,2,{"$f":"COUNTIFS($E$5:$E$5814,$AD5,D$5:D$5814,$AD$5)","v":1262},2019,1242,1150,1036,960,1145,592,1197,465,504,420,311,255,479,606,204,223,293,573,420,239,227]
[null,null,4,1,null,1,1,1,1,null,1,1,null,1,null,null,null,null,null,null,null,null,null,null,null,null,null,null,3,{"$f":"COUNTIFS($F$5:$F$5814,$AD$5,D$5:D$5814,$AD$5)","v":1252},1242,2016,1117,1015,964,1137,593,1218,490,507,439,310,288,483,604,206,236,279,598,450,270,255]
[null,null,5,null,null,null,null,null,null,null,null,null,null,null,null,null,null,1,null,null,1,1,null,null,null,null,null,null,4,{"$f":"COUNTIFS($G$5:$G$5814,$AD$5,D$5:D$5814,$AD$5)","v":1169},1150,1117,1929,972,925,1081,568,1164,452,500,410,294,273,478,548,199,228,287,580,393,252,262]
[null,null,6,null,null,1,null,null,1,null,null,null,null,null,null,null,null,null,null,null,1,null,null,1,1,null,null,null,5,{"$f":"COUNTIFS($H$5:$H$5814,$AD$5,D$5:D$5814,$AD$5)","v":1075},1036,1015,972,1835,868,1014,533,1070,433,438,375,268,258,456,558,210,218,281,530,382,247,214]
[null,null,7,1,1,1,1,1,null,null,null,1,null,1,null,null,null,null,null,null,null,null,null,1,null,null,null,null,6,{"$f":"COUNTIFS($I$5:$I$5814,$AD$5,D$5:D$5814,$AD$5)","v":1011},960,964,925,868,1784,954,574,1024,410,441,386,265,269,402,519,198,221,270,538,388,267,242]
[null,null,8,null,null,null,null,null,null,1,1,null,null,1,null,null,null,null,null,null,null,null,null,null,null,1,null,null,7,{"$f":"COUNTIFS($J$5:$J$5814,$AD$5,D$5:D$5814,$AD$5)","v":1154},1145,1137,1081,1014,954,1971,589,1154,458,494,397,288,272,461,584,208,237,298,616,392,272,251]
[null,null,9,1,1,null,null,null,null,null,1,1,null,null,1,null,null,null,null,null,null,null,1,null,1,1,null,null,8,{"$f":"COUNTIFS($K$5:$K$5814,$AD$5,D$5:D$5814,$AD$5)","v":600},592,593,568,533,574,589,2281,845,894,909,850,723,695,312,394,197,216,204,948,561,1072,869]
[null,null,10,null,null,null,null,null,1,null,null,null,null,1,1,null,null,null,null,1,1,null,null,1,null,1,null,null,9,{"$f":"COUNTIFS($L$5:$L$5814,$AD$5,D$5:D$5814,$AD$5)","v":1238},1197,1218,1164,1070,1024,1154,845,2287,579,647,580,493,466,442,594,233,253,308,742,483,421,337]
[null,null,11,1,1,1,1,1,null,null,null,null,null,null,1,1,null,null,1,null,null,null,null,null,null,null,null,null,10,{"$f":"COUNTIFS($M$5:$M$5814,$AD$5,D$5:D$5814,$AD$5)","v":470},465,490,452,433,410,458,894,579,1592,809,613,458,456,200,272,128,146,154,643,410,849,755]
[null,null,12,1,null,1,1,null,null,null,1,null,1,1,null,null,null,null,null,null,null,null,null,null,1,null,null,null,11,{"$f":"COUNTIFS($N$5:$N$5814,$AD$5,D$5:D$5814,$AD$5)","v":478},504,507,500,438,441,494,909,647,809,1619,643,466,450,195,283,119,116,134,630,359,826,700]
[null,null,13,null,null,1,null,null,null,null,1,null,1,null,1,1,1,null,null,null,null,null,1,1,null,null,null,null,12,{"$f":"COUNTIFS($O$5:$O$5814,$AD$5,D$5:D$5814,$AD$5)","v":411},420,439,410,375,386,397,850,580,613,643,1493,461,464,232,296,156,146,140,701,454,712,594]
[null,null,14,1,1,1,null,1,null,null,null,1,null,null,1,1,null,null,null,null,null,null,null,null,null,null,null,null,13,{"$f":"COUNTIFS($P$5:$P$5814,$AD$5,D$5:D$5814,$AD$5)","v":322},311,310,294,268,265,288,723,493,458,466,461,1177,422,153,224,113,123,119,618,381,535,426]
[null,null,15,null,1,null,1,1,null,null,1,1,null,null,null,null,null,null,1,1,null,null,null,null,null,null,null,null,14,{"$f":"COUNTIFS($Q$5:$Q$5814,$AD$5,D$5:D$5814,$AD$5)","v":307},255,288,273,258,269,272,695,466,456,450,464,422,1153,152,216,103,117,111,596,361,540,433]
[null,null,16,null,null,null,null,null,null,null,1,null,1,null,1,1,null,1,null,null,null,1,1,1,1,null,null,null,15,{"$f":"COUNTIFS($R$5:$R$5814,$AD$5,D$5:D$5814,$AD$5)","v":475},479,483,478,456,402,461,312,442,200,195,232,153,152,1477,716,507,557,635,390,479,187,185]
[null,null,17,null,1,1,null,null,1,null,1,1,null,1,null,null,null,null,null,null,null,null,null,null,1,1,null,null,16,{"$f":"COUNTIFS($S$5:$S$5814,$AD$5,D$5:D$5814,$AD$5)","v":586},606,604,548,558,519,584,394,594,272,283,296,224,216,716,1683,538,578,647,458,535,211,214]
[null,null,18,null,1,null,null,null,null,null,1,null,null,1,null,null,null,null,null,null,null,1,null,null,1,null,null,null,17,{"$f":"COUNTIFS($T$5:$T$5814,$AD$5,D$5:D$5814,$AD$5)","v":201},204,206,199,210,198,208,197,233,128,119,156,113,103,507,538,1071,510,584,265,439,157,154]
[null,null,19,1,1,null,null,1,null,1,null,null,null,1,null,null,null,null,null,null,null,1,null,null,null,null,null,null,18,{"$f":"COUNTIFS($U$5:$U$5814,$AD$5,D$5:D$5814,$AD$5)","v":227},223,236,228,218,221,237,216,253,146,116,146,123,117,557,578,510,1145,605,294,442,164,170]
[null,null,20,1,1,1,1,null,1,null,null,null,1,null,null,null,1,1,null,null,null,null,null,1,null,null,null,null,19,{"$f":"COUNTIFS($V$5:$V$5814,$AD$5,D$5:D$5814,$AD$5)","v":296},293,279,287,281,270,298,204,308,154,134,140,119,111,635,647,584,605,1266,307,476,151,161]
[null,null,21,null,null,null,null,null,null,null,1,null,1,1,1,null,null,null,null,null,null,null,null,null,1,1,null,null,20,{"$f":"COUNTIFS($W$5:$W$5814,$AD$5,D$5:D$5814,$AD$5)","v":605},573,598,580,530,538,616,948,742,643,630,701,618,596,390,458,265,294,307,2065,642,835,687]
[null,null,22,null,null,1,null,null,null,null,null,null,null,null,null,null,null,1,1,1,null,1,null,null,null,null,null,null,21,{"$f":"COUNTIFS($X$5:$X$5814,$AD$5,D$5:D$5814,$AD$5)","v":432},420,450,393,382,388,392,561,483,410,359,454,381,361,479,535,439,442,476,642,1630,526,435]
[null,null,23,null,null,null,1,null,1,null,1,null,1,1,null,null,null,null,null,null,null,null,null,1,1,1,null,null,22,{"$f":"COUNTIFS($Y$5:$Y$5814,$AD$5,D$5:D$5814,$AD$5)","v":255},239,270,252,247,267,272,1072,421,849,826,712,535,540,187,211,157,164,151,835,526,1656,906]
[null,null,24,null,null,1,null,1,null,null,1,1,null,1,1,null,null,null,null,null,null,null,null,1,null,1,null,null,23,{"$f":"COUNTIFS($Z$5:$Z$5814,$AD$5,D$5:D$5814,$AD$5)","v":237},227,255,262,214,242,251,869,337,755,700,594,426,433,185,214,154,170,161,687,435,906,1463]
[null,null,25,null,1,null,null,null,null,null,null,null,1,null,null,null,null,1,1,null,1,1,null,null,null,1]
[null,null,26,null,null,null,null,null,1,null,1,null,null,null,1,null,null,null,null,null,null,null,null,null,1]
[null,null,27,1,1,1,1,1,1,1,null,null,null,1,null,null,null,1,null,null,1,null,1]
[null,null,28,null,null,null,null,null,null,null,1,1,1,1,null,null,null,null,null,null,null,null,null,null,1,1]
[null,null,29,null,null,null,null,null,null,null,null,null,1,null,null,null,1,null,null,null,null,null,null,null,1,1]
[null,null,30,null,null,null,null,1,null,null,1,null,null,null,1,null,null,null,1,null,null,null,null,null,1]
[null,null,31,1,1,null,1,1,1,null,null,1,null,null,null,null,null,1]
[null,null,32,null,null,null,null,null,null,null,1,1,null,1,null,null,null,null,null,null,null,null,1,null,null,1]
[null,null,33,1,null,null,1,1,1,1,1,null,null,null,null,null,null,1,1,null,null,1,null,1]
[null,null,34,null,null,null,null,null,null,null,1,null,1,1,1,null,null,null,null,null,null,null,1,null,1,1]
[null,null,35,null,null,null,null,null,null,null,1,null,null,1,null,null,null,null,null,null,null,null,null,null,1,1]
[null,null,36,null,null,null,null,null,null,null,null,null,null,null,null,null,1,null,1,1,null,1]
[null,null,37,null,null,1,null,null,null,null,1,null,null,1,1,null,null,null,1,null,null,null,1,null,null,1]
[null,null,38,null,1,null,null,null,null,1,null,null,null,null,null,null,null,1,1,null,1,1,null,null,null,1]
[null,null,39,null,null,null,null,null,null,null,null,null,null,null,null,null,null,null,null,null,1,1,null,1]
[null,null,40,null,null,null,null,null,null,null,null,null,null,null,null,null,null,1,1,1,1,1]
[null,null,41,1,null,null,null,null,null,null,1,1,null,null,null,1,1,null,null,null,null,null,null,null,null,1]
[null,null,42,1,1,1,1,1,null,1,null,1,null,null,null,null,null,null,null,null,null,null,1]
[null,null,43,null,null,1,null,1,1,null,1,1]
[null,null,44,1,null,null,null,1,null,null,null,null,null,null,null,null,1,null,null,1,1,1,null,1]
[null,null,45,null,1,1,1,1,1,null,null,1,null,null,null,null,null,1,1,null,null,null,null,1]
[null,null,46,null,null,null,null,null,null,null,null,null,null,null,null,null,null,1,1,null,1,null,null,1]
[null,null,47,1,1,1,null,null,null,null,1,1,1,1,1,1,1,null,null,null,null,null,null,null,1]
[null,null,48,null,null,null,null,null,null,null,1,null,null,1,1,null,null,null,null,null,null,null,1,null,1,1]
[null,null,49,1,null,null,null,null,null,null,null,null,null,1,1,null,null,null,null,null,null,null,1,null,1,1]
[null,null,50,1,1,1,1,1,null,null,1,1,1,null,1,1,null,null,null,null,null,null,null,1]
[null,null,51,null,null,null,null,null,null,null,null,null,null,null,null,null,null,1,1,1,1,1]
[null,null,52,1,1,1,1,1,null,1,null,1,null,null,null,1,null,null,1,null,null,null,1]
[null,null,53,null,1,1,1,null,null,1,null,1,null,1,null,null,null,null,null,1,null,null,1]
[null,null,54,null,1,1,null,1,1,1,1,1,null,1]
[null,null,55,1,1,null,1,1,1,null,null,null,null,null,null,null,null,1,null,null,null,null,1,null,null,1]
[null,null,56,null,null,null,null,null,null,null,null,null,null,null,1,null,null,1,null,1,1,null,1,null,null,1]
[null,null,57,null,null,1,null,null,null,null,1,null,1,null,null,1,null,null,null,null,null,null,null,null,1,1]
[null,null,58,null,null,null,null,null,null,null,1,1,null,null,null,null,1,null,null,null,null,null,1,null,1]
[null,null,59,1,1,1,1,null,1,1,1,1,null,null,null,null,1,1,null,null,1]
[null,null,60,1,1,1,null,1,1,1,null,1,1,null,null,null,null,1,1,null,null,null,1]
[null,null,61,null,null,1,null,null,1,null,1,null,1,null,null,null,null,null,null,null,null,null,1,null,1]
[null,null,62,null,1,1,null,1,1,1,1,1,null,null,1,null,1]
[null,null,63,null,1,null,1,null,null,null,1,null,null,null,1,null,null,null,null,null,null,null,1,null,1]
[null,null,64,null,null,null,null,null,null,null,1,null,1,null,1,null,null,null,null,null,null,null,1,1]
[null,null,65,1,1,1,1,null,1,1,null,1,null,null,null,null,null,1,1]
[null,null,66,null,null,null,null,1,null,null,1,null,null,null,null,1,null,null,null,null,null,null,null,1,1,1]
[null,null,67,null,null,1,1,1,1,1,null,null,null,null,null,null,null,null,null,null,null,1]
[null,null,68,1,1,null,1,null,null,1,1,1,1,1,1,1,null,null,null,null,null,null,null,null,null,1]
[null,null,69,null,null,null,null,null,null,null,1,null,null,null,null,1,null,null,null,null,null,null,1,1,1]
[null,null,70,1,null,null,null,null,null,null,1,null,null,null,null,null,1]
[null,null,71,null,null,1,null,1,null,null,1,null,null,1,null,1,null,null,1,null,null,null,null,null,1]
[null,null,72,1,null,null,null,null,null,null,1,1,null,null,1,null,null,null,1,null,null,null,1,1,null,1]
[null,null,73,null,null,null,null,null,null,null,1,null,1,1,1,null,1,null,null,null,null,null,1,null,1]
[null,null,74,null,null,null,null,null,null,null,null,null,null,null,null,null,null,1,null,null,1,1,1]
[null,null,75,1,null,1,1,1,1,null,null,1,1,null,null,null,1,null,1,null,null,null,1]
[null,null,76,null,null,1,null,null,null,null,null,null,1,1,null,null,1,null,null,null,null,null,1,null,1,1]
[null,null,77,null,1,null,null,1,null,null,null,null,null,null,1,null,1,null,null,null,null,null,1,1,1]
[null,null,78,null,null,null,null,null,null,null,null,null,1,null,null,null,null,null,null,null,1,1]
[null,null,79,null,1,null,1,null,1,null,null,1,null,null,null,null,null,null,null,null,1]
[null,null,80,null,null,null,null,null,null,null,null,null,null,null,null,null,null,1,1,1,null,1]
[null,null,81,null,null,null,null,null,null,null,null,1,null,null,null,null,null,1,1,1,1,1,null,1]
[null,null,82,null,1,null,null,null,1,null,null,1,null,null,null,1,null,1,1]
[null,null,83,1,null,null,null,null,null,null,null,null,null,null,null,null,null,1,null,null,null,1,1]
[null,null,84,null,1,null,null,null,1,null,1,null,1,null,null,null,null,null,null,null,null,null,1,null,1,1]
[null,null,85,1,null,1,1,null,1,1,null,1,null,1,null,null,null,null,1]
[null,null,86,null,null,null,1,1,1,null,1,null,1,null,null,null,null,null,null,null,1,null,1,1,null,1]
[null,null,87,null,null,null,null,null,null,1,null,null,1,1,null,1,null,null,null,1,null,null,1,null,1,1]
[null,null,88,null,null,null,null,null,null,null,null,null,null,null,null,null,null,null,1,1,1,null,1,1]
[null,null,89,null,null,null,null,null,null,null,1,null,null,null,null,null,1,null,null,null,null,null,1]
[null,null,90,1,1,1,null,1,1,1]
[null,null,91,null,null,null,null,null,null,null,null,null,1,null,null,null,null,null,null,null,1,null,null,null,1,1]
[null,null,92,null,null,1,1,1,1,1]
[null,null,93,null,null,1,null,null,null,null,null,null,1,1,null,null,1,null,null,null,null,null,null,null,1,1]
[null,null,94,1,1,null,1,null,1,null,null,null,1,null,null,null,null,null,null,null,1]
[null,null,95,1,null,1,null,null,1,null,null,null,null,null,null,null,null,1,1,1,null,1,null,1]
[null,null,96,null,null,null,null,null,null,null,null,null,null,1,null,null,null,null,null,null,null,null,1,null,1,1]
[null,null,97,null,null,1,null,1,null,null,1,1,null,null,null,null,1,null,null,null,null,null,1,1,1]
[null,null,98,1,null,null,null,null,null,null,1,null,null,null,1,1,null,1,null,null,null,null,1,1]
[null,null,99,null,1,1,null,1,null,1,null,1,null,1,1,null,null,null,1]
[null,null,100,1,null,null,null,null,null,1,null,null,null,1,null,null,1,null,null,null,null,null,1,1,1,1]
[null,null,101,null,null,null,null,null,null,null,null,null,1,1,1,null,null,null,null,null,null,null,null,1,1,1]
[null,null,102,1,1,1,1,null,null,1,null,1,null,1,null,null,null,null,1]
[null,null,103,1,1,null,null,1,1,1,1,1,null,null,1,null,null,null,null,null,null,null,1]
[null,null,104,1,null,null,null,1,null,null,null,null,null,null,null,null,null,1,1,1,1,1,null,1]
[null,null,105,null,null,null,null,null,null,null,1,1,null,null,null,1,null,null,null,null,null,null,1]
[null,null,106,null,null,1,null,1,null,1,null,1,null,1]
[null,null,107,null,null,null,1,null,null,1,null,null,null,null,null,null,null,1,1,null,1,1,null,1,null,1]
[null,null,108,1,1,1,null,1,null,1,1,null,null,null,1,null,null,1,1]
[null,null,109,1,1,1,1,null,1,1,null,1,null,null,null,1]
[null,null,110,1,1,1,1,1,1,null,1,1,null,null,null,null,null,null,null,null,null,null,1]
[null,null,111,1,1,1,null,1,1,1,null,null,null,null,null,null,null,null,null,null,null,null,null,1]
[null,null,112,null,null,null,null,null,null,null,null,null,null,null,null,null,null,null,null,1,1,1,null,1,null,1]
[null,null,113,1,1,null,null,null,null,null,1,null,null,null,null,1,1,null,null,null,null,null,1,1,1]
[null,null,114,1,1,1,1,null,1,1,null,null,null,null,null,null,null,null,1,null,null,null,1,1]
[null,null,115,null,null,null,1,null,null,null,null,null,null,null,null,null,null,null,1,1,null,null,1,1,1]
[null,null,116,null,null,null,null,null,null,null,null,null,null,1,null,null,1,null,null,null,null,null,null,null,1,1]
[null,null,117,null,null,null,1,null,null,null,1,null,null,1,1,1,null,null,null,null,null,null,1,1,1]
[null,null,118,1,null,null,1,null,1,null,1,1,null,null,null,1,null,1,null,null,null,null,1,null,1]
[null,null,119,null,null,null,null,null,null,null,null,1,null,null,null,null,null,null,null,1,1,1]
[null,null,120,null,null,null,null,null,null,1,1,null,1,1,1,null,null,1,null,null,null,null,1,1]
[null,null,121,null,null,null,null,null,null,null,1,null,null,null,1,null,null,null,null,null,null,null,1,1]
[null,null,122,1,null,1,1,null,null,1,null,1,null,null,1,null,null,null,null,null,null,null,1]
[null,null,123,1,1,1,1,1,1,1,null,1,null,null,1,null,null,null,null,null,null,1]
[null,null,124,null,1,1,1,1,1,1,null,null,null,null,null,null,null,1]
[null,null,125,null,null,null,null,null,null,null,null,null,1,1,null,null,null,null,null,null,null,null,null,1,null,1]
[null,null,126,null,null,1,1,null,null,null,null,null,null,null,1,null,null,1,null,null,1]
[null,null,127,null,null,null,null,null,null,null,null,null,null,null,null,null,null,1,1,null,1,1]
[null,null,128,null,null,null,1,null,null,1,1,1,1,1,1,1,1,null,null,null,null,null,null,null,1,1]
[null,null,129,null,null,null,null,null,null,null,1,null,null,1,1,null,null,null,null,null,null,null,null,null,null,1]
[null,null,130,1,1,1,1,null,1,null,null,1,null,null,null,null,null,null,null,null,null,1]
[null,null,131,null,null,null,null,null,1,null,1,null,null,1,1,1,1,1,null,null,null,null,1,1,1,1]
[null,null,132,1,1,1,1,null,1,null,1,1]
[null,null,133,1,1,1,1,null,null,1,1,1,null,null,null,null,null,null,1]
[null,null,134,1,null,null,null,null,null,null,null,null,null,null,null,null,null,null,null,null,1,null,null,1]
[null,null,135,null,null,null,null,null,null,null,1,null,null,1,1,null,1,null,null,null,null,null,null,null,1,1]
[null,null,136,null,1,null,null,null,null,null,null,null,null,null,null,null,null,null,1,1,1,1,1,1,1]
[null,null,137,1,1,1,1,null,null,1,null,1,null,1,1,null,null,null,null,null,1,null,null,1]
[null,null,138,null,null,null,null,null,null,null,null,null,null,1,null,null,1,null,null,null,null,null,1]
[null,null,139,1,1,1,1,null,null,1,1,1,null,null,null,1,1]
[null,null,140,null,null,null,null,null,null,null,null,null,null,null,null,null,1,null,null,null,null,null,null,1,1,1]
[null,null,141,null,null,null,null,null,null,1,1,null,null,null,null,null,null,1,1,1,1,null,1]
[null,null,142,null,null,null,null,null,1,null,null,null,null,1,null,null,null,1,1,1,1,1,null,1]
[null,null,143,null,null,null,null,null,null,null,null,null,1,1,1,1,null,null,null,null,null,null,null,1,1]
[null,null,144,null,null,null,null,null,null,null,null,null,1,null,null,1,null,null,null,null,null,null,null,null,1,1]
[null,null,145,1,1,1,null,null,null,null,null,1,null,null,null,null,null,null,1,null,null,null,1]
[null,null,146,null,1,null,null,null,null,null,null,1,null,1,null,null,null,null,null,null,null,null,null,null,1]
[null,null,147,null,null,null,null,null,null,1,1,1,null,null,1,null,null,null,null,null,null,null,null,null,null,1]
[null,null,148,null,null,null,null,null,null,null,null,null,null,null,null,null,null,null,1,null,1,1,null,null,null,1]
[null,null,149,null,null,null,1,1,null,1,1,null,1,null,null,null,null,null,null,null,null,null,1,null,1,1]
[null,null,150,null,null,1,1,1,null,1,null,1]
[null,null,151,null,null,null,null,null,1,null,null,1,null,null,null,null,null,1,1,1,null,1]
[null,null,152,1,null,null,null,null,null,null,1,null,null,null,1,null,1,null,null,null,null,null,null,1,1]
[null,null,153,null,1,1,null,1,1,1,null,null,1,null,null,null,null,null,1]
[null,null,154,null,null,null,null,null,null,null,null,null,null,null,null,null,null,null,1,1,1,1,null,1]
[null,null,155,null,null,null,null,null,null,null,null,null,null,null,null,null,null,1,1,1,1,1]
[null,null,156,1,null,1,1,1,1,1,null,1]
[null,null,157,null,null,null,null,null,null,null,null,null,null,null,null,null,null,1,1,1,1,null,null,1]
[null,null,158,null,null,null,1,null,1,null,null,null,null,null,null,null,null,null,null,null,null,null,1]
[null,null,159,null,null,null,null,1,null,1,null,null,null,null,null,null,null,1,1,null,null,1]
[null,null,160,1,null,1,1,null,1,null,1,1,null,null,null,1,1,null,null,null,1,1,1]
[null,null,161,null,null,1,1,null,null,null,null,null,null,null,null,null,null,1]
[null,null,162,1,null,1,null,null,null,1,null,null,null,null,null,null,null,null,1]
[null,null,163,1,null,1,null,null,null,null,null,null,null,null,null,null,null,1,null,1,1,1,null,1]
[null,null,164,null,null,null,1,null,null,null,null,null,null,null,null,null,null,null,1,null,null,1,1]
[null,null,165,1,1,null,1,null,1,null,1,1,null,null,null,null,null,null,null,null,1,null,1,1]
[null,null,166,null,null,null,null,null,null,null,null,null,1,1,1,null,1,null,null,null,null,null,1,1,1,1]
[null,null,167,null,null,null,null,null,null,null,null,null,1,1,null,null,null,null,null,null,null,null,1,null,1]
[null,null,168,null,null,null,1,1,1]
[null,null,169,null,null,null,null,null,null,null,null,null,null,null,null,null,null,1,1,1,1,1]
[null,null,170,1,1,null,1,1,1,1,null,1,null,1,null,null,1,null,null,null,null,null,1,null,null,1]
[null,null,171,null,null,1,null,null,1,null,1,1,1,1,1,1,1,null,1,null,null,null,1,null,null,1]
[null,null,172,1,1,1,1,1,1,1,null,1,null,null,null,null,1,null,null,null,1]
[null,null,173,null,null,null,null,null,null,null,null,1,null,null,null,null,null,null,1,null,null,1,1,1,1]
[null,null,174,null,1,1,1,1,null,1,null,1,null,null,null,null,null,1]
[null,null,175,null,null,1,null,null,null,null,null,null,null,null,null,null,null,1,null,1,1,1]
[null,null,176,null,null,1,1,1,null,1,1,1,null,null,1,null,1,null,null,null,null,null,1,null,1]
[null,null,177,null,null,null,1,null,null,1,null,null,1,null,null,null,null,1,null,null,1,1,null,1]
[null,null,178,1,1,1,1,1,null,1,null,null,1,1,null,1,null,1,1,null,null,null,null,1]
[null,null,179,null,null,null,1,null,null,1,null,null,1,null,null,null,null,null,1,1]
[null,null,180,null,null,null,null,null,null,null,1,null,null,null,null,null,null,null,1,null,1]
[null,null,181,null,null,1,1,1,1,1,null,1,null,1,null,null,1,null,null,null,1]
[null,null,182,1,null,null,null,null,null,null,null,null,null,null,1,1,null,null,null,null,null,null,null,null,1,1]
[null,null,183,null,1,null,null,null,null,null,1,1,1,1,1,1,1,null,null,null,null,null,null,null,1,1]
[null,null,184,1,1,1,null,null,null,1,null,1,null,1,null,null,null,1]
[null,null,185,null,null,null,null,null,null,null,null,null,null,null,null,null,null,null,1,1,1,null,null,1]
[null,null,186,1,1,1,1,1,null,1,null,null,1,null,null,null,null,null,null,null,null,null,1]
[null,null,187,null,null,null,null,null,null,null,null,null,null,null,null,null,null,1,1,null,1,1,null,1]
[null,null,188,null,null,null,null,null,null,null,null,null,null,null,null,null,null,1,1,1,1,1]
[null,null,189,null,null,null,null,null,null,null,null,null,null,null,null,null,null,null,null,1,null,1]
[null,null,190,null,1,1,1,1,1,null,1,null,null,null,null,null,null,null,null,null,null,1]
[null,null,191,1,null,1,1,null,1,1,1,null,null,null,null,null,1]
[null,null,192,1,1,null,1,1,null,null,1,1,null,1]
[null,null,193,1,null,1,1,1,null,1,null,null,1,null,null,null,1,1]
[null,null,194,null,null,null,1,1,1,null,1,1,1,1,1,1,1,null,null,null,null,null,1,null,1]
[null,null,195,1,1,1,null,1,1,1,null,1,null,null,null,null,null,null,null,null,null,null,1]
[null,null,196,null,null,1,null,null,null,null,null,null,null,null,null,null,null,null,1,1,1,1]
[null,null,197,1,null,null,null,null,null,null,null,null,null,null,null,1,null,null,null,null,1,null,1,1,null,1]
[null,null,198,null,null,null,null,null,null,null,null,null,null,null,null,null,null,1,null,null,1,1,null,1]
[null,null,199,null,null,null,null,1,1,null,1,null,1,null,null,null,null,null,null,null,null,null,null,null,1]
[null,null,200,null,1,null,null,null,null,null,1,null,null,null,null,null,1,null,null,null,null,null,null,1]
[null,null,201,1,null,1,1,1,1,1,null,1,1,null,1,null,null,null,1,null,1,1]
[null,null,202,null,null,null,1,1,null,1,1,1]
[null,null,203,null,null,null,1,null,1,1,1,1,1,1,1,1,1,null,null,1,null,null,1,null,1,1]
[null,null,204,null,null,null,null,null,null,null,null,null,null,null,null,null,null,null,1,1,1,1,null,1]
[null,null,205,null,null,1,null,null,null,null,1,null,1,null,null,null,null,null,null,null,null,null,null,null,1,1]
[null,null,206,null,1,1,null,null,null,null,1,null,null,1,null,null,null,null,1,null,null,null,null,null,1]
[null,null,207,1,1,1,1,1,1,1,1,1]
[null,null,208,null,null,1,null,null,null,null,1,null,1,1,1,1,1,null,null,1,null,null,1,1,1,1]
[null,null,209,null,1,null,null,null,null,null,1,null,1,null,1,null,null,null,null,null,null,null,1]
[null,null,210,1,null,1,null,null,1,1,1,1,1,null,null,null,null,1,null,null,null,1,null,null,1]
[null,null,211,null,null,null,null,null,null,null,null,1,null,null,null,null,1,null,null,null,null,null,1,null,1]
[null,null,212,null,1,null,null,null,null,null,null,null,null,null,null,null,null,null,1,null,null,null,1,1,1]
[null,null,213,1,1,1,null,null,1,null,null,null,null,null,null,null,null,null,null,null,null,null,1]
[null,null,214,null,null,null,null,null,null,null,1,null,null,null,null,null,1]
[null,null,215,1,1,1,null,1,1,null,null,1,1,null,null,null,1,null,1,null,null,null,null,1]
[null,null,216,1,1,1,null,null,1,null,1,1,null,1,null,null,null,null,1,null,null,null,null,null,1,1]
[null,null,217,null,null,null,null,null,null,null,1,1,null,null,null,1,null,null,null,null,null,null,1,null,1,1]
[null,null,218,1,1,1,1,null,1,1,null,1,1,null,null,1,null,null,null,null,1]
[null,null,219,null,null,null,null,null,null,null,null,null,null,null,null,null,null,1,null,1,1,1]
[null,null,220,1,null,null,1,1,1,1,null,null,1,null,null,null,null,null,null,null,null,null,null,null,1]
[null,null,221,null,null,1,null,null,null,null,1,null,1,1,1,null,null,null,null,null,null,null,null,null,1]
[null,null,222,null,null,null,null,null,null,null,null,null,1,1,null,null,1,null,null,null,null,null,null,null,1,1]
[null,null,223,1,1,1,1,null,null,1,1,1,null,null,null,null,null,null,null,null,null,null,null,1]
[null,null,224,null,1,1,1,null,1,1,null,1,null,null,null,null,null,null,null,null,null,null,1]
[null,null,225,null,null,null,null,null,null,null,null,null,null,1,null,null,1,null,null,null,null,null,null,null,1,1]
[null,null,226,null,null,null,1,1,null,null,null,1,null,1,1,1,null,null,null,null,null,null,1,null,1,1]
[null,null,227,1,1,1,1,null,null,null,1,1,1,null,null,null,null,1,1,null,null,null,1]
[null,null,228,null,null,null,null,null,null,null,1,1,1,null,null,1,null,null,null,null,null,null,1,1,1,1]
[null,null,229,1,1,1,1,1,null,1,1,null,null,null,null,null,null,1,null,null,null,1]
[null,null,230,null,null,1,null,1,null,null,null,null,null,null,null,null,null,null,1,1,1,1,1,1]
[null,null,231,null,null,1,null,null,null,null,1,null,1,1,null,null,null,null,null,null,null,null,null,null,1,1]
[null,null,232,null,null,null,null,null,null,null,1,null,1,1,null,1,1,null,null,null,null,null,null,1,1]
[null,null,233,null,null,1,null,1,1,null,1,null,1,null,null,null,null,null,null,null,null,null,null,null,null,1]
[null,null,234,null,null,null,null,null,null,null,1,1,1,1,1,1,1]
[null,null,235,null,null,null,null,null,null,null,null,null,null,null,null,null,null,1,null,1,1,1,1,1,1]
[null,null,236,1,null,1,null,1,1,null,null,1,null,null,null,null,null,null,1]
[null,null,237,null,null,1,1,null,1,1,1,null,null,1,1,null,null,null,null,null,null,null,1,null,null,1]
[null,null,238,1,1,1,1,null,1,null,null,1,null,null,null,1,null,null,1,null,null,null,1,1]
[null,null,239,null,null,null,null,null,null,null,null,null,1,null,null,null,null,1,1,null,1]
[null,null,240,1,1,1,null,1,null,null,null,null,null,null,null,null,null,null,null,null,null,null,1]
[null,null,241,null,1,null,null,null,null,null,null,null,null,1,null,null,null,1,null,1,null,1,null,1]
[null,null,242,1,1,1,1,null,null,1,1,null,null,null,1,null,null,null,null,null,null,null,null,1]
[null,null,243,null,null,null,null,null,null,null,null,null,1,null,1,null,null,1,null,null,null,null,1,1,1,1]
[null,null,244,1,1,1,1,null,1,null,null,null,null,null,1,null,null,1,1,null,1,null,null,1]
[null,null,245,null,1,1,null,null,null,null,null,1,null,null,null,1,null,1,1,1,1,1,null,null,1]
[null,null,246,null,null,null,null,null,null,null,1,null,null,null,null,null,null,1,1,1,1,1,null,1]
[null,null,247,1,1,1,1,1,null,1,1,1]
[null,null,248,null,null,null,1,null,1,1,1,1,null,null,1,null,null,null,1]
[null,null,249,null,null,1,null,null,null,null,1,null,null,null,null,null,null,1,null,null,null,1,null,1]
[null,null,250,1,1,1,null,1,null,1,1]
[null,null,251,1,1,1,null,1,1,1,null,1,null,1,null,null,null,null,null,null,null,null,1]
[null,null,252,null,null,null,null,1,1,null,1,null,null,null,1,null,null,null,null,null,null,null,1]
[null,null,253,null,1,1,null,null,1,null,1,1,1,1,1,1,1,null,null,null,null,null,null,null,1,1]
[null,null,254,1,null,null,null,null,null,null,null,null,null,null,null,null,null,1,1,1,1,1,null,1,null,1]
[null,null,255,null,null,1,null,null,null,null,null,null,null,null,null,null,1,null,null,null,null,null,null,null,1]
[null,null,256,1,null,null,1,null,null,null,null,null,1,null,null,1,1,1,1,null,1,1,null,null,null,1]
[null,null,257,null,null,null,1,1,null,1,null,null,1,null,null,null,null,null,null,1,null,1,null,1,1]
[null,null,258,null,null,1,null,null,1,1,1,null,null,null,null,null,null,1,1,1,null,null,null,1]
[null,null,259,null,1,1,1,1,null,1,null,1,null,null,null,null,null,null,null,1]
[null,null,260,null,null,null,null,null,null,null,1,null,null,null,null,null,null,1,1,1,1,1,null,1]
[null,null,261,1,null,1,1,1,1,1,null,null,null,null,null,1,null,null,null,null,null,null,null,1]
[null,null,262,1,1,1,1,1,1,1,null,null,null,null,1,null,null,null,null,null,null,null,1]
[null,null,263,null,null,null,null,null,null,null,1,null,null,null,1,1]
[null,null,264,null,null,null,null,null,null,null,null,null,null,null,null,null,null,null,1,1,1,1,1]
[null,null,265,null,1,null,null,null,null,null,null,null,null,null,null,1,null,null,1,1,1,1,1,1,1]
[null,null,266,1,1,1,1,null,null,1,null,null,null,null,null,null,1,null,null,null,1,null,1]
[null,null,267,null,null,1,1,null,null,null,1,null,null,null,1,1,null,null,null,null,null,null,null,null,null,1]
[null,null,268,1,1,null,1,null,1,1,null,1,null,1,null,null,null,null,null,null,null,null,1]
[null,null,269,1,1,null,1,1,1,null,null,1,null,null,null,1,1]
[null,null,270,null,1,null,null,null,null,1,1,null,null,null,null,null,null,1,1,null,1]
[null,null,271,null,null,null,null,null,null,null,null,1,null,null,null,null,null,1,null,null,1]
[null,null,272,null,null,1,null,null,null,null,1,1,1,1,null,null,null,null,null,null,null,null,null,1,1]
[null,null,273,1,1,null,1,1,1,1,1,1,1,null,null,null,1,null,null,null,null,null,null,1]
[null,null,274,null,null,null,null,null,null,1,1,1,null,1,1,1,1,null,null,null,null,null,1,null,1]
[null,null,275,1,null,null,null,1,null,null,1,1,1,null,null,null,null,null,null,null,null,null,null,1,1,1]
[null,null,276,null,null,null,null,null,null,null,null,null,null,null,null,null,null,1,1,null,1,1,null,1]
[null,null,277,null,null,null,null,1,null,null,1,null,null,1,null,null,1]
[null,null,278,null,null,null,null,1,1,1,1,1,1,1,1,null,null,null,null,null,null,null,1,null,1]
[null,null,279,null,null,null,null,null,null,null,null,null,null,null,null,null,null,1,null,1,null,1,null,1,null,1]
[null,null,280,1,null,null,null,null,null,null,1,1,null,null,null,null,1,null,null,null,null,null,1,1,1]
[null,null,281,null,null,null,null,null,null,null,null,null,null,null,null,null,null,null,null,1,1,null,null,1,null,1]
[null,null,282,null,null,null,1,null,null,null,null,1,1,null,1,1,null,null,null,null,null,null,1,1,1]
[null,null,283,null,1,1,1,1,null,1,null,1,null,null,null,null,null,null,null,null,null,null,1]
[null,null,284,null,null,1,null,null,null,null,1,1,1,1,1,1,1,null,null,null,null,null,1,null,1,1]
[null,null,285,1,1,null,null,1,1,1,null,null,null,1,null,null,null,null,1]
[null,null,286,null,null,null,null,null,null,null,null,null,null,null,null,null,null,null,null,1,null,1]
[null,null,287,null,null,1,null,null,null,null,1,1,1,1,1,null,1,null,null,null,null,null,null,null,1]
[null,null,288,null,null,null,null,null,null,1,null,1,null,null,1,null,null,null,1,null,null,null,1,1]
[null,null,289,null,null,null,1,1,null,1,null,null,null,null,null,null,null,null,1,null,1,1]
[null,null,290,1,null,1,1,null,1,1,1,1,1,null,1,null,null,1,null,null,null,null,null,1]
[null,null,291,null,null,null,null,null,null,null,null,null,null,1,1,1,null,null,null,null,null,null,1,null,1]
[null,null,292,null,null,null,null,null,null,null,null,null,null,null,null,null,null,1,1,1,1,null,null,null,null,1]
[null,null,293,null,null,null,null,null,null,null,null,null,null,null,null,1,null,1,1,null,1,null,1]
[null,null,294,1,null,null,1,null,null,1,null,1]
[null,null,295,null,null,null,null,null,null,null,null,null,1,1,1,null,null,null,null,null,null,null,1,1,1]
[null,null,296,null,null,null,1,null,null,null,1,null,1,1,null,1,null,null,null,null,null,null,null,null,1,1]
[null,null,297,null,null,null,null,1,null,null,1,null,1,null,1]
[null,null,298,null,null,null,null,null,null,null,null,null,1,1,null,null,null,null,null,null,1,null,1,null,1,1]
[null,null,299,null,null,null,null,null,null,null,null,null,null,null,null,null,null,1,1,1,1,1]
[null,null,300,1,null,null,1,null,1,1,null,1,null,null,null,null,null,null,1,null,null,null,null,1]
[null,null,301,null,null,null,null,1,null,null,1,1,null,null,1,null,null,null,null,null,null,null,null,1,1]
[null,null,302,1,1,1,1,1,null,null,null,1,null,null,null,null,null,null,null,null,null,1,1]
[null,null,303,1,1,null,null,null,1,1,1,null,null,1,null,null,null,null,null,null,null,null,null,null,null,1]
[null,null,304,null,null,null,null,null,null,null,1,1,1,1,1,1,1,null,null,null,null,null,1,null,null,1]
[null,null,305,null,null,null,null,null,null,null,1,null,null,1,1,null,null,null,null,null,null,null,null,1,1]
[null,null,306,null,1,null,1,null,null,null,null,null,null,null,null,null,null,1,1,null,null,1]
[null,null,307,null,null,null,1,null,null,null,null,1,null,null,null,null,null,1,1,1,1,1,null,null,1]
[null,null,308,null,null,null,null,null,null,null,null,1,null,null,null,null,null,null,1,null,1,1]
[null,null,309,null,null,null,null,null,null,null,1,1,1,1,null,1,1,null,null,null,1,null,1,1]
[null,null,310,null,null,1,null,1,1,null,1,null,null,null,1,null,null,null,null,null,null,null,null,null,1]
[null,null,311,null,null,null,null,null,null,null,null,null,1,null,null,null,null,null,null,null,null,null,null,null,1,1]
[null,null,312,null,null,null,null,null,null,null,1,1,null,null,null,null,null,null,null,null,1,1]
[null,null,313,1,null,1,1,1,null,1,null,1,null,null,null,1,null,null,null,null,null,null,1,null,null,1]
[null,null,314,null,null,null,null,null,null,null,1,null,null,null,null,null,null,1,1,null,1,1]
[null,null,315,null,null,null,null,null,1,null,null,null,null,null,null,null,null,null,null,1,1,null,null,1,null,1]
[null,null,316,null,1,null,null,null,null,null,null,null,null,null,null,null,null,null,null,null,null,1,1]
[null,null,317,null,null,null,null,null,null,null,null,null,1,1,null,null,null,null,null,null,null,null,null,1,1,1]
[null,null,318,null,null,null,null,null,null,null,1,null,null,null,1]
[null,null,319,null,null,1,null,1,null,null,null,null,null,null,null,null,null,1,1,1]
[null,null,320,null,null,null,null,null,null,null,null,null,null,null,null,null,null,null,null,null,null,1]
[null,null,321,1,1,1,1,null,null,1,null,1,null,null,null,null,null,1,null,null,null,null,1]
[null,null,322,null,null,null,null,null,null,null,null,null,null,null,null,null,1,null,null,null,null,null,1]
[null,null,323,1,null,1,1,null,1,1,1,1,1,null,1,null,null,null,null,1]
[null,null,324,1,null,null,null,null,1,null,1,1,null,null,null,1,null,null,1,null,null,null,null,1]
[null,null,325,1,null,1,1,null,null,null,1,1]
[null,null,326,1,1,1,1,null,1,null,1,1,null,1,null,null,null,null,null,null,null,null,1]
[null,null,327,null,1,null,null,null,null,null,null,null,null,null,null,null,null,null,1,null,1,1,null,1]
[null,null,328,1,1,1,1,1,1,1,1,1,null,null,null,null,null,1]
[null,null,329,null,null,null,null,null,null,null,null,null,1,null,null,null,null,null,null,null,null,null,null,null,1,1]
[null,null,330,1,1,1,1,null,null,1,null,1,null,null,null,1]
[null,null,331,null,null,null,null,null,null,null,null,null,1,1,1,null,null,null,1,1,null,null,null,null,1,1]
[null,null,332,1,null,null,1,1,null,null,null,1,1,null,1]
[null,null,333,null,null,1,null,null,null,1,null,null,null,1,null,null,null,null,1,1,null,null,1,1]
[null,null,334,1,null,1,1,null,1,1,1,1,null,null,1,null,null,1]
[null,null,335,null,null,null,null,null,null,null,1,null,null,1,1,null,null,null,null,null,null,null,1,null,null,1]
[null,null,336,null,null,null,null,null,null,null,null,null,1,null,null,null,null,null,null,null,null,null,null,1,1,1]
[null,null,337,null,null,null,null,null,null,null,null,null,null,null,null,null,null,null,null,null,1]
[null,null,338,null,null,null,null,null,null,null,1,null,1,null,1,null,null,null,null,null,null,null,1,null,null,1]
[null,null,339,null,null,null,null,null,1,null,null,null,1,null,1,null,null,null,null,null,1,null,1,1]
[null,null,340,1,1,1,null,1,1,null,null,null,null,null,null,null,null,1,null,null,null,null,1]
[null,null,341,null,null,null,null,null,null,null,1,null,1,1,1,1,1,null,null,null,null,1,null,1,1]
[null,null,342,null,null,null,null,null,null,null,null,null,null,null,null,null,null,1,1,1,1,1,null,1,null,1]
[null,null,343,null,null,null,1,null,null,null,1,null,null,null,null,null,null,1,1,null,null,null,null,null,null,1]
[null,null,344,null,1,null,null,null,null,null,null,null,null,null,null,null,null,1,null,null,1,1,1]
[null,null,345,null,1,1,null,1,1,null,null,1,null,1,1,null,null,null,null,null,null,null,null,1]
[null,null,346,null,null,null,1,null,null,null,1,null,1,1,1,null,null,null,null,null,null,null,null,1,1,1]
[null,null,347,null,null,1,1,null,1,1,1,1,1,null,null,null,1]
[null,null,348,null,null,null,null,null,null,null,null,null,null,null,null,null,null,null,1,1,1]
[null,null,349,1,1,null,1,null,null,1,null,1,null,null,null,null,null,null,1]
[null,null,350,null,null,null,null,null,null,null,1,null,1,1,1,1,1]
[null,null,351,null,1,null,null,null,1,null,null,null,null,null,null,null,null,1,null,1,null,1,null,1]
[null,null,352,1,1,1,null,null,1,1,null,1]
[null,null,353,null,1,null,1,null,null,null,null,null,null,null,null,null,null,null,1,1,1,1,null,1,null,1]
[null,null,354,null,null,null,null,null,null,null,null,1,null,null,null,null,1,null,null,null,null,null,null,null,1]
[null,null,355,null,null,null,null,null,null,null,1,null,null,null,null,1,null,null,null,null,null,null,1,null,null,1]
[null,null,356,null,null,null,null,null,null,null,null,null,null,null,null,1,null,null,null,null,null,1,1,null,1,1]
[null,null,357,null,1,1,null,null,null,1,1,null,null,1,null,null,null,null,null,null,null,null,null,null,1]
[null,null,358,null,null,null,null,null,null,null,null,null,null,null,null,null,null,1,null,1,null,1]
[null,null,359,null,null,null,1,null,1,1,null,null,null,null,null,null,1,null,1]
[null,null,360,null,null,1,null,null,null,null,null,null,null,null,null,1,null,1,null,1,null,1,null,1,1]
[null,null,361,null,null,null,1,null,null,1,1,1,null,1,null,null,null,null,null,null,null,null,null,1,1,1]
[null,null,362,1,null,null,1,null,null,null,1,null,null,null,null,1,1,null,null,null,null,null,1,1,1,1]
[null,null,363,null,1,1,1,null,1,1,null,1,null,null,null,null,null,1,null,null,1,null,null,1]
[null,null,364,1,null,null,null,1,null,null,1,null,null,null,null,null,null,1,1,1,null,1]
[null,null,365,null,null,null,null,null,null,null,1,1,null,null,null,1,null,null,null,null,null,null,1,1]
[null,null,366,null,1,null,null,null,null,null,1,null,null,null,null,null,null,null,1,1,null,1]
[null,null,367,1,null,null,null,null,null,null,1,null,1,1,1,null,null,null,null,null,null,null,1,null,null,1]
[null,null,368,null,1,1,1,1,1,1,null,null,null,1,null,null,null,null,1,null,null,null,1]
[null,null,369,null,1,1,1,null,null,null,1,null,1,null,1,null,null,null,null,null,null,null,null,null,null,1]
[null,null,370,null,null,null,null,null,null,null,null,null,1,null,null,null,null,null,null,1,null,null,null,null,1,1]
[null,null,371,null,1,null,null,null,null,null,null,null,null,null,null,null,null,1,null,1,1]
[null,null,372,null,null,null,null,null,null,null,null,null,null,null,null,null,null,1,null,null,1,null,1,1,1]
[null,null,373,1,1,1,1,1,1,1,1,1,null,null,null,1,1,null,1,1,1]
[null,null,374,null,null,null,null,null,null,null,1,null,1,1,null,null,null,null,null,null,null,null,null,1,1,1]
[null,null,375,null,null,null,null,1,1,1,null,null,null,1,null,null,null,null,null,null,null,null,null,null,1]
[null,null,376,null,null,null,null,null,1,null,1,null,null,null,1,1,null,null,null,null,null,null,null,null,null,1]
[null,null,377,1,1,1,1,null,null,1,null,1,null,null,null,null,1,null,1,null,null,null,1]
[null,null,378,null,null,null,null,null,null,null,null,1,null,null,null,1,null,null,null,null,null,null,1]
[null,null,379,null,1,1,1,null,null,null,null,null,null,1,null,null,null,null,null,null,null,null,null,null,1]
[null,null,380,1,1,1,null,1,null,1,null,null,null,null,null,1,null,null,1,null,null,null,1]
[null,null,381,null,null,null,null,1,1,null,null,null,null,null,null,null,null,1,null,1,1,1,null,1]
[null,null,382,1,1,null,1,null,null,1,null,null,null,1,null,null,null,null,1]
[null,null,383,1,null,null,null,1,1,1,null,null,null,null,null,null,null,1,null,null,null,null,1]
[null,null,384,null,null,null,null,null,null,1,1,1,1,1,1,1,null,null,1,null,null,null,null,null,1,1]
[null,null,385,null,null,null,null,null,null,null,null,null,null,null,1,null,1,1,1,1,null,null,1,1,1]
[null,null,386,null,null,null,null,null,null,null,1,null,1,1,1,1,1,null,null,null,null,null,1,1,1]
[null,null,387,null,null,null,null,null,null,null,1,null,1,1,1,1,1,null,null,null,null,null,1,1,1,1]
[null,null,388,null,null,null,null,1,null,null,null,null,null,null,null,null,1,1,null,null,null,1]
[null,null,389,null,1,null,null,null,null,null,1,1,null,null,null,1,null,null,null,null,null,null,null,null,null,1]
[null,null,390,null,null,null,null,1,null,null,1,null,1,null,1,null,1,null,null,null,null,null,1,null,1]
[null,null,391,1,1,1,1,1,null,1,null,1,1,1]
[null,null,392,null,null,null,null,null,null,null,1,null,1,null,null,null,null,null,null,null,null,null,1,null,1,1]
[null,null,393,1,1,null,1,1,1,1,null,1,null,null,null,null,null,null,null,1,null,null,1]
[null,null,394,1,1,1,1,1,1,1,null,1,null,1,null,1,null,null,1]
[null,null,395,null,null,1,null,null,null,null,1,1,null,1,1,1,null,null,null,null,null,null,null,null,1]
[null,null,396,null,null,1,null,null,null,null,null,null,null,null,1,1,null,null,1,1,1,null,null,1]
[null,null,397,null,null,null,null,null,null,null,null,null,null,1,null,null,null,1,1,null,1,null,null,null,null,1]
[null,null,398,null,null,null,null,null,null,null,1,null,null,null,null,null,1,null,null,null,null,null,null,null,null,1]
[null,null,399,null,1,null,null,null,null,1,1,null,1,1,1,1,1,1,1,null,null,null,null,null,null,1]
[null,null,400,1,1,1,null,1,null,1,null,1,null,null,null,null,1,null,1]
[null,null,401,null,null,null,null,null,null,1,1,null,null,null,1,null,1,null,1,null,null,null,null,null,1,1]
[null,null,402,null,null,1,null,null,null,null,null,1,null,null,null,null,null,1,1,1,1,null,null,1]
[null,null,403,null,null,null,null,null,null,null,null,1,null,1,null,1,null,1,null,null,null,null,null,null,1]
[null,null,404,null,null,null,null,null,null,null,null,null,null,1,1,1,null,null,null,null,null,null,1,1,1,1]
[null,null,405,null,1,1,1,null,null,1,null,1,null,1,1]
[null,null,406,1,1,1,1,1,null,null,null,1,1,null,1]
[null,null,407,null,null,null,null,1,null,null,1,null,1,null,null,null,null,null,null,null,null,null,null,null,1,1]
[null,null,408,null,null,null,null,null,null,null,1,null,null,null,null,null,null,1,null,null,null,null,null,1,1,1]
[null,null,409,null,1,1,null,null,1,null,null,null,null,null,1,null,null,1,null,1,null,null,1,1,1]
[null,null,410,null,null,null,null,1,null,null,null,null,null,null,null,1,null,null,null,null,null,null,1,null,null,1]
[null,null,411,1,1,1,1,null,1,1,1,1,null,null,null,null,1,null,null,null,null,null,null,1]
[null,null,412,null,null,null,null,null,null,null,1,null,null,null,null,1,null,null,null,null,null,null,1,null,1]
[null,null,413,1,1,1,1,null,1,null,null,null,null,null,null,null,null,null,null,null,null,null,null,1]
[null,null,414,null,null,null,1,1,null,null,1,null,null,null,null,null,null,1,1,1,1,1]
[null,null,415,null,null,null,null,null,null,null,null,null,null,null,null,null,null,1,null,null,null,1,1]
[null,null,416,null,null,null,null,null,null,null,null,null,null,null,null,null,null,1,1,1,1,1,null,1]
[null,null,417,null,null,null,null,null,1,null,1,null,null,null,null,null,1,1,null,1,null,null,1,1]
[null,null,418,null,null,null,null,null,null,null,1,null,1,1,null,null,1,null,null,null,null,null,null,1,1,1]
[null,null,419,1,null,1,null,1,1,1,null,1,null,null,null,null,null,null,null,null,null,1]
[null,null,420,null,1,1,1,1,1,1,null,1,1,null,null,null,1,1]
[null,null,421,null,null,1,null,null,null,null,null,null,null,1,null,1,null,null,1,1,1,null,null,1]
[null,null,422,null,null,null,null,null,null,null,null,null,1,1,1,null,1,null,null,null,null,null,1,null,1]
[null,null,423,null,null,null,null,null,null,null,null,null,1,1,null,null,1,null,null,null,null,null,1,null,1,1]
[null,null,424,null,1,null,null,null,null,null,null,null,null,null,null,null,null,1,null,1,null,1]
[null,null,425,1,1,1,null,1,null,1,null,1,null,null,1,null,null,1]
[null,null,426,null,1,null,null,null,1,null,null,null,null,null,null,null,null,1,1,null,1,null,1]
[null,null,427,null,null,null,null,null,1,null,null,null,null,null,1,null,null,null,null,1,1,1,1,1,1]
[null,null,428,null,null,null,null,null,null,null,1,null,1,1,null,null,null,null,null,null,null,null,1,1]
[null,null,429,1,1,1,1,1,null,null,1,null,1,1,1,null,null,null,null,null,null,null,null,1]
[null,null,430,null,1,1,1,null,1,1,null,1,null,null,null,1,null,null,null,1,null,null,null,null,1]
[null,null,431,1,null,1,null,1,null,null,1,null,1,1,null,null,null,null,null,null,null,null,null,null,1,1]
[null,null,432,null,null,null,null,null,null,null,null,null,null,null,null,null,null,null,null,1,1,1]
[null,null,433,1,1,1,1,1,1,null,1,1,null,null,null,null,1,null,null,1]
[null,null,434,1,1,1,1,null,1,null,1,1,null,null,null,1,null,1,1,null,null,null,1]
[null,null,435,null,null,null,null,null,1,null,null,1,null,null,null,null,null,1,1,1,1,1]
[null,null,436,null,null,null,null,null,1,null,1,1,1,1,null,1,1,null,null,null,null,null,null,null,null,1]
[null,null,437,1,1,1,1,1,1,1,null,1,1,null,null,null,null,null,null,null,null,1]
[null,null,438,null,null,null,null,null,null,null,null,null,1,1,null,1,null,null,null,1,null,null,1,1,1,1]
[null,null,439,null,null,null,null,1,null,null,null,1,null,null,null,null,null,1,1,null,1,1,null,null,1]
[null,null,440,null,null,null,null,null,null,null,1,null,null,null,null,1,null,null,null,null,null,null,1,null,1]
[null,null,441,null,null,null,null,null,1,null,null,1,null,null,1,null,null,null,null,null,null,null,1,null,1]
[null,null,442,1,1,1,null,1,null,null,null,1,null,null,null,null,null,null,1,null,null,null,null,1]
[null,null,443,1,1,1,1,1,null,1,null,1,1,1,1,null,null,null,null,null,null,null,null,1]
[null,null,444,null,1,null,null,null,null,null,1,null,null,1,1,1]
[null,null,445,null,1,null,null,1,null,null,null,null,null,1,null,null,1,null,null,null,null,1,1,1,null,1]
[null,null,446,null,1,1,null,null,1,null,1,null,1,1,1,null,null,null,null,null,null,null,null,null,1,1]
[null,null,447,1,null,null,null,null,null,null,1,null,1,1,null,1,null,null,1,null,null,null,1,1,1]
[null,null,448,null,1,1,1,1,1,1,null,1,null,null,null,null,1,null,1]
[null,null,449,1,1,1,1,null,1,null,null,1]
[null,null,450,1,1,null,1,1,null,1,null,null,1]
[null,null,451,null,null,null,null,null,null,null,1,null,null,null,null,null,1,null,null,null,null,null,null,1]
[null,null,452,null,1,null,null,null,null,null,1,null,1,null,1,null,1,null,null,null,null,1,1,null,null,1]
[null,null,453,1,null,null,null,1,1,1,null,null,1,null,null,null,null,null,1,null,1,1]
[null,null,454,1,1,1,1,null,null,1,null,1,null,1,null,null,1,null,1,null,null,null,1]
[null,null,455,1,null,1,null,null,null,null,1,1,null,null,1,null,null,null,null,null,null,null,null,1]
[null,null,456,null,1,null,null,null,null,null,null,null,null,null,null,null,null,1,1,null,1,null,null,1]
[null,null,457,1,1,1,1,null,1,1,1,1,null,null,null,null,1,null,null,null,1,null,1]
[null,null,458,null,1,null,null,null,null,null,null,null,null,null,null,null,null,null,1,1,1,1]
[null,null,459,null,null,null,null,null,null,null,null,null,null,null,null,null,null,1,null,1,1,1,null,1]
[null,null,460,null,null,null,null,null,null,null,1,null,1,1,1,null,null,null,null,null,null,null,1,null,1,1]
[null,null,461,null,null,null,null,1,null,null,null,null,null,null,null,null,null,1,1,null,1,1,null,1]
[null,null,462,null,null,null,null,null,null,null,1,null,1,1,1,null,null,null,null,null,null,null,1]
[null,null,463,null,1,1,null,1,null,null,null,1,null,null,null,1,null,null,null,null,null,null,null,1]
[null,null,464,1,null,null,null,1,null,null,null,null,null,null,null,null,null,1,1,null,null,null,1]
[null,null,465,1,null,null,null,null,null,null,1,null,1,1,1,null,1,1,null,null,null,null,null,null,null,1]
[null,null,466,null,null,1,null,null,1,null,null,null,null,null,null,null,null,null,1,1,1]
[null,null,467,null,null,null,null,null,null,null,1,null,1,1,null,1,null,null,null,null,null,null,null,null,1]
[null,null,468,1,null,1,null,null,null,null,null,null,null,null,null,null,null,1,1,1,1,1]
[null,null,469,null,null,1,null,null,1,null,1,1,1,1,null,null,null,null,null,null,null,null,null,1]
[null,null,470,null,null,null,null,null,null,null,null,null,null,null,null,null,null,null,null,1,1,1,null,1]
[null,null,471,null,1,null,null,null,null,null,1,null,1,1,null,null,null,null,null,null,null,null,1,null,1,1]
[null,null,472,null,null,null,null,null,null,null,1,null,1,1,1,1,1,null,null,null,null,null,1,1,1]
[null,null,473,null,1,null,1,null,null,null,1,null,1,null,null,null,null,null,null,null,null,null,1,null,1,1]
[null,null,474,null,null,null,null,1,null,null,1,null,null,null,null,null,null,1,null,null,1,1]
[null,null,475,null,null,null,null,null,null,null,null,null,1,null,1,1,null,null,null,null,null,1,1,null,1,1]
[null,null,476,null,null,null,null,null,null,null,null,null,null,1,null,1,1,null,null,null,null,null,1,1,1]
[null,null,477,null,1,null,null,1,null,null,null,null,1,null,null,null,null,1,1,null,null,1]
[null,null,478,1,null,null,1,1,1,1,null,1,null,null,null,null,null,null,null,null,null,1,1]
[null,null,479,null,1,1,null,1,null,null,null,null,1,null,null,1,1,null,null,null,null,null,1,null,null,1]
[null,null,480,null,null,null,1,null,null,null,1,null,null,1,null,null,null,1,null,null,null,null,null,null,1,1]
[null,null,481,1,1,null,null,null,null,1,1,null,1,1,1,null,null,null,null,null,null,null,null,1,1,1]
[null,null,482,null,null,null,null,null,null,null,1,null,1,null,null,null,null,null,null,null,null,null,null,null,1,1]
[null,null,483,null,null,null,null,null,null,1,null,null,null,null,null,null,null,1,1,1,1,1]
[null,null,484,1,1,1,1,1,null,null,null,1,null,null,null,null,null,null,1,null,null,null,1]
[null,null,485,null,null,null,null,null,null,null,1,null,null,null,1,1,null,1]
[null,null,486,null,1,null,null,null,null,null,null,null,null,null,1,1,1,null,null,null,null,null,1]
[null,null,487,null,null,null,null,null,null,null,null,null,1,1,1,null,null,null,null,null,null,null,1,null,1,1]
[null,null,488,null,null,null,null,null,null,null,null,null,null,1,null,null,null,null,null,null,null,null,1,null,null,1]
[null,null,489,1,1,null,1,null,null,null,null,1,null,1,null,null,null,1,1,null,null,null,1,1]
[null,null,490,null,null,null,null,null,null,null,null,null,null,null,null,null,null,null,null,1,null,1,null,1]
[null,null,491,null,null,null,null,1,null,null,null,null,1,1,null,null,null,null,null,null,null,null,null,1,1]
[null,null,492,null,1,null,1,null,null,1,1,null,null,null,null,null,null,null,1,null,null,null,1,1,1]
[null,null,493,1,1,null,null,null,1,1,null,null,null,null,null,null,null,null,1]
[null,null,494,1,1,1,null,1,null,1,null,1,1,null,null,null,null,null,1,null,null,null,1,null,1]
[null,null,495,1,1,1,null,1,1,null,1,1,1,null,null,null,null,null,null,null,null,null,null,1]
[null,null,496,null,null,1,null,null,null,null,null,null,1,1,1,1,1,null,null,null,null,null,null,1,1,1]
[null,null,497,1,1,1,1,null,1,1,null,1,null,1,null,null,null,null,1]
[null,null,498,null,null,null,null,null,1,null,1,null,null,1,1]
[null,null,499,1,null,null,null,null,null,null,1,null,null,null,null,1,null,null,null,null,null,null,1,null,null,1]
[null,null,500,1,1,1,1,1,1,1,null,1,null,null,null,1,null,1,null,null,null,null,1]
[null,null,501,null,null,null,null,null,null,null,1,null,null,null,null,1,1,1,null,null,null,null,1,null,null,1]
[null,null,502,null,null,null,null,null,null,null,null,null,null,null,null,null,null,1,null,1,null,1,null,1]
[null,null,503,null,null,null,null,null,null,null,null,1,1,null,null,1,null,null,1,null,null,null,1,1,1]
[null,null,504,null,null,null,null,null,null,null,1,1,null,null,1,1,null,1,null,1,null,null,null,1,null,1]
[null,null,505,null,null,null,null,null,null,null,1,1,1,1,null,null,1,null,null,1,null,null,null,null,1]
[null,null,506,null,1,null,1,1,1,1,null,null,null,null,null,null,null,null,1]
[null,null,507,null,null,null,null,null,null,null,1,null,null,1,1]
[null,null,508,null,null,null,null,null,null,null,1,1,1,null,null,null,null,null,null,null,null,null,1,null,1,1]
[null,null,509,null,null,null,1,null,null,null,1,1,null,1,1,null,null,null,null,null,null,null,1,1]
[null,null,510,1,1,1,1,1,null,1,null,1,null,1]
[null,null,511,1,1,1,1,null,1,1,null,null,null,null,null,null,1,null,null,null,null,null,1,null,1]
[null,null,512,1,null,null,null,1,null,null,null,null,null,null,null,null,null,1,1,1,1,null,null,null,1]
[null,null,513,1,1,null,1,1,1,1,null,null,1,null,null,null,null,null,null,null,null,null,1]
[null,null,514,null,1,1,1,1,null,null,null,null,null,null,null,null,null,1,null,null,1,1,1]
[null,null,515,null,null,null,null,null,null,null,1,null,null,null,null,1]
[null,null,516,1,1,1,null,null,1,1,1]
[null,null,517,null,null,null,null,null,null,1,null,null,1,null,null,null,null,null,null,null,null,null,null,null,1,1]
[null,null,518,1,1,null,1,1,1,1,null,1,null,null,null,null,null,null,null,null,null,1,1]
[null,null,519,null,1,1,1,null,1,null,null,1,null,null,null,null,null,null,null,null,null,null,1,null,null,1]
[null,null,520,null,null,1,null,null,null,null,1,null,1,null,1,1,1,null,null,null,null,null,null,null,null,1]
[null,null,521,null,1,null,1,null,null,1,null,1,null,null,null,null,null,null,null,null,1]
[null,null,522,null,1,null,null,1,null,null,null,null,null,1,1,1,1,null,1,null,null,null,1,null,1]
[null,null,523,1,1,1,1,1,null,1,null,1]
[null,null,524,1,null,null,1,1,1,1,null,null,1,null,null,null,null,1]
[null,null,525,null,null,null,null,null,null,null,null,null,null,null,null,null,null,null,null,1,null,1,null,1,1]
[null,null,526,null,null,null,null,null,null,null,null,null,null,null,null,null,null,null,null,null,1,null,null,1]
[null,null,527,1,1,1,1,1,1,1,1,1,1,1,1,null,1,null,null,null,null,1,1]
[null,null,528,null,1,null,null,null,null,null,null,null,null,1,1,null,null,null,null,null,null,null,1,null,1]
[null,null,529,1,1,null,1,1,null,1]
[null,null,530,null,null,null,null,null,1,null,null,null,null,1,null,null,null,null,null,null,null,null,1,null,1,1]
[null,null,531,1,1,1,1,1,1,1,null,1,1]
[null,null,532,1,null,1,null,null,null,1,1,null,1,1,null,null,null,null,null,null,null,null,1,null,1]
[null,null,533,null,null,null,null,null,null,null,1,1,null,null,null,null,1,null,1,null,null,null,1]
[null,null,534,1,null,1,1,null,1,null,null,1,1,1,null,null,1]
[null,null,535,1,1,1,1,1,1,null,null,1,null,1,1,null,null,null,null,null,null,null,null,null,1]
[null,null,536,null,null,null,null,null,null,null,1,null,1,null,1,null,null,null,null,null,null,null,1,1,null,1]
[null,null,537,1,null,null,null,null,null,null,1,1,1,1,1,null,null,null,1,null,null,null,null,1,1,1]
[null,null,538,null,null,null,null,1,null,null,null,null,null,null,1,null,null,null,null,null,null,null,null,1]
[null,null,539,null,null,null,null,null,1,null,1,null,null,1,1,null,null,null,null,null,null,null,1]
[null,null,540,null,null,1,null,1,null,null,null,null,null,null,null,null,null,1,1,null,null,null,1,1]
[null,null,541,1,1,1,1,1,1,1,1,1]
[null,null,542,1,null,null,1,1,1,null,null,1,null,null,null,null,null,null,null,null,null,null,null,1]
[null,null,543,null,null,null,null,null,1,null,1,null,1,null,1,null,null,null,1,null,null,null,null,null,null,1]
[null,null,544,null,null,null,1,null,null,null,1,null,null,null,null,1,null,null,1,null,null,null,1]
[null,null,545,null,null,null,null,null,null,null,null,null,null,null,null,null,null,null,null,1,null,1,1,1]
[null,null,546,null,null,null,null,1,null,null,null,1,null,null,null,null,1,null,null,null,null,null,1,1]
[null,null,547,1,1,1,1,1,1,1,1,1,null,null,null,1]
[null,null,548,null,null,null,null,null,1,1,1,null,1,null,null,null,null,null,null,null,1,null,null,null,1,1]
[null,null,549,null,null,null,null,1,1,null,1,null,1,1,1,null,null,null,null,null,null,null,null,null,null,1]
[null,null,550,null,null,null,null,null,null,1,null,null,null,null,null,null,null,null,null,1]
[null,null,551,1,null,1,null,null,null,1,null,1,null,null,null,null,1,1,null,null,null,1,null,null,1]
[null,null,552,1,1,1,null,null,null,1,1,1,null,1,null,null,null,null,null,null,null,null,1]
[null,null,553,null,null,null,null,null,null,null,null,null,null,1,null,null,1,null,null,null,1,null,1,1]
[null,null,554,1,1,null,1,1,null,1,null,1]
[null,null,555,null,null,null,null,null,null,null,1,1,1,1,null,1,1,null,1,null,1,null,1,null,1]
[null,null,556,null,null,null,null,null,null,null,1,null,1,1,1,1,1,null,null,null,null,null,1,null,1,1]
[null,null,557,null,null,null,null,null,null,null,null,null,null,null,null,null,null,1,1,1,null,1,null,1]
[null,null,558,null,null,null,null,null,1,null,1,1,1,1,1,1,1,null,1,1]
[null,null,559,1,1,1,1,1,1,1,1,null,null,null,null,null,null,null,1]
[null,null,560,null,null,null,null,null,null,null,null,null,null,null,null,null,null,1,null,1,1,1,1]
[null,null,561,1,null,null,1,null,null,null,null,null,null,null,null,null,null,1,1,null,null,1,null,1]
[null,null,562,null,null,null,null,null,null,null,1,null,1,null,null,null,null,null,null,null,1,null,null,1,1,1]
[null,null,563,1,1,null,null,null,1,null,1,null,null,null,1,1,1,null,null,null,null,null,1,null,null,1]
[null,null,564,null,null,null,null,null,null,null,null,null,1,1,1,null,null,null,null,null,null,null,1,null,1,1]
[null,null,565,null,null,null,null,1,null,1,null,null,null,null,null,null,null,null,null,1,1,1,null,null,null,1]
[null,null,566,null,null,null,null,1,null,null,1,null,1,null,null,null,null,null,null,1,null,null,1,1]
[null,null,567,null,null,null,null,null,1,null,null,null,null,null,null,null,null,null,null,1,null,null,1,1,null,1]
[null,null,568,null,null,null,null,null,1,1,1,1,null,1,null,null,null,null,null,null,null,null,null,null,1]
[null,null,569,1,1,1,null,1,1,null,null,null,1,null,null,null,null,1,1,1]
[null,null,570,null,null,null,null,null,null,null,1,null,null,null,1,null,1,null,null,null,null,null,1,null,1]
[null,null,571,1,1,1,1,1,null,1,null,1,null,null,null,null,null,null,1,null,null,null,1]
[null,null,572,null,null,null,null,null,null,1,null,1,null,null,null,null,null,null,null,1,1,1]
[null,null,573,null,1,null,null,null,null,1,1,1,null,null,null,null,null,null,null,null,1,null,1,1,1]
[null,null,574,null,null,null,null,1,1,null,null,null,null,null,null,null,null,null,null,null,null,null,null,1,1]
[null,null,575,1,1,1,null,1,1,null,null,1,null,null,null,null,null,1]
[null,null,576,null,1,null,1,null,null,1,null,1,1,null,1,null,null,null,null,null,null,null,1,1]
[null,null,577,null,null,null,null,null,null,null,null,null,1,null,null,null,null,1,null,1,1,1,1,1]
[null,null,578,1,1,1,1,null,1,1,1,1,null,null,null,null,null,null,null,null,1,1]
[null,null,579,1,null,1,null,null,null,null,null,null,null,null,null,1,1,null,null,null,null,null,1,1,null,1]
[null,null,580,null,null,null,null,null,null,null,null,1,null,null,null,null,1,null,null,null,null,null,1,null,1]
[null,null,581,null,null,null,null,null,null,null,null,null,1,1,null,null,null,null,null,null,null,null,null,null,1]
[null,null,582,null,null,null,null,null,1,null,null,1,null,null,1,null,null,null,1,null,1]
[null,null,583,null,null,null,null,null,null,null,null,null,null,null,null,null,null,1,null,1,1,null,null,1]
[null,null,584,1,null,null,1,1,null,null,null,null,1,1,null,1,null,null,null,1,null,null,1,1,1]
[null,null,585,1,null,1,1,null,1,1,1,1,null,null,null,1,null,null,1,null,null,null,1]
[null,null,586,null,1,null,null,null,null,null,1,null,null,null,1,1,null,1,null,null,null,null,1,1,1,1]
[null,null,587,1,null,null,null,null,null,null,1,1,null,1,null,1,null,null,null,null,null,null,1,null,1]
[null,null,588,null,1,null,1,1,1,null,1,1,null,1,1,null,null,null,null,null,null,null,null,null,1,1]
[null,null,589,1,1,null,null,1,1,1,null,1,1,1,null,null,null,null,null,null,null,null,null,null,1]
[null,null,590,null,null,null,null,null,null,null,null,null,null,null,null,null,null,null,null,1,null,1,null,1]
[null,null,591,null,null,null,null,null,null,null,1,1,null,null,null,null,1,null,null,null,null,null,1,null,1]
[null,null,592,null,null,null,null,null,null,null,1,null,1,null,null,null,null,null,null,null,1,null,null,null,1]
[null,null,593,1,null,null,1,1,null,1,null,1,null,null,null,null,1,1,null,null,null,null,1,1]
[null,null,594,1,1,1,1,1,1,1,1,1]
[null,null,595,1,1,1,null,null,null,null,null,1,null,null,null,null,null,null,null,null,null,null,null,null,null,1]
[null,null,596,null,null,null,null,null,null,null,1,1,null,1,null,1,null,null,null,null,null,null,1,null,1,1]
[null,null,597,null,null,null,null,null,null,null,1,null,null,null,null,null,1]
[null,null,598,null,null,1,null,null,1,null,null,1,null,null,null,null,null,null,1,null,null,null,1]
[null,null,599,1,null,null,null,null,1,null,1,1,1,1]
[null,null,600,null,null,null,null,null,null,null,null,null,1,1,null,1,null,null,null,null,null,1,null,1,1,1]
[null,null,601,null,null,null,null,null,1,null,null,null,null,null,1,null,null,null,null,null,null,null,1,null,1,1]
[null,null,602,null,null,null,null,null,null,null,null,null,null,null,null,null,null,1,null,1]
[null,null,603,null,null,null,null,null,null,null,1,null,1,1,1,1,1,null,1,null,null,null,1,null,1]
[null,null,604,null,null,null,null,null,null,null,1,1,null,null,null,null,1,null,null,null,null,null,1,null,1,1]
[null,null,605,null,null,null,null,null,null,null,null,null,null,null,null,null,null,null,null,1,1]
[null,null,606,1,1,1,1,1,null,null,null,1,null,null,null,null,null,null,1,null,null,null,1,null,null,1]
[null,null,607,1,null,1,null,null,null,null,1,null,1,null,null,null,null,null,null,null,null,null,null,1,1,1]
[null,null,608,1,null,null,null,null,null,null,1,null,null,null,null,1,null,null,null,null,null,null,null,null,1,1]
[null,null,609,1,null,null,1,null,null,null,1,1,1,1,null,null,null,null,null,null,null,null,1,null,1,1]
[null,null,610,1,1,null,1,1,1,null,null,null,null,null,null,null,null,null,null,1]
[null,null,611,1,1,null,1,null,1,1,null,null,null,1,null,1,null,null,null,null,null,null,1]
[null,null,612,null,null,null,null,1,null,1,1,1,null,null,1,null,null,null,null,null,null,null,1,null,null,1]
[null,null,613,1,null,1,1,null,null,1,1,1,null,1,null,1,null,1,1,null,null,null,null,1]
[null,null,614,1,1,null,null,1,1,1,null,1,null,null,1,null,null,null,null,null,1]
[null,null,615,1,null,1,null,null,null,1,1,null,null,null,1,null,null,null,null,null,null,null,null,1,1]
[null,null,616,1,null,1,null,1,1,1,1,1,null,null,null,null,null,null,null,null,null,null,null,null,null,1]
[null,null,617,1,1,1,1,1,null,1,null,1,null,null,null,1]
[null,null,618,null,null,null,1,null,null,null,null,null,null,null,null,1,null,1,1,null,1,1]
[null,null,619,null,null,null,null,null,null,1,1,null,1,1,1,1,1,null,null,null,null,null,null,null,null,1]
[null,null,620,null,1,null,null,null,null,null,1,null,null,null,1,null,1,null,null,null,null,null,1,null,1]
[null,null,621,1,1,1,null,null,1,null,null,1,null,null,1,null,null,null,null,null,null,null,1]
[null,null,622,null,null,1,null,null,null,null,null,null,null,null,null,null,1,null,1,1,null,null,null,1]
[null,null,623,null,null,null,1,null,null,1,1,null,1,1,null,null,null,null,null,null,null,null,null,null,1,1]
[null,null,624,null,null,null,null,null,null,null,1,null,null,1,1,null,null,null,null,1,null,null,1]
[null,null,625,1,1,1,1,null,1,1,null,1,1,null,null,null,null,null,null,null,null,1,1]
[null,null,626,null,1,1,1,1,1,1,1,null,null,null,null,null,null,null,null,null,null,null,null,1]
[null,null,627,1,null,null,null,1,null,null,1,null,1,1,1,null,1,null,null,1,null,null,1,null,1,1]
[null,null,628,1,1,1,1,1,1,1,null,null,1,null,1,1,null,1]
[null,null,629,null,null,null,null,null,null,null,null,null,null,null,null,null,null,null,null,1,1,1,null,1]
[null,null,630,null,null,1,null,null,null,null,1,null,null,null,1,null,null,1,1,1,1,1,1]
[null,null,631,null,null,null,null,null,null,null,null,1,null,null,null,1,1,null,null,null,null,null,null,1]
[null,null,632,null,null,null,1,null,null,null,null,null,1,1,null,null,1,1,null,null,null,null,1,null,1,1]
[null,null,633,null,null,null,null,1,null,null,1,null,null,null,null,1,1,1,null,null,null,null,1,1]
[null,null,634,null,null,null,1,1,null,null,null,null,null,1,1,null,1,1,1,null,null,1,1,1,1]
[null,null,635,1,null,null,null,null,null,1,1,null,1,null,null,null,null,null,1,null,null,null,null,null,1,1]
[null,null,636,1,1,1,1,null,1,null,null,1,1,null,null,null,null,null,null,1]
[null,null,637,null,1,1,1,1,null,1,null,null,null,null,null,null,null,null,1]
[null,null,638,null,null,null,1,null,null,null,1,1,null,null,null,null,1,null,null,null,null,null,null,null,null,1]
[null,null,639,1,1,1,null,1,1,1,1,1,1,null,null,1,null,null,null,null,null,null,null,null,1]
[null,null,640,null,null,null,null,null,null,null,1,1,null,null,null,null,1,null,null,null,null,null,1]
[null,null,641,1,null,null,1,1,1,null,1,1,null,1,1,null,null,1,null,null,null,null,null,1]
[null,null,642,null,null,null,null,null,null,1,null,null,1,null,null,1,1,null,null,null,null,null,1,null,null,1]
[null,null,643,null,null,null,null,null,null,null,1,null,null,null,1,null,null,null,null,null,null,null,null,1,null,1]
[null,null,644,null,1,null,null,null,null,null,1,1,null,null,1,1]
[null,null,645,null,null,1,null,1,null,null,null,null,null,null,1,null,null,1,null,1,1,1,1,1]
[null,null,646,null,null,1,null,1,null,null,null,null,null,null,null,null,null,1,null,1,1,1,null,1]
[null,null,647,null,null,null,null,null,1,null,null,null,1,1,null,1,null,null,null,1,null,null,null,null,null,1]
[null,null,648,1,1,1,1,null,1,1,null,1,null,1,1,null,null,null,1]
[null,null,649,null,1,1,1,1,null,1,null,1,null,1,1]
[null,null,650,null,null,null,null,null,null,null,1,null,null,1,1,1,null,1,null,null,null,null,1,null,1,1]
[null,null,651,null,null,null,null,null,null,null,1,1,null,null,null,1,null,null,null,null,null,null,1,1,1]
[null,null,652,null,null,1,1,1,null,1,null,1,null,1]
[null,null,653,1,null,1,1,1,1,1]
[null,null,654,null,null,null,null,null,null,null,1,null,1,1,null,1,1,null,null,null,null,null,1,1,1,1]
[null,null,655,1,1,null,null,null,1,null,1,1,null,null,null,1,1,null,null,null,null,null,1,1,1]
[null,null,656,1,null,null,null,1,1,null,null,1,null,null,null,null,1,1,null,null,null,1]
[null,null,657,null,null,null,null,null,null,null,null,null,null,null,null,null,null,1,null,1,1,1,null,null,null,1]
[null,null,658,null,1,null,1,1,1,1,null,1,null,null,null,null,null,1,null,1]
[null,null,659,1,null,1,null,null,null,null,null,null,null,null,null,null,null,1,1,null,1,1,null,1,null,1]
[null,null,660,null,null,null,null,null,null,null,1,null,null,1,null,1]
[null,null,661,null,null,null,null,null,null,null,1,null,null,1,1,1,null,null,null,null,null,null,null,null,1,1]
[null,null,662,1,1,null,1,1,null,null,1,1,null,1,null,null,null,1,1]
[null,null,663,1,null,null,null,1,1,1,null,1,null,null,null,null,null,null,null,1,null,1]
[null,null,664,1,null,null,null,null,null,null,null,null,null,null,null,null,null,1,1,1,null,null,null,1]
[null,null,665,null,null,null,null,null,null,null,1,null,null,null,null,null,1,null,1,null,1,null,1,null,1]
[null,null,666,null,1,1,1,null,1,null,null,1,null,1,null,null,null,null,1,1,null,null,null,1]
[null,null,667,1,null,1,1,1,1,1,1,1,null,null,null,null,null,null,null,null,null,null,1]
[null,null,668,null,null,1,null,null,null,null,1,null,null,null,null,null,1]
[null,null,669,null,null,null,null,1,null,null,1,1,1,null,null,null,null,null,null,null,null,null,1,null,1,1]
[null,null,670,null,null,null,null,null,null,null,1,null,null,null,1,null,null,null,null,null,null,null,1,null,1]
[null,null,671,1,1,1,1,1,null,1,null,null,1,null,null,null,null,1,1,null,null,1]
[null,null,672,1,null,null,null,null,null,null,1,null,1,null,null,null,null,null,null,null,null,null,null,null,1,1]
[null,null,673,null,null,null,null,null,null,null,null,1,null,null,null,null,null,null,null,1,null,1,null,1]
[null,null,674,null,null,1,null,null,null,null,1,1,1,1,1,1,null,null,null,null,null,null,1,null,1]
[null,null,675,1,1,1,1,null,null,1,1,1,null,null,1,null,null,null,null,null,null,null,null,1]
[null,null,676,1,null,null,null,null,null,null,1,null,1,null,null,1,null,null,null,null,null,null,1,1]
[null,null,677,1,null,1,null,null,1,1,null,1,null,1,null,null,null,1]
[null,null,678,null,null,null,null,null,null,null,null,1,null,null,null,null,1,null,null,null,null,null,1,null,null,1]
[null,null,679,null,null,null,null,null,null,null,null,null,null,null,null,null,null,1,1,1,1]
[null,null,680,null,1,1,null,null,1,1,null,null,null,1]
[null,null,681,1,null,null,null,1,1,null,null,1,null,1,null,null,1,null,1,null,null,null,1,1]
[null,null,682,null,null,1,null,null,null,null,1,null,null,null,null,1,null,1,null,null,null,null,null,null,1]
[null,null,683,1,null,1,null,null,1,null,null,1,null,null,null,1,null,null,null,null,null,null,1,1]
[null,null,684,1,null,null,null,null,null,null,1,null,1,1,1,1,1,null,null,null,null,null,1,1,1,1]
[null,null,685,1,null,null,null,null,null,1,1,null,null,null,1,null,1,null,null,null,null,null,1,null,1,1]
[null,null,686,1,1,1,null,1,null,null,null,1,null,1,null,null,null,1]
[null,null,687,null,null,null,null,null,null,null,1,null,null,null,null,null,null,null,1,null,1,null,1]
[null,null,688,null,1,1,1,1,null,1,null,1,1,null,null,null,null,null,null,null,null,null,null,1]
[null,null,689,1,1,1,null,null,1,1,1,null,1]
[null,null,690,null,1,1,null,1,null,1,null,1,null,null,null,null,null,1]
[null,null,691,null,1,1,null,1,null,1,null,1,null,null,1,1,null,null,null,null,null,null,1]
[null,null,692,null,null,null,null,null,null,null,1,1,1,1,1,1,1,null,1,1,null,null,null,null,1,1]
[null,null,693,null,1,null,null,null,1,null,1,1,null,null,1,null,1,null,null,null,null,null,1,null,1]
[null,null,694,null,null,null,null,null,null,null,null,1,null,null,null,null,null,null,1,null,1,1]
[null,null,695,null,null,null,1,null,null,null,1,null,1,1,null,null,null,null,null,null,null,null,1]
[null,null,696,1,1,1,1,null,1,null,null,1,1,null,null,null,null,null,null,1,null,null,1]
[null,null,697,null,null,null,null,null,null,null,1,1,1,null,1,null,null,null,null,null,null,null,null,null,1,1]
[null,null,698,null,1,1,null,null,null,1,1,1,null,1,null,null,null,null,null,null,null,null,null,null,null,1]
[null,null,699,null,null,1,null,null,null,1,null,null,null,null,null,null,null,null,null,1,null,1,null,1]
[null,null,700,null,null,null,null,null,null,1,null,1,null,null,1,1,1,null,null,1,null,1,1,null,1,1]
[null,null,701,1,1,1,null,1,1,null,null,1]
[null,null,702,null,null,null,null,null,null,1,1,null,1,1,1,null,null,null,1,null,null,1,1,null,1,1]
[null,null,703,1,1,1,null,null,1,1,null,null,null,null,null,null,null,null,null,null,null,1]
[null,null,704,1,null,1,null,1,1,null,null,1,null,null,null,null,1,null,null,null,null,null,null,1]
[null,null,705,null,null,null,1,1,null,1,1,null,null,1,1,null,null,null,null,null,null,null,1,null,1]
[null,null,706,null,1,null,null,null,null,null,null,null,null,null,null,null,null,1,null,null,1,1,null,1]
[null,null,707,null,1,1,1,1,null,null,1,1,null,null,null,1,1,null,1,null,null,null,null,1]
[null,null,708,null,null,null,null,null,1,null,1,null,1,1,1,null,null,null,null,null,null,null,1,1]
[null,null,709,1,null,null,null,null,1,1,1,null,null,null,null,null,null,null,1,null,1,1,null,1]
[null,null,710,1,1,1,1,null,1,1,null,1,null,null,null,1,null,null,1,null,null,null,1]
[null,null,711,null,null,null,1,1,null,null,null,null,null,null,null,null,1,null,null,null,null,null,1,null,null,1]
[null,null,712,null,null,null,null,null,null,1,null,1,null,null,null,null,null,1,1,null,1,null,null,1,1]
[null,null,713,null,null,null,null,null,null,null,null,null,null,null,1,null,null,null,null,1,null,null,null,1,1]
[null,null,714,1,null,1,null,1,1,1]
[null,null,715,null,null,null,null,1,null,1,1,1,1,1,1,1,1,1,null,1,null,null,1,null,1]
[null,null,716,1,null,1,1,1,null,1,null,1,null,null,null,null,1]
[null,null,717,null,null,null,null,null,null,null,1,1,null,null,null,null,null,1,null,null,1,1]
[null,null,718,null,null,null,1,1,1,null,null,1,null,null,null,null,null,null,null,null,null,null,1,1,1]
[null,null,719,null,null,null,null,null,null,null,1,null,null,1,null,1]
[null,null,720,1,1,null,null,null,null,null,null,null,null,null,1,1,null,null,null,1,null,null,1,1,1]
[null,null,721,null,null,null,null,1,null,null,null,null,1,null,null,null,null,1,1,1,null,1]
[null,null,722,1,1,1,1,1,1,1,null,1,1,null,null,null,null,1,null,null,null,null,1]
[null,null,723,null,null,null,null,null,null,null,1,null,null,null,null,null,null,null,null,1,null,1,null,1,null,1]
[null,null,724,null,null,1,1,null,null,1,null,null,null,1,null,null,null,1,1,null,1,1,1,1]
[null,null,725,null,null,null,1,null,null,null,null,1,null,null,1,null,null,null,null,null,1,1,null,1,null,1]
[null,null,726,1,null,1,1,null,1,1,1,1]
[null,null,727,null,null,1,null,null,null,1,null,null,null,null,1,1,null,1,null,null,null,null,1,1]
[null,null,728,null,null,null,1,1,null,null,null,null,null,null,null,null,null,1,1,1,null,1]
[null,null,729,1,null,1,null,1,null,1,1,1,null,null,null,null,null,1]
[null,null,730,1,1,1,null,null,null,1,null,1,null,null,null,1]
[null,null,731,1,null,null,null,null,null,null,null,null,null,null,null,null,null,1,1]
[null,null,732,1,null,1,null,1,1,null,null,1,null,null,1]
[null,null,733,null,null,null,null,null,null,null,null,null,null,null,null,null,null,null,null,null,1,1]
[null,null,734,null,1,1,null,1,null,null,null,1,null,1,null,1,null,null,null,1,1]
[null,null,735,null,null,1,null,null,null,null,1,1,null,null,1,null,null,null,null,null,null,null,1]
[null,null,736,null,null,null,null,null,null,null,null,null,null,null,null,null,null,null,1,null,null,1,null,null,null,1]
[null,null,737,null,null,1,null,1,null,null,1,null,null,null,null,null,null,1,1]
[null,null,738,1,1,1,1,null,null,1,null,1,1,null,1,null,null,1,1]
[null,null,739,null,null,1,null,null,null,null,1,null,null,null,null,null,1,null,null,null,null,null,1]
[null,null,740,null,null,1,null,null,null,null,null,1,null,null,null,null,null,1,1,null,null,1,null,1,null,1]
[null,null,741,null,null,null,null,null,null,null,null,null,null,null,null,null,null,1,1,1,null,null,null,1]
[null,null,742,null,1,1,1,1,null,1,null,null,1,null,null,1,null,null,1,null,null,1,1]
[null,null,743,null,null,null,null,null,null,null,1,null,1,1,1,null,null,null,null,null,null,null,null,1,1,1]
[null,null,744,null,1,null,1,null,null,null,null,null,1,null,null,null,null,null,null,1,null,null,1,1]
[null,null,745,1,1,1,1,null,null,1,null,1,null,1,null,1,null,null,null,null,null,null,null,1]
[null,null,746,null,1,1,null,1,1,1,1,1,null,null,1,null,null,null,null,null,null,1]
[null,null,747,null,1,null,null,null,null,null,null,1,null,null,null,null,null,1,null,1,1,1]
[null,null,748,null,1,1,1,1,1,1,null,1,1,null,null,null,null,null,1,null,null,null,1]
[null,null,749,null,1,1,1,1,null,1,1,1,1,1,null,1,null,1,null,1,null,1]
[null,null,750,1,1,1,1,1,1,1,null,1,1,1,null,1,null,1,null,null,null,1,1,null,1]
[null,null,751,null,null,null,null,1,null,null,null,null,null,null,null,null,null,1,1,null,null,1,null,null,null,1]
[null,null,752,null,null,null,null,null,null,null,1,null,1,null,null,null,null,null,null,null,null,null,null,null,1,1]
[null,null,753,null,null,null,null,null,1,null,null,null,null,null,null,null,null,1,1,1,1,1,null,null,null,1]
[null,null,754,null,null,null,1,null,null,null,1,1,null,1,null,null,null,null,null,null,null,null,null,null,1,1]
[null,null,755,null,1,null,1,1,null,1,null,null,null,null,1,null,null,null,null,1]
[null,null,756,null,null,null,1,1,null,null,null,null,null,null,null,null,null,1,1,null,null,1,1,1,null,1]
[null,null,757,null,null,null,null,null,null,null,null,null,1,null,1,null,null,1,null,null,null,null,1,null,1,1]
[null,null,758,1,null,null,1,null,1,null,null,1,null,1,null,null,null,null,1,null,null,null,1]
[null,null,759,null,null,null,null,null,null,null,null,null,null,null,null,null,null,1,null,null,null,1,1,1]
[null,null,760,null,null,null,null,null,null,null,1,1,null,null,1,1,1,null,null,null,null,null,1,1,1]
[null,null,761,1,1,null,1,null,1,1,null,1,null,null,null,null,null,null,null,null,null,null,null,1]
[null,null,762,null,null,null,null,1,1,null,1,null,null,null,null,null,1,null,null,null,null,null,1,null,1]
[null,null,763,1,1,null,1,1,null,1]
[null,null,764,null,null,null,null,null,null,null,1,null,null,null,null,null,1,null,null,null,null,null,1,1,1]
[null,null,765,null,1,null,null,1,null,null,1,null,1,null,1,1,1,null,null,null,null,1,1]
[null,null,766,1,null,null,null,1,null,1,null,1,null,null,null,null,null,null,1]
[null,null,767,1,1,1,null,1,1,1,1,null,null,null,null,null,null,null,null,1]
[null,null,768,null,null,1,null,1,1,null,null,null,null,null,null,null,null,1,1]
[null,null,769,null,null,null,null,null,null,null,null,null,null,null,null,null,null,null,1,1,1,null,null,1]
[null,null,770,null,null,1,1,null,null,1,null,null,null,null,1,1,1,null,1,null,null,null,1,1,1,1]
[null,null,771,null,null,null,null,null,null,null,1,null,1,1,1,null,null,null,null,null,null,null,null,1,1,1]
[null,null,772,1,1,1,null,1,null,1,null,1,null,null,null,null,null,null,null,null,null,1,null,1]
[null,null,773,1,1,1,1,null,1,1,null,null,null,null,null,1,null,null,null,null,null,1]
[null,null,774,null,1,null,1,1,1,1,null,1]
[null,null,775,1,1,1,null,null,null,1,null,1,null,null,null,null,1,1,null,null,null,null,1,1]
[null,null,776,null,null,null,null,null,null,null,null,null,null,null,null,null,null,null,null,null,1,1,null,1]
[null,null,777,null,null,1,1,null,1,1,null,null,null,null,1]
[null,null,778,null,null,null,1,null,null,null,1,1,null,1,null,null,1]
[null,null,779,null,1,null,1,null,null,1,1,1,null,null,null,null,1,null,1,null,null,null,null,1]
[null,null,780,1,1,null,null,null,null,null,null,null,null,null,null,null,null,1,1,null,null,null,1,1]
[null,null,781,null,null,null,null,null,null,null,1,null,null,null,null,null,null,1,1,1,1]
[null,null,782,1,1,null,null,1,1,1,null,1,null,1]
[null,null,783,null,null,null,null,null,null,null,null,1,null,null,null,null,null,null,null,1,1,1]
[null,null,784,1,null,1,1,1,1,1,null,null,1,null,1]
[null,null,785,null,1,null,1,null,1,null,1,null,null,null,null,null,null,1,1,1,1,1,null,1,null,1]
[null,null,786,null,null,null,null,1,1,1,null,1,null,null,null,null,null,null,1]
[null,null,787,1,null,1,null,1,null,1,null,null,null,null,null,null,null,null,1,null,null,1,null,1]
[null,null,788,null,null,null,null,null,null,null,null,null,1,1,null,1,null,null,null,null,null,null,null,null,1]
[null,null,789,null,null,null,null,null,null,null,1,null,null,null,null,null,null,1,1,null,1,1,null,1,null,1]
[null,null,790,null,null,null,null,null,null,1,1,null,1,null,1,1,null,null,1,null,null,null,1,null,null,1]
[null,null,791,null,null,null,null,1,null,null,1,1,1,null,null,1,null,null,null,null,null,null,1,null,1]
[null,null,792,null,null,null,null,null,null,null,1,null,1,1,null,null,null,1,null,null,null,null,1,null,1,1]
[null,null,793,1,1,1,1,1,1,1,null,null,1,1,null,null,null,null,null,null,null,null,null,1,null,1]
[null,null,794,null,null,null,1,1,null,null,null,null,null,null,null,null,null,null,null,1,null,1,null,1]
[null,null,795,null,null,null,null,null,null,null,1,1,null,null,null,1,null,null,null,null,null,null,null,null,1]
[null,null,796,1,null,1,1,1,1,null,null,1,null,null,null,null,null,1,null,null,null,null,1]
[null,null,797,1,1,1,null,null,1,1,null,1,1,null,1,null,null,null,1,null,null,1,1]
[null,null,798,1,null,1,1,1,null,1,null,1,null,1,1,null,null,1,null,null,null,null,null,1]
[null,null,799,null,null,1,null,1,1,1,null,1,null,null,1,null,null,null,null,null,null,null,null,1]
[null,null,800,null,null,null,null,1,null,null,1,null,null,null,null,null,null,1,null,1,1,1]
[null,null,801,null,1,null,null,1,1,1,null,null,null,null,null,null,null,1,1,null,null,null,null,1]
[null,null,802,null,null,null,null,null,null,null,1,1,null,null,1,null,1,1]
[null,null,803,null,null,null,null,null,null,null,1,null,null,null,1,1,null,null,null,null,null,null,1]
[null,null,804,null,null,null,null,null,null,null,1,1,null,null,null,1,1]
[null,null,805,1,1,1,1,1,1,1,null,1,null,null,null,null,1,null,null,null,null,null,null,1]
[null,null,806,1,1,1,1,null,1,1,null,1,null,null,null,null,1,null,1,null,null,null,null,null,null,1]
[null,null,807,null,null,null,null,null,null,null,null,null,null,null,1,null,1,null,null,null,1,null,1,null,null,1]
[null,null,808,1,1,1,1,1,null,1,1,1,null,null,null,null,null,null,1]
[null,null,809,1,null,null,null,1,1,1,null,1,null,1,null,null,null,null,null,1,null,null,null,1]
[null,null,810,1,1,1,1,1,1,1,null,1,null,null,null,null,null,null,null,null,null,null,1]
[null,null,811,1,1,1,1,null,null,1,1,1,null,null,null,null,1,1,1]
[null,null,812,1,1,1,null,null,1,1,null,1,null,1,null,null,1]
[null,null,813,null,null,null,null,null,null,null,1,1,null,1,null,null,1,null,null,null,null,null,1]
[null,null,814,null,1,null,1,null,1,null,1,null,1,1,null,null,null,null,null,null,null,null,null,1,1,1]
[null,null,815,1,1,1,null,1,1,1,null,null,null,null,null,null,null,null,1]
[null,null,816,1,1,1,1,null,null,null,1,1,1,null,null,null,null,1,null,null,null,null,null,1]
[null,null,817,null,null,null,null,null,null,null,null,null,null,null,null,null,null,1,1,1,null,null,null,1]
[null,null,818,null,null,null,null,1,null,1,null,null,null,1,1,1,null,1,null,null,null,null,1]
[null,null,819,null,null,null,null,null,null,null,null,null,1,1,1,null,null,1,1,null,null,null,null,null,1,1]
[null,null,820,1,1,1,1,null,1,null,null,null,1]
[null,null,821,1,null,null,null,null,1,null,1,null,1,1,1,1,1,null,null,null,null,null,null,null,null,1]
[null,null,822,null,null,null,null,null,null,1,null,1,null,null,1,1,null,null,null,null,null,null,1,1,1]
[null,null,823,null,null,1,null,null,1,null,null,1,1,null,null,1,null,1,null,null,1,1,1,1,1]
[null,null,824,1,null,1,1,null,1,null,null,1,null,null,null,1,null,1]
[null,null,825,1,1,1,1,1,null,1,null,null,null,null,1,1,null,null,1,1,null,null,null,1]
[null,null,826,1,null,1,null,null,null,null,null,null,null,1,null,1,null,null,null,1,null,null,null,null,1]
[null,null,827,null,null,1,null,null,null,1,1,null,null,1,1,1,null,null,null,null,null,null,null,null,null,1]
[null,null,828,1,null,null,null,null,null,1,1,1,null,null,null,null,null,1,1,null,null,1]
[null,null,829,null,null,null,null,null,null,null,null,null,null,null,null,null,null,1,null,1,null,null,1]
[null,null,830,1,1,1,null,null,1,1]
[null,null,831,null,null,1,null,null,null,null,null,null,null,null,null,null,null,null,null,1,1,1,null,1]
[null,null,832,null,null,null,null,null,null,null,1,null,1,1,null,null,null,null,null,null,null,null,1,1,1,1]
[null,null,833,null,1,1,1,1,1,null,null,1,1,1,null,1]
[null,null,834,null,null,null,null,null,null,null,null,null,1,null,null,null,null,null,1,1,null,null,1,1,1]
[null,null,835,null,null,null,null,null,null,null,1,null,null,null,null,null,1,null,1,null,null,null,null,1,1,1]
[null,null,836,1,1,1,1,null,1,1,null,1,null,1,1,null,null,null,null,null,null,1]
[null,null,837,null,null,1,null,null,null,null,1,null,null,null,1,1,null,null,null,1,null,null,1]
[null,null,838,1,null,null,null,null,null,null,null,1,null,1,1,null,null,null,null,null,null,null,null,null,1,1]
[null,null,839,null,null,1,null,1,1,1,null,1,null,null,null,1,null,null,null,null,null,null,1]
[null,null,840,1,1,1,null,1,1,null,null,1,null,null,null,null,1,null,1,null,null,null,1,1]
[null,null,841,1,1,1,1,null,null,1,null,1,1,null,null,null,null,null,null,null,null,null,1,null,null,1]
[null,null,842,null,null,null,null,null,null,null,null,null,null,null,null,null,null,1,1,1]
[null,null,843,null,null,null,null,null,null,null,null,null,null,null,null,null,null,null,1,null,1,1,null,1]
[null,null,844,1,null,null,1,null,1,1,null,1]
[null,null,845,null,1,1,1,1,null,1,1,1,1,null,null,1,null,null,null,null,null,null,1]
[null,null,846,null,null,null,null,null,null,1,1,1,1,null,null,null,null,null,null,null,null,null,1,null,1]
[null,null,847,1,null,1,null,null,null,null,1,null,null,null,1,1,1,null,null,1,null,null,1,null,1,1]
[null,null,848,null,null,null,null,null,null,null,null,1,null,null,null,1,1,null,1,null,null,null,1]
[null,null,849,null,null,null,null,null,null,null,null,null,null,null,null,null,null,1,null,null,null,null,null,1]
[null,null,850,null,null,null,null,null,null,null,1,null,null,null,1,null,null,1]
[null,null,851,null,null,null,null,null,null,null,1,null,1,1,null,null,null,null,null,null,null,null,null,null,1]
[null,null,852,null,null,null,1,null,null,null,1,1,null,1,1,null,null,null,null,null,null,null,1,null,1,1]
[null,null,853,1,1,1,1,1,null,null,null,null,null,null,null,null,null,1,1,null,1]
[null,null,854,1,1,1,null,1,1,1,1,1,null,null,null,null,null,null,null,null,null,1]
[null,null,855,1,1,null,1,null,null,null,null,null,null,null,null,null,null,1,1]
[null,null,856,1,1,1,1,null,1,null,null,null,null,null,null,null,null,1,1,1,null,1,null,1]
[null,null,857,null,null,null,1,null,null,null,null,null,null,null,null,null,null,null,null,1,1,1]
[null,null,858,null,null,null,null,null,null,null,null,null,1,1,1,null,null,null,null,null,null,null,1,null,1,1]
[null,null,859,null,1,null,null,null,1,null,1,1,null,null,1]
[null,null,860,1,1,null,null,1,1,1,1,1,1,1,null,null,null,null,1,null,null,null,null,1,null,1]
[null,null,861,1,1,null,null,1,1,null,1,1,null,null,1,null,null,null,null,null,null,null,1]
[null,null,862,1,1,null,null,1,1,1,null,1,null,null,1,null,null,null,null,1,null,null,1]
[null,null,863,null,null,1,null,null,null,null,1,1,1,1,1,1,1,null,null,null,1,null,1,null,1]
[null,null,864,null,null,null,1,null,null,null,1,null,1,1,1,null,1,null,null,null,null,null,null,1,1]
[null,null,865,null,null,null,null,null,null,null,1,null,1,1,null,1,null,null,null,null,null,null,1,1,1,1]
[null,null,866,null,null,null,null,null,1,null,1,null,null,null,1,null,null,null,null,null,null,null,null,1]
[null,null,867,1,null,1,1,null,null,1,null,1,1,null,null,null,null,null,1,null,null,null,1,null,null,1]
[null,null,868,1,null,null,null,null,null,null,null,1,null,1,1]
[null,null,869,null,1,null,null,null,1,null,null,null,null,1,1,1,null,null,1,1,1,1,1,1,1,1]
[null,null,870,null,null,null,null,null,null,null,null,null,null,null,null,null,null,1,1,1,null,1,null,1]
[null,null,871,null,1,null,null,null,null,null,null,null,null,null,null,1,1,null,null,null,null,null,1,1,1,1]
[null,null,872,null,null,null,null,null,null,null,null,1,null,null,null,null,null,null,1,1,1,1,null,null,null,1]
[null,null,873,null,1,null,1,1,null,1,1,1,null,null,null,null,1]
[null,null,874,null,null,1,null,null,null,null,1,null,null,null,null,null,null,1,1,1,1,1,1,1,1]
[null,null,875,1,1,null,1,1,null,1,null,1,null,null,1,null,1,null,null,1,null,null,1]
[null,null,876,1,1,1,1,1,1,1,null,1,null,null,null,null,null,null,null,null,1,null,1]
[null,null,877,null,null,null,null,null,null,null,null,null,1,1,null,1,1,null,1,null,null,null,null,null,1]
[null,null,878,null,null,null,null,null,null,null,null,null,1,1,null,1,1,null,null,null,null,null,null,null,1,1]
[null,null,879,null,1,null,1,null,null,null,1,null,null,null,null,null,null,1,1,1,1,1]
[null,null,880,null,null,null,null,null,null,null,1,null,null,null,null,null,1,null,null,null,null,null,null,1,null,1]
[null,null,881,null,null,1,1,null,null,null,1,null,1,null,null,null,null,null,null,null,null,null,1,1,null,1]
[null,null,882,null,null,null,null,null,null,null,null,null,null,null,null,null,null,1,1,1,1,1]
[null,null,883,null,null,null,null,null,null,null,null,null,null,null,null,null,null,1,null,1,1,1,1]
[null,null,884,1,null,1,1,1,1,null,null,1,null,1,null,null,null,null,null,null,1,null,1,1]
[null,null,885,1,1,1,1,1,null,null,null,1,1,null,null,null,1,null,1]
[null,null,886,1,1,null,null,1,null,1,1,1,null,null,null,null,null,null,null,null,null,null,1]
[null,null,887,null,1,null,1,null,null,null,null,null,null,null,null,null,null,1,1,1,null,1]
[null,null,888,1,1,1,1,1,null,1,1,null,null,null,1]
[null,null,889,1,1,null,null,1,null,1,1,1,null,null,null,null,null,null,null,null,null,null,null,1]
[null,null,890,1,1,1,1,1,1,null,null,1,1,null,null,null,null,null,null,null,null,null,1]
[null,null,891,null,null,null,null,1,null,null,1,null,null,null,null,1,null,null,null,null,null,null,1]
[null,null,892,1,1,1,1,null,null,1,null,1,1,1,null,null,null,null,1]
[null,null,893,null,null,null,null,null,null,null,null,null,1,1,1,1,null,null,null,null,null,null,null,1,1,1]
[null,null,894,null,1,1,null,1,null,1,1,1,null,null,null,null,null,null,1,null,null,null,1,1]
[null,null,895,null,null,null,null,null,1,null,null,null,null,null,null,1,null,null,1,null,1,1,null,1,null,1]
[null,null,896,null,1,null,1,1,null,null,null,1,null,null,null,null,null,1,1,1]
[null,null,897,null,null,null,null,null,null,null,null,null,null,null,null,null,null,1,null,1,null,1]
[null,null,898,null,null,null,null,1,null,1,null,null,null,null,null,null,null,1,1,1,null,1]
[null,null,899,1,1,null,1,1,1,1,1,1,null,null,null,null,null,null,null,null,null,1]
[null,null,900,null,null,null,1,null,null,null,null,null,null,null,null,null,null,1,null,1,null,1]
[null,null,901,null,null,null,null,null,null,null,null,null,1,1,1,null,null,null,null,null,null,null,1,null,1,1]
[null,null,902,null,null,null,null,null,null,null,null,1,null,1,null,1,null,null,null,null,1,null,1,1]
[null,null,903,null,null,null,null,null,null,null,1,1,1,null,null,null,null,null,null,null,null,null,null,null,1,1]
[null,null,904,null,null,null,null,null,null,null,1,null,null,1,null,null,null,null,null,null,null,null,1,1,1,1]
[null,null,905,null,null,null,null,null,null,null,1,null,1,null,null,null,null,null,null,null,null,null,1,null,1,1]
[null,null,906,null,null,null,1,null,null,null,1,1,null,1,null,1,null,null,null,null,null,1,null,null,1]
[null,null,907,1,null,null,null,1,null,1,1,null,null,null,null,1,null,null,null,null,null,null,1,null,1,1]
[null,null,908,null,null,null,null,null,null,null,1,null,1,null,null,1,null,null,null,null,null,null,1,1,1,1]
[null,null,909,null,null,null,null,null,null,1,null,null,null,null,null,null,null,null,null,null,null,null,null,1]
[null,null,910,null,null,1,null,null,1,1,1,1,1,1,null,null,null,null,null,null,null,null,1,null,1]
[null,null,911,null,null,1,null,1,1,1,null,null,null,null,null,null,null,1,1,null,null,1,null,1]
[null,null,912,1,null,null,1,null,1,1,1,1,null,null,null,null,1,null,null,null,null,1,1,null,1]
[null,null,913,1,1,1,1,1,1,1,null,1,null,null,null,1,null,null,null,null,null,null,1]
[null,null,914,null,null,null,null,1,1,null,1,null,null,null,null,null,null,1,1,null,null,1]
[null,null,915,1,1,null,null,1,null,1,null,null,null,1,null,null,null,null,1]
[null,null,916,null,null,null,null,null,null,null,1,null,1,1,1,null,null,null,null,null,null,null,1,null,1]
[null,null,917,null,null,1,null,null,null,null,1,null,1,null,null,null,null,null,null,null,null,null,1,null,1,1]
[null,null,918,1,null,1,1,null,null,null,null,1,null,null,1,null,1]
[null,null,919,null,null,1,1,1,null,1,1,1,null,1,null,null,null,null,1,null,null,null,1,null,1]
[null,null,920,null,null,null,null,null,null,null,1,null,null,null,null,1,null,null,null,null,null,null,1,null,1]
[null,null,921,null,null,null,null,null,null,null,null,1,null,null,null,null,1,null,1,null,null,null,1,null,null,1]
[null,null,922,1,1,null,1,null,null,1,null,1,null,null,null,null,null,1]
[null,null,923,null,null,1,null,1,null,null,null,1,null,null,null,null,1]
[null,null,924,null,null,null,null,null,1,null,1,null,null,null,1,1,null,null,null,1,1,null,1]
[null,null,925,1,1,1,1,1,1,null,null,1,null,null,null,null,null,1,1,null,null,null,1,null,1,1]
[null,null,926,null,null,null,1,null,null,null,1,null,null,null,null,1,null,null,null,null,null,null,1]
[null,null,927,null,1,null,null,null,1,null,null,null,1,1,null,null,1,null,null,null,null,null,null,null,1]
[null,null,928,null,null,null,null,null,null,null,null,null,null,null,null,null,null,null,1,1,1,1,null,1]
[null,null,929,null,1,1,null,1,null,1,null,null,1,null,1]
[null,null,930,null,1,null,1,null,null,1,1,null,1,1]
[null,null,931,1,1,1,1,1,null,null,null,1,null,null,null,null,null,1,1]
[null,null,932,null,null,null,null,null,null,null,null,1,null,null,null,null,null,1,1,1,null,null,null,1,1,1]
[null,null,933,null,null,null,null,null,1,null,1,null,1,1,1,1,1,null,null,null,null,null,null,null,1]
[null,null,934,1,null,null,1,1,null,null,1,1,null,null,null,null,null,1,null,1,1,null,null,null,1]
[null,null,935,null,1,1,1,1,1,null,1,1,null,1,null,1,null,1,null,null,null,null,1]
[null,null,936,1,null,null,null,null,1,1,null,null,null,null,null,null,null,1,1,null,1,1,1]
[null,null,937,null,null,null,null,1,null,null,null,1,null,null,null,null,null,1,null,null,1,1]
[null,null,938,1,null,null,null,null,null,1,null,null,null,null,null,null,null,null,null,1,1,1]
[null,null,939,null,1,null,1,null,1,null,1,null,1,1,1,null,null,null,null,null,null,null,null,null,1,1]
[null,null,940,1,1,1,1,null,1,1,null,1,null,null,null,null,null,null,1,null,null,null,null,1]
[null,null,941,null,null,1,null,1,null,1,null,1,1,1,null,null,null,null,null,null,null,null,1]
[null,null,942,1,1,1,1,null,null,1,1,null,1,null,null,null,null,1]
[null,null,943,1,1,null,null,1,null,null,null,null,null,1,1,null,1,null,null,null,null,null,1,1,1]
[null,null,944,null,null,null,1,null,null,null,null,null,null,null,null,null,null,1,1,null,null,1,1]
[null,null,945,null,null,null,null,null,null,null,1,null,null,1,1,null,null,null,null,null,null,null,null,null,1]
[null,null,946,1,null,null,null,null,null,1,1,1,null,null,1,null,null,null,null,null,null,null,null,null,1,1]
[null,null,947,null,1,null,null,null,null,null,1,null,null,null,1,null,1,null,null,null,null,null,1,1,1]
[null,null,948,null,null,null,null,null,null,null,null,null,1,null,1,null,null,null,1,null,null,null,null,null,1,1]
[null,null,949,1,1,1,1,null,null,1,null,1,null,null,null,null,null,null,null,null,null,1]
[null,null,950,1,null,1,1,1,null,1,null,1,null,null,null,null,null,1,null,null,null,1,1,null,1]
[null,null,951,null,null,null,null,null,null,1,null,null,null,null,null,null,null,1,1,null,null,1,null,1,1]
[null,null,952,1,null,1,1,1,1,1,null,1,null,1,1,null,null,null,null,null,null,1,1]
[null,null,953,1,1,1,null,1,null,null,null,1,null,null,1,null,null,null,1,null,null,null,null,1]
[null,null,954,null,1,null,1,null,1,1,null,null,null,null,null,null,null,null,null,null,1,null,1]
[null,null,955,null,null,1,null,null,null,null,null,null,null,null,null,null,null,1,1,1,1,null,null,1]
[null,null,956,1,1,1,1,1,null,null,null,1,1,1,null,null,null,null,1]
[null,null,957,1,1,null,1,1,1,null,null,1,null,null,null,null,null,null,1]
[null,null,958,1,null,1,null,1,null,null,null,null,null,null,1,null,null,1,1,1,null,1,null,1]
[null,null,959,null,null,1,null,null,null,null,1,1,null,null,1,null,1,1]
[null,null,960,null,null,null,null,1,null,null,1,null,null,null,null,null,1,null,null,null,null,null,1,1]
[null,null,961,null,null,null,null,null,1,null,1,1,null,null,null,null,1,null,1,null,null,null,1]
[null,null,962,null,null,null,null,1,1,null,null,1,null,null,null,null,null,null,null,null,null,null,null,null,null,1]
[null,null,963,null,1,1,1,null,null,null,null,1,null,null,null,null,null,null,null,null,null,null,1]
[null,null,964,1,1,1,null,1,1,null,null,1,null,null,1]
[null,null,965,null,null,null,null,1,null,null,1,null,1,null,null,null,null,null,null,null,null,null,1,null,1,1]
[null,null,966,null,null,null,null,null,1,null,1,null,1,1,null,null,null,null,null,null,null,null,null,null,1,1]
[null,null,967,1,null,1,null,null,null,1,1,1]
[null,null,968,null,null,null,null,null,null,1,null,1,1,null,null,null,null,null,1,null,1,1,1,1,1,1]
[null,null,969,1,1,1,1,1,null,null,null,1,1]
[null,null,970,null,1,null,null,null,null,null,null,null,null,1,null,null,null,1,null,null,1,1,1,1,1]
[null,null,971,1,1,null,1,null,null,null,null,null,null,null,1,null,1,null,1]
[null,null,972,1,1,1,1,1,1,null,null,1,null,null,null,null,null,null,null,null,null,null,null,1]
[null,null,973,null,null,null,null,null,null,null,1,null,1,1,1,null,1,null,null,null,null,null,null,null,1,1]
[null,null,974,null,null,null,null,null,null,null,null,null,null,null,1,null,null,null,null,null,null,null,1,null,1]
[null,null,975,null,null,null,null,null,null,null,null,1,null,null,null,1,1,null,null,null,null,null,1,1]
[null,null,976,null,null,null,null,null,null,null,1,null,1,1,1,null,1,1,null,1,1]
[null,null,977,null,null,null,null,null,null,null,null,null,null,1,1,null,1,null,null,null,null,null,1,null,1,1]
[null,null,978,null,null,null,null,1,null,null,null,1,null,null,null,null,1,null,null,null,null,null,null,null,null,1]
[null,null,979,1,1,1,null,1,1,1,null,1,null,1,null,1,null,1]
[null,null,980,null,null,null,null,1,null,1,1,1]
[null,null,981,1,null,null,null,null,null,null,null,null,null,null,null,null,null,1,1,1,null,1]
[null,null,982,null,null,null,1,1,1,1,null,1,null,null,null,null,null,1,null,1,null,1,1]
[null,null,983,null,null,null,null,null,null,null,1,null,1,1,null,null,null,null,null,null,null,null,null,null,1,1]
[null,null,984,null,null,null,null,null,null,1,1,null,null,null,1,null,null,null,null,null,null,1,1,null,null,1]
[null,null,985,null,null,null,null,null,null,null,null,null,null,null,null,1,1,1,1,1,null,null,1,1,1]
[null,null,986,null,null,null,null,1,null,null,1,null,1,null,null,null,null,null,null,null,null,null,null,null,1]
[null,null,987,1,1,1,1,1,1,null,null,1,null,null,null,1,null,null,null,null,null,null,null,1]
[null,null,988,null,null,null,null,null,1,null,1,null,1,1,null,null,null,null,null,null,null,null,null,null,1]
[null,null,989,1,1,1,1,1,null,null,1,1,null,1,null,null,null,1]
[null,null,990,1,1,1,1,1,null,1,null,1,null,null,null,null,1,1]
[null,null,991,null,1,null,null,null,1,null,1,null,1,1,null,1,1,null,1,null,null,1,null,null,null,1]
[null,null,992,1,1,1,1,1,null,null,null,1,null,null,null,null,null,null,1]
[null,null,993,1,null,null,null,null,null,null,1,null,null,null,null,1,null,null,null,null,null,null,1,null,null,1]
[null,null,994,null,1,null,null,null,null,null,1,null,1,null,null,null,null,null,null,null,null,null,null,null,1]
[null,null,995,null,null,1,null,null,null,null,null,null,null,null,null,null,null,null,1,1,1,1,null,1]
[null,null,996,1,null,1,1,1,1,1,null,1,1]
[null,null,998,1,1,null,1,1,1,1,1,1,null,null,null,null,null,null,null,null,null,null,null,1]
[null,null,1002,1,1,1,1,1,1,null,1]
[null,null,1009,1,1,1,null,1,null,null,null,1,null,null,null,null,null,1,null,null,null,null,null,1]
[null,null,1012,1,null,null,null,null,1,null,1,1,null,null,1]
[null,null,1016,null,1,null,null,null,null,null,null,null,null,null,null,1,1,null,null,null,null,null,null,1]
[null,null,1021,null,null,null,null,1,null,null,1,null,null,null,null,null,1,null,null,null,null,null,1,1]
[null,null,1027,null,1,1,1,null,null,1,null,null,null,null,null,null,null,1,1,null,null,1,null,1]
[null,null,1031,null,1,null,null,null,null,null,1,1,null,null,null,1]
[null,null,1037,null,null,null,null,null,null,null,null,null,1,null,null,null,null,null,null,null,1,null,1,1]
[null,null,1040,null,null,null,null,null,null,null,null,null,null,1,1,null,null,null,null,null,null,null,1,null,1]
[null,null,1046,1,1,1,1,null,1,1,null,1,1,1,null,null,null,null,null,null,null,null,null,1]
[null,null,1047,1,1,1,null,1,null,1,null,1]
[null,null,1051,null,1,1,1,null,1,1,null,1,null,null,null,null,null,1]
[null,null,1058,1,null,null,null,null,null,null,null,1,null,null,null,null,null,1,1,1,null,1,null,1]
[null,null,1061,null,null,null,null,null,null,null,null,null,1,1,null,1,null,null,null,1,null,null,1,null,1,1]
[null,null,1066,1,null,null,null,null,null,1,null,null,null,null,null,null,1,null,null,null,null,null,1,1,null,1]
[null,null,1071,null,null,null,null,null,null,null,1,null,1,1,null,null,null,null,null,null,null,null,null,null,1,1]
[null,null,1076,1,1,null,1,1,1,null,null,1,1]
[null,null,1082,1,1,1,1,1,1,1,null,null,null,null,null,null,null,null,null,null,null,null,1,1]
[null,null,1086,1,1,1,1,null,1,1,null,1,null,null,null,1,null,1,1,null,null,null,null,1]
[null,null,1089,null,1,null,null,null,1,null,1,null,null,null,null,null,null,null,1,null,null,1]
[null,null,1096,1,1,1,1,1,1,1,null,1,null,1,1,null,null,null,1]
[null,null,1100,null,null,1,null,1,1,1,null,null,null,null,null,null,null,null,null,null,1,null,null,1]
[null,null,1105,null,null,null,null,null,null,null,1,1,null,null,null,null,1,null,null,1,null,null,1,null,1]
[null,null,1106,1,1,1,1,1,null,1,null,1,null,null,null,null,null,1]
[null,null,1113,1,null,null,null,null,null,1,null,null,null,null,null,null,null,1,null,1,1,1,null,1]
[null,null,1115,null,null,null,null,null,null,null,null,null,null,1,1,1,null,null,null,null,1,null,1,1,1,1]
[null,null,1120,null,1,null,null,null,1,null,1,null,1,1,null,null,null,null,null,null,null,null,null,null,null,1]
[null,null,1125,null,null,null,null,null,null,null,null,null,null,null,null,null,null,1,1,1,null,1]
[null,null,1131,null,null,null,null,null,null,null,null,null,null,null,null,null,null,1,1,1,1]
[null,null,1135,null,1,null,null,null,null,null,null,null,null,null,null,null,null,1,1,1,1]
[null,null,1140,null,null,null,1,null,null,null,1,null,1,null,1,1,1,null,null,null,null,null,null,null,null,1]
[null,null,1144,null,null,null,null,null,null,null,null,null,null,null,null,null,null,null,null,1,1,1,1,1]
[null,null,1150,null,null,1,null,null,null,null,1,null,null,null,null,1,null,null,null,null,null,null,null,1,1,1]
[null,null,1155,null,null,null,null,null,null,null,null,null,1,1,null,1,null,null,null,null,null,null,null,null,null,1]
[null,null,1160,1,null,1,1,1,null,1,1,1,1,null,null,null,null,1,null,null,null,null,1]
[null,null,1162,null,null,null,null,null,null,null,null,1,null,null,null,null,null,null,null,1,null,1,null,null,null,1]
[null,null,1165,1,1,1,null,1,1,null,null,1,null,null,null,null,null,1,1]
[null,null,1170,null,null,null,null,null,null,null,1,1,1,null,null,null,null,null,null,null,null,null,null,null,1]
[null,null,1175,1,1,1,1,1,1,1,null,null,null,null,null,1,null,null,null,null,null,null,1]
[null,null,1180,null,null,null,null,null,null,null,1,null,null,1,1,null,null,1,null,null,null,null,1,null,1,1]
[null,null,1186,1,null,null,null,null,null,null,1,null,null,null,null,null,1]
[null,null,1190,null,null,null,null,null,null,null,1,1,null,null,null,null,1,null,null,null,null,null,1]
[null,null,1193,null,1,null,null,null,null,null,null,null,null,null,1,1,null,null,1,null,null,null,1,1]
[null,null,1199,null,null,null,null,null,null,null,null,null,1,null,null,null,null,1,1,null,null,null,null,1]
[null,null,1204,1,null,null,1,null,null,null,null,null,1,1,null,1,1,null,null,null,null,1,1,null,1]
[null,null,1209,null,1,null,null,1,1,1,null,1,null,null,null,null,null,null,null,null,null,1]
[null,null,1214,null,null,null,1,1,null,null,1,1,1,null,null,null,null,null,null,null,null,null,null,null,1,1]
[null,null,1217,1,1,1,1,1,null,1,null,1]
[null,null,1224,null,null,null,null,null,null,null,1,null,1,1,1,1,null,null,null,null,null,null,1,null,1]
[null,null,1228,null,null,null,null,null,null,null,null,null,1,null,1,null,null,null,null,null,null,null,null,1,1]
[null,null,1229,null,null,null,null,null,1,null,null,null,null,null,null,1,1,null,null,null,null,1,null,1]
[null,null,1235,1,1,1,null,null,1,1,null,1,null,null,null,null,null,null,null,1,1]
[null,null,1239,null,null,null,null,null,null,null,null,null,null,null,null,null,1,null,null,null,null,null,1,1]
[null,null,1244,null,null,1,1,1,1,1,1,1,null,null,1]
[null,null,1248,null,null,null,null,null,null,null,1,null,null,null,null,null,null,null,1,1,1,1,null,1]
[null,null,1254,null,null,null,null,null,null,null,1,null,null,null,1,1,null,null,null,null,null,null,1,1,1]
[null,null,1259,1,1,1,1,1,1,1,null,1,null,null,null,null,null,1]
[null,null,1264,null,null,null,null,null,null,null,null,1,null,null,null,null,null,1,null,1,1,1]
[null,null,1266,null,null,null,null,null,null,null,1,1,null,null,null,1,null,null,null,null,null,null,1,1]
[null,null,1273,null,1,1,1,null,null,1,null,1]
[null,null,1279,null,null,null,null,null,null,null,1,null,null,null,null,1,null,null,null,null,null,null,1,null,1]
[null,null,1283,null,1,null,null,null,null,null,1,null,null,null,1,1]
[null,null,1284,null,null,null,1,null,null,null,1,null,1,1,null,null,null,1,null,null,null,null,null,null,1,1]
[null,null,1290,null,null,null,null,null,null,null,null,1,1,1,null,null,null,null,null,null,null,null,null,null,1]
[null,null,1293,1,1,1,1,1,null,null,null,1,null,1,null,null,null,1,null,null,null,null,1]
[null,null,1301,1,1,null,1,null,null,null,1,null,null,1,1,null,null,null,null,null,null,null,null,null,1,1]
[null,null,1303,null,null,null,null,null,1,null,1,1,null,null,1,null,1,null,null,null,null,null,1,null,1]
[null,null,1308,1,null,null,null,null,null,null,1,null,null,null,1,null,null,1,null,1,null,1]
[null,null,1313,null,null,1,1,null,1,1,1,1,null,1,1,null,null,1,1]
[null,null,1318,null,null,null,null,null,null,null,null,null,null,null,null,null,null,1,1,1,1,1,null,1]
[null,null,1321,null,null,1,1,1,1,1,1,1,null,null,1,null,null,null,null,null,null,null,null,1]
[null,null,1328,null,null,null,null,null,null,null,null,null,null,null,null,null,null,1,null,1,1,1,1]
[null,null,1332,1,null,1,null,null,null,null,null,1,null,null,1,null,null,null,null,1,null,1,1,1,1]
[null,null,1338,null,null,null,null,null,null,null,1,null,null,null,null,null,1,null,null,null,null,null,null,null,1]
[null,null,1339,null,null,null,null,null,null,null,null,null,null,null,null,null,null,null,null,null,1,null,1,1,1]
[null,null,1343,null,null,null,null,null,null,null,null,null,1,null,1,1,null,null,null,null,null,1,1,null,1,1]
[null,null,1348,null,null,1,null,null,null,null,null,null,null,null,null,null,null,null,null,1,1,1]
[null,null,1356,1,1,null,1,1,1,1,null,1,1,null,null,null,null,1]
[null,null,1358,null,null,1,null,null,null,null,null,null,null,null,null,null,null,1,1,1,null,1,1]
[null,null,1363,1,1,null,1,1,null,null,null,null,null,null,null,null,null,null,1,1,null,1]
[null,null,1367,null,null,null,null,null,null,null,1,1,null,null,1,null,null,null,null,null,null,null,1,1,null,1]
[null,null,1374,null,null,null,null,null,null,null,null,null,null,null,null,null,null,1,1,null,1]
[null,null,1377,null,null,null,null,null,1,null,null,null,null,null,null,null,null,1,null,null,1,1]
[null,null,1383,null,null,null,null,1,null,null,null,null,null,null,null,null,null,1,1,1,1,1,null,1]
[null,null,1387,1,1,1,1,1,1,1,1,1,null,1,null,null,1]
[null,null,1392,1,1,null,null,1,null,1,null,null,null,null,null,null,null,null,null,null,null,1,1,null,null,1]
[null,null,1394,null,1,null,null,null,null,null,1,null,1,1,1,1,1,null,1,null,null,null,null,null,1]
[null,null,1402,null,1,1,null,1,null,null,null,null,1,null,1,null,null,1,1,null,1,null,null,1]
[null,null,1405,1,1,null,1,1,1,null,null,1]
[null,null,1407,1,null,1,null,null,null,null,1,null,null,1,null,null,null,null,null,null,null,null,null,null,1]
[null,null,1412,1,null,null,null,1,1,null,1,null,null,1,null,null,null,null,1,null,null,null,null,1,1,1]
[null,null,1417,1,1,1,1,1,null,1,null,1,1,1]
[null,null,1422,null,1,1,null,null,null,null,null,null,1,1,null,null,null,null,null,null,null,null,null,null,1,1]
[null,null,1429,null,1,null,1,null,null,null,1,null,null,null,1]
[null,null,1432,null,1,null,null,null,1,null,1,null,null,null,null,1,null,null,null,null,null,null,null,1]
[null,null,1436,1,null,1,1,null,null,1,1,null,1,1,1,null,1,1,null,null,null,null,null,null,1,1]
[null,null,1442,1,1,1,1,null,1,1,null,null,null,null,null,null,null,null,1,null,null,null,1]
[null,null,1447,null,null,null,null,null,null,1,null,null,null,null,null,null,null,null,null,1,1,1,1]
[null,null,1451,null,null,null,null,null,null,1,null,null,null,null,1,null,null,1,1,1,null,1]
[null,null,1457,1,1,1,1,null,1,null,null,null,null,null,null,null,null,1,null,null,null,null,null,1]
[null,null,1460,null,1,1,null,1,1,1,null,1]
[null,null,1466,1,1,1,1,null,null,1,null,1,1,null,1,null,null,null,null,null,null,null,null,1]
[null,null,1467,null,null,null,null,null,null,1,1,null,null,1,1,null,null,null,null,null,null,null,1,null,1,1]
[null,null,1471,null,1,null,null,null,null,null,1,1,1,1,null,null,null,null,null,null,null,null,null,null,1,1]
[null,null,1478,1,null,1,null,null,1,null,1,1,null,null,1,null,null,null,null,null,null,1]
[null,null,1481,null,null,null,null,null,null,null,1,null,null,null,null,1]
[null,null,1486,1,null,null,null,null,null,null,null,null,null,null,null,null,null,1,null,1,1,1,null,1]
[null,null,1491,null,null,null,null,null,null,null,null,null,1,null,1,1,1,null,null,null,null,null,1,null,1,1]
[null,null,1496,null,null,1,null,1,null,null,1,1,1,1,1,1,null,null,1,null,null,null,null,1,1]
[null,null,1502,1,1,1,null,null,1,1,null,1,null,1,null,null,null,null,1,null,null,null,null,1]
[null,null,1506,1,1,1,1,1,1,null,null,1,null,null,null,null,null,null,null,null,null,null,1,1]
[null,null,1509,1,1,1,1,1,null,null,null,null,null,null,null,null,1,1,null,null,null,null,1]
[null,null,1516,null,null,null,null,null,null,null,null,null,1,null,1,1,1,null,null,null,null,null,1,null,1,1]
[null,null,1520,1,null,null,null,1,null,null,1,null,null,null,null,null,1,null,null,null,null,null,1,null,1]
[null,null,1525,1,null,1,1,1,null,1,null,1,null,null,null,null,1,1]
[null,null,1526,null,null,null,null,null,1,1,1,null,null,null,null,null,null,1,null,null,1,1]
[null,null,1533,null,null,null,null,null,null,null,null,1,null,null,null,null,null,1,1,1,1,1]
[null,null,1536,null,null,null,null,null,1,null,1,null,null,null,1,null,null,null,null,null,null,null,1]
[null,null,1540,null,null,null,null,null,null,null,null,null,null,null,null,null,null,1,1,1,null,1,null,1]
[null,null,1545,1,1,1,null,null,null,1,null,null,null,1,1,null,null,null,null,null,null,null,1]
[null,null,1551,null,1,null,null,1,null,null,1,1,1,1,1,1,1,null,null,null,null,null,null,null,1]
[null,null,1555,1,1,null,null,1,null,null,null,1]
[null,null,1560,null,null,null,1,null,null,null,null,null,null,null,null,null,null,1,null,1,null,1]
[null,null,1564,null,null,1,null,null,null,null,1,1,1,1,1,1,1,null,null,null,null,null,1,null,1]
[null,null,1570,1,1,1,1,null,null,1,1,1,null,1,null,null,null,null,null,null,null,1]
[null,null,1575,null,null,null,1,null,1,null,null,null,1,null,1,null,null,null,1,1,null,null,null,1]
[null,null,1580,null,null,null,null,null,null,null,1,1,null,null,null,null,null,null,1,1,1,1,1]
[null,null,1582,1,null,null,null,null,1,null,null,null,null,null,1,null,null,null,1,1,null,null,null,1,1]
[null,null,1585,1,null,null,1,1,1,1]
[null,null,1590,null,null,null,null,null,null,null,null,null,null,1,1,1,1,null,null,null,null,null,1,null,1,1]
[null,null,1595,null,null,null,null,null,null,null,null,null,null,null,null,null,null,1,null,null,1,1,null,null,null,1]
[null,null,1600,null,null,null,1,null,null,null,null,null,null,null,null,null,null,1,1,null,1]
[null,null,1606,1,1,null,null,1,null,null,null,1,1,null,null,null,null,null,null,null,null,null,1]
[null,null,1610,1,null,null,null,null,null,null,1,1,1,1,1,1,1,null,1,null,null,null,null,null,1,1]
[null,null,1613,null,null,null,null,null,null,null,null,null,null,null,null,null,null,1,null,null,1,1]
[null,null,1619,1,1,null,null,null,1,1,1,1,null,1,null,null,null,null,null,null,null,null,1]
[null,null,1624,null,null,null,null,null,null,null,null,1,null,null,null,null,null,null,1,1,1,1]
[null,null,1629,null,null,null,1,null,null,null,1,null,null,null,null,1,null,null,1,1,1,1,1]
[null,null,1635,1,1,1,1,1,1,1,null,null,null,null,null,null,null,null,1,null,null,null,1]
[null,null,1637,1,null,null,1,1,1,1,null,1,null,null,null,null,null,1,1,null,null,null,1]
[null,null,1644,null,null,null,null,null,null,null,null,1,null,null,null,null,null,1,1,null,null,1]
[null,null,1648,1,1,1,1,1,1,1,null,1,1]
[null,null,1649,1,null,null,null,null,null,null,1,1,null,null,null,1,null,null,null,null,null,null,null,1,1]
[null,null,1655,1,1,1,null,null,null,1,null,1,1,1,null,null,null,null,1]
[null,null,1659,null,null,1,null,1,null,null,1,null,1,1,1,null,null,null,null,null,null,null,null,null,null,1]
[null,null,1664,null,1,1,1,null,1,1,null,1,null,null,1,null,null,null,1]
[null,null,1668,1,1,1,null,null,1,1,1,1]
[null,null,1674,null,1,1,1,1,1,null,null,1,null,1,null,null,null,1]
[null,null,1679,1,1,1,1,null,null,null,null,1,null,null,null,null,null,null,null,null,null,null,null,1]
[null,null,1684,null,null,null,null,null,null,null,1,1,null,null,null,null,1,1,null,null,null,null,null,null,1]
[null,null,1686,null,null,null,null,null,1,null,1,null,null,null,1,null,null,null,null,null,null,null,null,1]
[null,null,1694,1,1,null,null,1,1,1,null,1,1,1]
[null,null,1699,null,null,null,null,null,null,null,null,null,null,null,null,null,null,1,1,null,1,null,null,null,null,1]
[null,null,1703,null,null,null,null,null,null,null,null,null,null,null,null,null,null,1,1,1,1,1,null,1]
[null,null,1704,1,1,null,1,null,null,1,null,null,null,null,1,null,null,1,null,null,1,1]
[null,null,1710,null,null,null,null,null,null,null,null,null,null,1,null,null,null,null,null,null,null,null,1,null,1,1]
[null,null,1713,1,null,null,null,null,null,null,null,null,null,null,null,null,null,null,null,1,1,1,null,1]
[null,null,1721,1,1,null,1,null,null,1,null,null,null,null,1,null,null,null,null,null,null,null,1,1]
[null,null,1723,null,null,null,1,null,null,1,1,null,null,null,1,1,null,null,null,null,null,null,1]
[null,null,1728,null,null,null,null,null,null,null,null,null,null,null,null,null,null,1,1,null,1]
[null,null,1733,1,1,1,1,1,1,1,null,null,null,null,null,null,null,null,1,null,1]
[null,null,1738,null,null,1,null,null,null,null,null,null,1,1,null,null,null,null,null,null,null,null,null,null,1,1]
[null,null,1741,1,1,1,1,null,null,1,null,1]
[null,null,1748,null,null,1,null,null,null,null,1,1,null,null,1,null,null,1,1,1,1,1]
[null,null,1752,null,null,null,null,null,null,null,1,null,1,1,null,null,null,null,null,null,null,null,1,1,1]
[null,null,1758,null,null,null,null,null,null,null,1,null,1,1,1,null,1,null,null,null,null,null,1,null,1,1]
[null,null,1759,null,null,null,1,null,null,1,1,1,null,null,null,null,1,null,null,null,null,null,1,null,1]
[null,null,1763,null,null,null,null,null,null,1,1,1,null,1,1,1,1,null,1,null,null,null,null,1]
[null,null,1768,1,1,null,1,1,null,1]
[null,null,1776,null,1,null,1,1,null,1,1,null,null,null,null,1]
[null,null,1778,null,null,1,null,null,1,null,null,1,null,null,null,null,null,1,null,null,null,1,null,1,1]
[null,null,1783,null,null,null,null,null,1,null,1,null,null,null,null,1,null,null,null,null,null,null,1,null,null,1]
[null,null,1788,null,null,null,null,null,null,null,1,null,null,null,null,null,1,1,null,null,null,null,null,null,null,1]
[null,null,1794,1,null,1,null,null,null,null,1,null,1,1,null,null,null,null,null,null,null,null,null,null,null,1]
[null,null,1797,null,null,1,null,null,null,null,null,null,null,1,null,null,null,null,null,null,null,null,1,null,null,1]
[null,null,1803,1,null,null,null,1,null,null,null,null,1,null,null,null,null,null,1,1,1,1,null,1]
[null,null,1807,null,null,null,null,null,null,null,null,null,1,1,null,null,null,null,null,null,null,null,null,1,1,1]
[null,null,1812,null,null,null,null,null,null,null,1,null,null,null,1,null,null,null,null,null,null,null,1]
[null,null,1814,null,null,null,null,null,null,null,null,null,1,1,null,null,null,null,null,null,1,null,null,null,1,1]
[null,null,1822,1,1,null,null,null,null,1,1,null,null,null,null,null,1,null,1,null,null,null,1]
[null,null,1825,null,null,null,null,null,null,null,1,1,null,null,null,1,null,null,null,null,null,null,1,null,1]
[null,null,1827,null,null,null,1,null,null,1,1,1,null,null,1,null,null,null,null,null,null,null,null,null,1,1]
[null,null,1832,null,1,null,1,1,null,null,null,null,1,1,null,null,null,null,1]
[null,null,1837,null,1,null,null,null,1,null,1,1,null,null,null,1,null,null,null,null,null,null,null,1]
[null,null,1842,null,null,1,null,null,null,null,1,null,1,1,1,1,1,1]
[null,null,1849,null,null,null,null,null,null,null,null,null,1,null,1,null,null,1,1,null,null,null,1,1,1,1]
[null,null,1852,null,1,1,1,1,1,1,null,1,null,null,1,null,null,1,1,null,null,null,1]
[null,null,1856,null,1,null,null,null,null,null,null,null,null,null,null,null,null,null,null,null,1,1,null,1]
[null,null,1862,null,1,null,null,null,null,null,1,null,null,null,1,null,null,null,null,null,null,null,null,null,1]
[null,null,1867,1,1,1,1,1,null,1,1,1,null,null,null,null,null,null,null,null,null,null,null,1]
[null,null,1871,1,null,null,null,null,1,null,1,null,1,1,null,null,null,null,null,null,1,null,null,null,1,1]
[null,null,1877,null,null,null,null,null,null,null,null,null,null,null,null,null,null,null,1,1,1,1,null,1]
[null,null,1880,1,1,1,null,null,null,null,null,1,null,null,1,null,null,null,1]
[null,null,1882,null,1,null,null,null,null,null,null,null,null,1,1,null,null,null,null,null,null,null,1,1]
[null,null,1887,1,1,1,1,null,1,1,null,1,null,null,1]
[null,null,1891,null,null,null,1,null,1,1,null,1]
[null,null,1898,null,null,1,null,null,null,null,1,1,1,null,1,null,null,null,null,null,null,1,null,null,1,1]
[null,null,1901,null,null,null,1,null,null,1,1,1,1,1,null,null,null,null,null,null,null,null,1,null,1]
[null,null,1907,1,1,null,null,1,null,1,null,null,null,1,null,1,1,1,1,null,null,null,1]
[null,null,1911,null,null,null,null,null,null,null,null,null,null,1,1,1,null,null,null,null,1,null,1]
[null,null,1916,1,1,1,null,1,null,1,null,1,null,null,null,null,null,null,null,null,null,null,1]
[null,null,1922,null,null,null,1,1,null,null,1,1,null,null,1,1,null,null,null,null,null,null,null,1,1]
[null,null,1926,null,null,null,null,null,null,null,1,null,null,null,null,1,null,null,null,null,null,null,null,1,1]
[null,null,1929,null,1,1,1,null,1,null,null,null,null,null,null,null,null,null,1]
[null,null,1936,1,null,null,1,null,null,null,1,1,1,1,null,null,null,null,null,null,null,null,null,null,1]
[null,null,1940,1,1,1,1,1,1,1,null,1,null,null,null,null,null,1,1]
[null,null,1941,1,null,null,null,1,1,1,null,1,1,1,null,null,null,null,null,null,null,null,1]
[null,null,1946,null,null,null,null,null,null,null,1,null,1,1,null,null,null,null,null,null,null,null,1,1,1,1]
[null,null,1953,1,1,null,null,null,null,null,1,null,null,null,1,null,null,null,null,null,null,null,1,null,1]
[null,null,1956,1,null,null,1,1,1,1,1,1,1]
[null,null,1960,null,null,null,null,null,null,null,1,null,null,null,null,null,null,1,null,1,null,null,1,1]
[null,null,1965,null,null,null,null,1,null,null,1,null,null,null,null,null,1,1,1,1,null,null,null,1]
[null,null,1971,null,null,null,null,null,null,null,1,null,1,null,null,null,null,null,null,null,1]
[null,null,1975,null,null,null,null,null,null,null,1,1,1,1,1,null,1,null,null,null,null,null,null,null,1]
[null,null,1981,null,1,null,1,1,null,1,null,1,null,1,null,null,null,null,null,null,null,null,1]
[null,null,1984,1,null,null,1,1,null,1,null,null,null,null,null,null,null,null,1]
[null,null,1990,null,null,1,null,null,1,1,null,1,null,null,null,null,null,1,1,null,null,null,null,1]
[null,null,1995,null,null,null,null,null,null,null,1,null,1,1,1,1,null,null,null,null,null,null,1,null,1,1]
[null,null,2000,1,1,1,null,1,null,null,1,1,null,null,1,null,null,1]
[null,null,2002,null,null,null,1,null,null,1,null,null,1,null,null,1,1,null,null,null,1,null,null,null,1,1]
[null,null,2005,null,null,null,null,null,1,null,null,null,null,null,null,null,null,1,null,1,null,1,null,1]
[null,null,2013,null,null,null,null,null,null,null,1,null,1,1,null,1,null,null,null,1,null,null,1,1,1,1]
[null,null,2015,1,1,1,1,1,1,null,1,1,null,null,1,1]
[null,null,2020,null,null,null,null,null,null,null,null,null,null,null,null,null,null,null,1,1,1,1,1,1,1]
[null,null,2026,1,null,null,1,null,null,null,1,null,1,null,1,1,1,null,null,null,null,null,null,1,1]
[null,null,2030,null,null,null,null,null,1,1,null,null,null,null,1,null,null,null,1]
[null,null,2033,1,1,1,1,null,null,null,null,null,1,1,null,null,null,null,1,null,null,null,1]
[null,null,2040,null,null,null,1,null,null,null,1,null,null,null,null,1,null,null,1,null,1,null,1,1,1]
[null,null,2044,1,1,null,1,1,1,1,null,1,null,null,null,null,null,1]
[null,null,2049,1,null,null,1,null,null,null,1,null,null,null,1,null,1,null,null,null,null,null,null,null,1,1]
[null,null,2055,null,1,null,null,null,null,null,null,null,1,null,1,null,1,null,1,null,null,null,null,null,1,1]
[null,null,2057,null,1,null,null,null,null,1,1,1,null,null,1,null,null,null,null,null,null,null,1,null,null,1]
[null,null,2064,null,null,1,null,null,null,null,1,null,null,null,null,null,1,null,null,null,null,null,1,null,1]
[null,null,2068,null,null,null,null,1,null,1,1,null,null,null,null,1,null,1,1,null,null,null,1]
[null,null,2069,null,null,null,null,null,null,null,1,null,1,1,1,null,1,null,null,null,1,null,1,null,1,1]
[null,null,2075,null,null,null,null,null,null,null,1,null,1,1,1,null,null,null,null,null,null,null,1,null,1]
[null,null,2079,null,null,null,null,null,null,null,null,null,null,null,null,null,null,null,null,1,null,1]
[null,null,2084,null,null,null,null,null,null,1,null,null,null,null,null,null,null,1,1,null,1,1,1]
[null,null,2088,null,1,null,null,null,null,null,1,null,1,1,null,1,null,null,null,null,null,null,null,null,1,1]
[null,null,2094,1,null,null,1,null,null,1,1,null,1,1,1,null,null,null,null,null,null,null,1,null,1]
[null,null,2099,null,1,null,null,null,null,null,null,null,null,null,null,null,null,1,1,1,null,1]
[null,null,2104,null,1,null,null,null,null,null,null,null,null,null,null,null,null,null,1,null,1,1,1,1]
[null,null,2106,null,1,null,1,1,null,null,null,1,null,null,null,null,null,1,1,1]
[null,null,2114,null,null,null,1,null,null,null,null,null,null,null,null,null,null,1,1,1,1]
[null,null,2117,null,null,null,null,null,null,null,1,null,1,1,1,null,null,null,null,null,null,null,null,1,1,1]
[null,null,2123,1,null,1,null,1,1,null,null,1,null,null,null,null,null,null,1]
[null,null,2124,1,null,null,1,1,1,null,1,1,1,1,1,1,1,null,null,null,null,null,1,null,1,1]
[null,null,2130,null,null,null,null,null,1,null,1,null,null,null,null,null,1,null,null,null,null,null,1,null,null,1]
[null,null,2134,1,1,null,1,1,null,null,null,1,1,null,null,null,null,1]
[null,null,2141,1,1,1,1,1,null,1,null,1,1,null,1,null,null,null,null,null,1]
[null,null,2143,1,1,1,1,1,null,1,1,1]
[null,null,2148,null,null,null,null,null,null,null,null,null,null,1,null,null,null,null,null,null,null,1,1,null,1,1]
[null,null,2153,null,null,null,null,null,null,1,null,null,null,null,null,null,null,null,1,1,null,1]
[null,null,2159,null,null,null,1,null,null,null,null,null,null,null,null,1,null,null,1,null,null,1,1,1]
[null,null,2161,1,null,null,1,1,null,1,1,1,null,null,1,null,null,null,1]
[null,null,2168,null,null,1,null,1,null,1,null,null,null,1,null,null,1,null,null,null,null,null,null,null,1,1]
[null,null,2172,null,null,1,null,null,1,1,1,null,1,1,1,1,1,null,null,1,null,null,1,null,1,1]
[null,null,2178,1,null,null,1,1,1,null,null,null,null,1,null,null,null,1,null,null,null,1,1]
[null,null,2179,1,null,null,1,1,1,null,null,1]
[null,null,2183,null,1,1,null,null,null,null,1,null,null,null,null,null,null,null,null,null,null,1,null,1]
[null,null,2188,1,1,1,1,1,null,1,1,1]
[null,null,2196,null,null,null,null,null,null,null,null,null,null,null,null,null,null,null,1,1,1,null,null,1]
[null,null,2198,1,1,1,null,1,1,1,null,null,null,1,null,1,null,null,1,null,null,null,1,1]
[null,null,2203,null,null,1,1,null,1,1,1,null,null,null,null,null,1,null,null,1,null,null,1]
[null,null,2208,1,null,null,1,null,1,null,1,null,null,1,1,null,null,null,1,null,null,null,null,null,1]
[null,null,2214,1,null,1,1,1,null,null,null,1,null,null,null,null,null,1,1,1,1,1,null,1]
[null,null,2217,null,1,1,null,null,null,null,1,1,null,1,null,null,null,null,1,null,null,null,null,1,null,1]
[null,null,2221,1,null,1,1,1,1,1,null,1,null,null,null,null,null,null,1,null,null,null,null,1]
[null,null,2227,null,null,1,null,null,null,null,1,1,1]
[null,null,2233,null,null,null,null,null,null,null,null,null,1,1,1,null,null,1,null,null,null,null,1,null,1,1]
[null,null,2234,null,null,null,null,null,null,null,null,null,null,null,null,null,null,1,null,1,null,1,null,1,1]
[null,null,2242,null,null,1,null,null,null,null,null,1,1,1,1,null,1,1,null,null,1,null,1,null,1,1]
[null,null,2245,null,1,null,null,null,null,null,null,null,null,null,null,null,null,null,1,1,null,1]
[null,null,2247,1,null,null,null,1,null,1,null,null,null,null,null,null,null,1,1,null,1]
[null,null,2252,null,null,null,null,null,null,1,1,null,1,1,null,1,null,null,null,null,null,null,1,null,1,1]
[null,null,2257,1,1,1,1,1,1,null,null,1,null,1,null,null,null,1,null,null,null,null,null,1,1]
[null,null,2262,null,null,null,null,null,null,null,null,null,1,null,1,null,1,null,null,null,null,null,1,1,1,1]
[null,null,2269,1,null,null,null,1,null,1,1,null,1,1,1,null,null,null,null,null,null,null,1,null,1]
[null,null,2272,1,1,1,1,null,null,null,1,1,null,null,null,1,null,null,null,null,null,null,1]
[null,null,2276,1,1,1,1,null,1,null,null,null,null,null,null,null,null,1,1,null,null,null,1,1]
[null,null,2282,null,null,1,null,null,null,null,null,null,null,null,null,null,null,null,null,null,1,null,null,1]
[null,null,2287,1,1,1,null,1,1,1,null,1,null,null,null,null,null,null,1,null,null,null,1]
[null,null,2292,null,null,null,null,null,null,null,null,null,1,null,null,null,null,null,1,1,null,1,null,1]
[null,null,2297,1,1,1,1,1,null,1,null,1]
[null,null,2300,null,null,null,null,null,null,null,1,null,null,null,1,null,null,1,null,null,null,null,null,1,1]
[null,null,2302,null,null,null,null,null,null,null,null,null,null,null,null,null,null,1,1,1,null,1]
[null,null,2307,null,null,null,null,null,null,null,1,1,null,null,null,1,null,null,null,null,null,null,1,null,1]
[null,null,2312,1,1,1,1,1,1,1,1,null,null,null,1,null,null,null,1,null,null,null,1]
[null,null,2318,null,null,null,null,1,null,null,null,null,null,1,1,1,null,null,null,null,null,null,null,1,1]
[null,null,2321,null,null,null,null,null,null,null,null,null,1,1,null,null,null,null,null,null,null,1,1,null,1,1]
[null,null,2325,1,1,1,null,null,null,1,null,1,null,null,null,null,null,1,1,null,null,null,1]
[null,null,2331,1,null,null,1,1,1,null,null,1,null,null,null,null,null,1]
[null,null,2336,null,1,null,null,null,null,null,null,null,null,null,null,null,null,null,null,null,1,1,null,1]
[null,null,2342,null,1,1,null,1,1,1,1,1,null,null,null,null,null,null,null,null,null,null,null,1]
[null,null,2346,null,null,1,null,null,null,null,1,null,1,null,1,null,null,null,null,null,null,null,1,null,1,1]
[null,null,2349,null,null,null,null,null,null,null,1,null,null,1,null,null,null,null,null,null,null,null,null,null,1,1]
[null,null,2356,null,null,null,null,1,null,null,null,1,null,null,null,null,null,null,null,null,1,1,1,1]
[null,null,2360,null,null,null,null,null,null,null,null,null,null,null,null,null,null,null,null,1,1,1]
[null,null,2361,null,1,null,1,1,null,1,null,null,1,null,null,null,null,1,1,null,null,null,null,1,1]
[null,null,2366,null,null,null,null,null,null,null,null,null,1,null,1,null,1,1,null,null,null,null,null,1,1,1]
[null,null,2373,1,1,1,1,null,null,1,null,1,null,null,null,1,null,null,1,null,null,null,1,1]
[null,null,2376,null,null,null,1,null,null,null,1,null,null,null,null,null,1,null,null,null,null,null,1]
[null,null,2380,null,null,null,1,null,null,null,1,null,null,null,null,1]
[null,null,2386,1,1,1,1,1,1,1,null,null,1,null,null,null,null,1,null,null,null,null,1]
[null,null,2391,null,null,null,null,null,null,null,null,null,null,null,null,null,null,null,1,1,1]
[null,null,2395,null,null,null,null,null,null,null,null,null,null,null,null,1,null,null,null,1,null,1,1]
[null,null,2401,null,null,1,null,null,null,null,1,null,1,1,null,null,null,null,null,null,null,null,1,1,1,1]
[null,null,2404,1,null,null,null,null,null,null,1,null,1,null,null,null,null,null,null,null,null,null,null,null,1,1]
[null,null,2411,null,null,null,1,1,1,1,null,1,null,null,1,null,null,null,null,null,null,1,1]
[null,null,2415,null,null,null,null,null,1,1,null,null,null,null,null,1,null,null,null,1,null,null,1,null,1]
[null,null,2420,1,1,1,null,1,null,1,1,1,null,null,null,null,null,null,1,null,null,1]
[null,null,2422,null,null,null,null,null,1,null,1,1,1,1,1,1,null,null,null,null,1,null,null,null,null,1]
[null,null,2425,null,null,null,null,null,null,null,null,null,null,null,null,null,null,null,1,1,1,1,1,1]
[null,null,2433,null,null,null,1,null,null,null,1,1,null,null,null,null,1,null,null,null,null,null,1]
[null,null,2435,null,1,null,null,null,null,1,1,null,null,null,1,null,null,1,1,null,null,1,null,1]
[null,null,2440,null,null,null,null,1,1,null,null,null,1,null,1,null,null,1,1,1,1,null,null,1,null,1]
[null,null,2446,null,null,null,null,null,null,null,null,null,null,null,null,null,null,null,1,null,1,null,null,1]
[null,null,2450,1,null,1,1,1,1,1,null,null,null,1,null,null,null,1,null,null,null,null,1,1,null,1]
[null,null,2453,null,null,null,null,1,null,null,null,null,1,null,null,null,null,null,null,null,null,1,1,null,1,1]
[null,null,2460,1,1,1,1,1,null,null,null,1]
[null,null,2464,null,null,null,null,null,null,null,1,null,1,null,1,1,1,null,null,null,null,null,1,null,1,1]
[null,null,2469,null,null,1,null,1,null,null,1,null,1,1,null,null,null,null,null,null,null,null,null,null,1,1]
[null,null,2475,1,1,1,null,1,null,null,null,1,1,null,null,null,null,1,null,null,null,null,null,1]
[null,null,2477,null,null,null,null,null,null,null,null,null,null,null,null,null,1,1,null,null,null,null,1,1]
[null,null,2480,1,null,null,null,null,null,null,null,null,1,null,null,null,null,1,1,1,null,null,1,1,1]
[null,null,2488,1,null,null,1,1,null,null,1,1,1,null,null,null,1,null,null,1,1,1,1,1]
[null,null,2489,1,1,1,1,1,null,null,null,1,1,null,1,null,null,null,1]
[null,null,2495,null,null,1,1,1,1,1,null,1,null,null,null,null,null,null,1,null,1]
[null,null,2499,null,null,null,null,null,null,null,1,1,1,null,null,1,1,null,null,1,null,null,null,null,1,1]
[null,null,2505,1,null,null,1,null,null,null,1,null,1,null,1,null,null,null,null,null,null,null,null,null,1]
[null,null,2508,null,null,null,1,null,null,null,null,null,null,null,null,null,null,1,1,null,1]
[null,null,2514,null,1,1,null,null,null,1,1,null,1,1,null,null,null,null,null,null,null,null,null,null,1,1]
[null,null,2519,null,null,null,null,null,1,null,1,1,1,1,1,null,1,null,null,null,null,null,null,null,null,1]
[null,null,2524,1,1,null,1,1,null,1,null,1,null,null,null,null,null,null,null,null,null,null,1]
[null,null,2526,null,1,null,null,null,1,null,null,null,null,null,null,null,null,1,null,null,1,1]
[null,null,2534,1,1,1,1,1,1,1,null,1,null,null,1,null,null,1,1,null,null,null,1]
[null,null,2537,1,1,1,null,1,null,null,null,1]
[null,null,2539,1,1,1,null,null,1,null,1,null,null,null,null,1,null,null,1,null,1,1,null,1]
[null,null,2544,null,null,null,null,1,null,null,null,null,null,null,1,1,1,null,null,1,null,null,1,1,null,1]
[null,null,2550,null,1,null,null,1,null,1,null,null,null,null,null,null,null,1,1,1,null,1,null,1]
[null,null,2554,1,null,null,null,null,1,null,1,1,1,1,1,1,1,null,null,null,null,null,1,null,1]
[null,null,2561,1,1,1,1,1,1,1,1,1,null,null,null,1]
[null,null,2564,null,null,null,null,null,null,null,null,null,1,1,null,null,null,null,null,null,null,null,1,null,1,1]
[null,null,2568,null,null,null,null,null,null,null,1,null,null,null,null,null,1,null,null,null,null,null,1,null,1]
[null,null,2573,null,null,null,null,null,null,null,1,null,1,1,null,null,null,null,null,null,null,null,null,null,1,1]
[null,null,2579,null,1,1,1,null,null,1,null,1,null,null,null,null,null,1,null,null,null,null,1]
[null,null,2581,null,null,null,null,null,null,1,1,null,null,null,1,null,null,null,null,null,null,null,null,null,1]
[null,null,2588,1,null,null,null,1,null,1,1,null,null,1,null,null,null,null,null,null,null,null,null,1,1]
[null,null,2592,1,1,1,1,1,null,null,null,1,null,1]
[null,null,2598,null,null,null,null,null,null,null,1,null,1,1,null,1,null,null,null,1,null,null,null,1,1,1]
[null,null,2599,null,1,1,1,1,null,1,null,null,null,1,null,null,null,1]
[null,null,2603,null,null,null,null,null,null,null,null,null,null,null,null,null,1,null,1,1,1,null,null,1]
[null,null,2608,1,1,1,1,null,1,1,null,null,1,1]
[null,null,2616,null,null,null,null,1,null,null,null,null,null,null,null,null,null,1,1,1,1,1,null,1]
[null,null,2618,null,null,null,null,null,null,null,null,null,null,null,null,null,null,null,1,1,1,1,null,1]
[null,null,2623,1,1,1,null,null,1,null,1,null,null,null,null,1,null,null,null,null,null,null,null,null,null,1]
[null,null,2628,1,null,null,null,null,null,1,null,1,1,1,1,1,1,1,null,1,null,1,1,1,1,1]
[null,null,2634,1,1,null,1,1,1,null,null,null,null,null,null,null,null,1,1,1,1,null,1,1]
[null,null,2638,null,null,null,null,null,null,null,null,null,null,null,null,null,null,null,null,null,1,1]
[null,null,2641,null,null,1,null,null,null,null,1,null,1,null,1,null,1,null,null,null,null,null,1,1,1,1]
[null,null,2647,1,1,1,1,null,1,1,null,1,null,1,null,null,null,null,1,null,null,null,1,1]
[null,null,2653,1,1,1,1,1,1,1,1,1,null,null,null,null,1,null,null,null,null,null,null,null,null,1]
[null,null,2654,null,null,null,null,null,null,null,null,null,null,null,null,null,null,1,1,1,null,1,null,1]
[null,null,2658,1,null,null,1,null,null,null,1,null,null,null,1,null,null,null,null,null,null,null,null,1]
[null,null,2665,null,null,1,null,1,null,null,null,null,null,null,null,null,null,1,1,null,1,1]
[null,null,2667,1,1,1,1,null,null,null,1,1,null,1,null,null,null,1,1]
[null,null,2672,null,null,null,1,null,null,1,null,null,null,null,null,null,null,1,1,null,null,1,null,1,null,1]
[null,null,2677,1,null,null,null,null,null,1,1,null,1,1,null,null,null,null,null,null,null,null,1,null,1]
[null,null,2682,1,1,1,null,1,null,1,1,1,null,null,null,null,1,null,null,null,1]
[null,null,2689,1,null,1,1,null,1,null,null,1,null,null,null,null,null,null,null,null,null,null,1]
[null,null,2692,null,null,null,null,null,1,1,1,null,null,1,null,null,null,null,null,null,null,null,null,1,1,1]
[null,null,2696,1,1,1,null,1,1,1,null,1,null,null,null,null,null,null,null,null,null,null,null,null,1]
[null,null,2702,null,1,null,null,null,null,null,1,null,null,null,null,1,null,null,1,1,null,null,null,1,1]
[null,null,2707,null,null,null,null,null,null,null,1,null,1,null,null,null,null,null,null,null,null,null,1,null,1,1]
[null,null,2712,1,1,null,null,null,1,null,1,1,null,null,1,null,1,null,1,null,null,null,null,1]
[null,null,2717,null,null,1,1,1,1,null,1,1,null,null,null,null,null,1]
[null,null,2720,1,1,null,1,1,null,1,null,1,1,1,null,1,1,null,1]
[null,null,2722,null,null,1,null,null,1,1,1,1,1,null,null,1,null,null,null,null,null,1,1,1,1,1]
[null,null,2727,null,1,null,null,1,null,null,1,null,null,null,1,null,null,null,null,null,null,null,1]
[null,null,2732,null,null,null,null,null,null,null,null,null,null,null,null,null,null,1,1,1,1,1]
[null,null,2738,1,1,1,1,1,1,1,null,1,null,null,null,null,null,1]
[null,null,2741,1,1,1,null,null,null,1,null,1,null,null,null,1,null,1]
[null,null,2745,null,null,null,null,1,null,null,1,null,null,1,1,null,null,null,null,1,null,null,null,1,1,1]
[null,null,2751,1,null,null,null,null,null,1,null,null,null,null,null,null,1,null,1,1,null,null,null,1,null,1]
[null,null,2757,1,1,1,1,1,null,1,null,1,null,null,1,null,null,1,null,null,null,null,1]
[null,null,2762,null,1,null,1,null,null,1,null,null,1,null,1,null,null,null,null,null,null,null,null,null,null,1]
[null,null,2766,null,null,null,1,null,null,null,1,1,1,1,1,1,null,1,1,null,null,null,1]
[null,null,2769,null,1,null,null,null,null,null,1,null,1,1,null,null,1,null,null,null,null,1,null,1,null,1]
[null,null,2776,null,1,null,null,1,1,1,null,1,null,null,null,null,null,1,1]
[null,null,2780,1,null,null,1,null,null,null,null,null,null,null,1,null,null,1,1,null,1]
[null,null,2781,1,null,null,null,null,null,null,null,null,null,null,null,null,null,1,null,1,1,1,1,1]
[null,null,2786,1,null,null,1,1,null,null,null,1,null,null,null,null,null,1,1,1]
[null,null,2793,1,null,null,1,1,null,null,1,null,null,null,null,1]
[null,null,2796,null,null,null,null,null,null,null,null,1,null,null,null,null,null,null,null,1,1,1,null,1]
[null,null,2800,null,null,null,null,null,null,null,1,null,null,1,null,1,null,1,null,null,null,null,null,null,1,1]
[null,null,2806,1,1,null,1,1,null,1,null,null,null,null,null,null,null,null,1]
[null,null,2811,1,1,1,1,1,1,1,1,1,null,null,null,null,null,null,null,null,1,null,null,null,null,1]
[null,null,2816,null,null,null,null,null,1,null,null,null,null,null,1,1,null,null,1,null,1,null,1,1]
[null,null,2821,1,1,null,null,1,null,null,null,null,null,1,null,null,null,null,null,null,null,null,1]
[null,null,2824,null,null,null,null,null,null,null,1,1,null,null,null,1,null,null,null,null,null,null,null,1,1,1]
[null,null,2831,1,1,1,1,null,null,1,null,1,null,null,null,1,null,1,null,null,1,1,1]
[null,null,2835,1,1,1,1,null,1,null,null,1,null,null,null,null,null,null,1,null,null,1,1]
[null,null,2840,null,null,null,null,null,null,null,1,1,null,null,null,null,1,null,1,1]
[null,null,2842,null,null,null,null,null,null,null,1,null,null,null,null,null,1,null,null,null,null,null,1]
[null,null,2845,1,1,1,null,null,null,null,null,null,null,1]
[null,null,2853,null,1,null,null,1,null,null,1,null,null,null,null,1,null,null,null,null,null,null,null,1,1]
[null,null,2855,null,null,null,null,null,null,1,null,null,null,1,1,null,1,null,null,null,1,null,1,null,1]
[null,null,2860,null,null,1,1,null,null,1,null,null,null,null,null,1]
[null,null,2866,null,null,1,null,1,null,null,1,1,1,1,1,1,1,null,1,null,null,null,null,1,null,1]
[null,null,2870,null,null,null,null,null,null,null,1,null,null,1,1,null,1,null,null,null,null,null,null,null,null,1]
[null,null,2873,1,1,null,1,null,1,1,null,1,1,1,null,null,null,null,1]
[null,null,2880,1,1,null,null,null,null,1,1,1,null,1,1,1,null,null,null,null,null,null,1]
[null,null,2884,null,null,null,null,null,null,null,1,null,1,1,1,null,null,null,null,null,1,null,1,null,1,1]
[null,null,2890,1,1,null,1,1,1,1,null,1,null,1,1,null,null,null,1]
[null,null,2895,null,1,null,null,null,null,null,null,null,null,null,null,null,null,1,1,1,1,null,null,1]
[null,null,2897,1,null,1,1,1,null,1,null,null,null,null,null,null,null,null,1]
[null,null,2900,null,null,null,1,1,null,1,null,null,null,null,null,null,null,1,null,null,null,null,null,1]
[null,null,2908,null,1,1,null,null,1,1,null,null,1,null,null,null,null,null,null,1,null,1]
[null,null,2910,1,null,1,null,1,1,1,null,1,null,1]
[null,null,2915,1,null,null,1,1,null,1,null,1]
[null,null,2919,null,null,null,null,null,null,null,1,null,null,null,null,1,1,null,null,null,null,null,1,null,null,1]
[null,null,2926,1,1,1,1,null,null,1,null,1,null,null,1,1,null,1,null,null,null,null,1]
[null,null,2929,null,null,null,1,null,null,null,1,1,1,1,1,1,1,null,null,null,null,null,1,null,1,1]
[null,null,2934,null,null,1,null,null,null,1,null,null,1,null,null,null,null,1,1,null,1,1,1,1,1]
[null,null,2939,1,null,1,1,1,1,null,null,1,null,null,null,null,null,null,null,null,null,null,1,1]
[null,null,2944,null,null,null,1,null,null,1,null,1,1,null,1,1,null,1,1,null,null,null,1,null,1,1]
[null,null,2946,null,null,1,null,1,1,null,1,null,1,null,null,null,null,1,1]
[null,null,2954,null,1,null,null,null,null,null,null,null,1,1,null,1,null,null,null,null,null,null,1,null,1,1]
[null,null,2957,null,null,null,null,null,null,null,1,null,1,1,null,null,null,null,null,1,null,null,1,null,1,1]
[null,null,2959,1,1,1,1,null,null,1,1,1,1,1,1]
[null,null,2964,null,null,null,null,null,null,null,1,null,1,1,null,null,null,null,null,null,null,null,1,1,1,1]
[null,null,2970,null,null,null,null,null,1,null,null,null,null,null,1,null,null,null,null,null,null,null,1,null,1]
[null,null,2974,1,1,1,1,1,null,1,null,null,null,1,null,null,null,null,1]
[null,null,2981,1,1,1,null,1,null,null,null,null,1,null,null,1,1,null,1]
[null,null,2984,1,1,null,1,1,1,1,null,null,null,null,null,null,null,null,1,null,null,1]
[null,null,2988,null,null,null,null,null,null,null,1,null,null,null,null,null,null,null,null,1,null,1]
[null,null,2993,null,null,null,null,null,null,null,1,null,null,null,null,null,null,null,null,1,1,1,null,null,null,1]
[null,null,2999,null,null,null,null,null,null,null,null,null,null,null,null,null,null,null,null,null,1,1]
[null,null,3001,null,null,null,null,null,null,null,null,1,null,null,1,null,1,null,null,null,null,null,null,null,null,1]
[null,null,3009,null,null,null,null,null,null,null,1,null,null,null,null,1,null,null,null,null,null,null,1]
[null,null,3012,1,1,null,null,1,1,null,1,1,1,1,null,null,null,null,null,null,null,null,1,1]
[null,null,3018,1,1,1,1,1,null,1,null,1,null,null,null,null,null,null,null,null,null,null,1]
[null,null,3019,null,null,null,1,null,null,1,null,1,null,null,1,1,null,null,null,null,null,null,1,null,1,1]
[null,null,3023,null,null,null,null,1,null,null,1,null,null,null,null,1,null,null,null,null,1,null,null,null,1]
[null,null,3030,null,1,1,1,1,1,1,null,1,null,1,null,null,null,null,null,1]
[null,null,3033,null,1,1,1,null,1,1,null,1,null,null,1,null,1]
[null,null,3038,1,1,1,1,1,1,null,null,1,null,1,1,null,1,null,1,null,null,1]
[null,null,3043,null,null,null,null,null,null,null,null,null,null,null,null,null,null,1,null,1,1,1,null,1]
[null,null,3048,null,null,null,null,null,null,null,1,null,1,1,1,1,1,null,1,null,1,null,1,null,1]
[null,null,3054,null,null,null,1,1,null,null,1,null,1,null,1,null,1,null,null,null,null,null,1,1]
[null,null,3058,1,1,1,1,null,null,1,null,1,1,null,null,null,null,null,null,null,null,null,1]
[null,null,3061,1,1,null,1,1,1,null,null,null,null,null,null,1,null,null,1]
[null,null,3068,null,null,null,null,null,null,null,null,null,null,null,null,null,null,1,1,null,1]
[null,null,3073,null,null,null,null,null,1,null,1,null,null,1,null,null,null,null,null,null,null,1,1,1]
[null,null,3074,null,null,1,null,null,1,1,1,null,null,null,null,null,1,null,null,null,null,null,1,1,1,1]
[null,null,3078,null,1,null,1,1,1,null,null,1,null,null,null,null,null,1]
[null,null,3085,null,null,null,null,null,null,1,null,null,1,null,1,null,1,null,1,null,null,null,1,1,1,1]
[null,null,3087,null,null,1,null,null,null,null,null,null,null,null,null,null,null,1,null,1,1,null,null,null,null,1]
[null,null,3092,null,null,null,1,null,null,null,null,null,null,null,1,null,null,1,null,1,1,null,1,1,1]
[null,null,3097,null,null,null,null,null,null,null,1,null,null,null,null,1,null,null,null,null,null,null,null,null,1]
[null,null,3103,null,null,null,null,1,null,null,null,null,null,null,null,null,null,null,1,null,1,null,1]
[null,null,3109,null,null,null,null,null,null,null,null,null,null,null,1,null,null,null,null,null,null,null,1,null,1,1]
[null,null,3112,null,null,null,null,null,1,null,null,null,null,null,null,null,null,1,1,null,1,1,1,1]
[null,null,3116,null,1,null,null,null,null,1,null,1,null,null,null,null,null,1,null,null,1,1]
[null,null,3122,null,null,null,null,null,null,null,null,1,null,null,null,null,null,null,1,1,1,null,1,1]
[null,null,3127,null,null,1,null,1,null,null,null,null,1,null,1,null,null,1,null,null,null,null,null,1]
[null,null,3132,null,null,null,null,null,1,1,null,1,1]
[null,null,3134,null,null,null,null,null,null,null,1,null,1,null,null,null,null,null,null,null,null,null,1,null,1,1]
[null,null,3137,null,null,null,null,null,null,null,1,null,null,null,null,null,1,null,null,null,null,null,null,1,1]
[null,null,3142,null,null,1,null,1,null,1,null,1,null,null,null,null,null,null,null,null,null,null,1]
[null,null,3147,null,null,null,null,null,null,null,null,null,null,1,1,null,null,null,null,null,null,null,1,null,null,1]
[null,null,3152,null,null,null,null,null,null,null,null,null,1,1,null,1,null,null,null,null,null,null,null,null,1,1]
[null,null,3158,1,1,1,null,1,1,1,null,1,1,null,1]
[null,null,3162,null,null,null,null,null,1,null,1,null,1,1,1,null,1,null,1,null,null,null,1]
[null,null,3165,1,1,null,1,1,null,null,null,null,null,1,1,null,null,1,null,1]
[null,null,3171,1,1,1,null,1,1,null,null,null,null,null,null,null,null,null,null,null,null,null,1]
[null,null,3177,null,null,null,1,null,null,null,null,null,null,1,1,1,1,null,null,null,null,null,null,1]
[null,null,3182,null,1,1,1,1,1,1,null,1,null,null,1,null,1,1]
[null,null,3186,null,null,1,null,null,null,null,null,null,null,null,null,null,null,1,1,1,null,null,1]
[null,null,3189,1,1,1,1,null,1,1,1,1,1,1,null,1,null,null,null,null,null,null,1]
[null,null,3196,null,null,null,1,null,null,1,null,1,null,null,1,null,null,1,null,null,null,1,1,1]
[null,null,3200,null,null,null,null,null,1,null,null,null,null,null,null,null,null,null,1,null,null,null,null,1]
[null,null,3201,null,1,null,null,1,1,1,null,null,null,null,null,null,null,1,null,null,null,null,null,1]
[null,null,3206,1,null,null,1,null,null,null,null,1,1,null,null,1,1,null,null,null,1,null,1,1,1,1]
[null,null,3213,null,null,null,null,null,null,null,1,1,null,1,null,null,1,null,null,null,null,null,1,null,1]
[null,null,3216,null,null,null,null,null,null,null,null,null,null,null,null,null,null,1,1,1,1,1]
[null,null,3220,null,1,null,1,null,null,null,null,null,null,null,null,1,null,1,1,1,null,null,null,1]
[null,null,3226,null,1,1,null,null,1,null,null,null,null,null,null,1,null,1,1,null,null,1]
[null,null,3231,null,1,1,null,null,1,1,null,1]
[null,null,3236,null,null,null,null,null,null,null,null,null,1,null,null,null,null,1,null,null,1,null,null,1]
[null,null,3238,null,null,null,1,null,1,null,1,null,null,null,1,null,null,1,null,null,1,null,null,1,1]
[null,null,3245,null,null,null,null,null,null,null,1,1,1,1,null,null,null,null,null,null,null,null,1,null,1,1]
[null,null,3251,1,1,1,null,1,1,1,null,1,null,null,null,null,null,1]
[null,null,3255,null,null,null,null,null,null,null,1,null,null,null,null,null,1,null,null,null,null,null,null,null,1]
[null,null,3256,null,null,null,null,null,null,null,null,null,1,1,1,null,null,null,null,null,null,null,null,1,1,1]
[null,null,3262,null,null,null,1,null,null,null,null,null,null,null,null,null,null,1,1,null,1,1]
[null,null,3265,null,null,null,null,null,null,null,1,1,null,null,null,null,1,null,null,null,null,null,1,null,1]
[null,null,3273,1,null,null,null,null,null,null,null,null,null,null,null,null,null,null,null,1,null,1]
[null,null,3275,null,1,null,null,null,null,null,null,null,null,null,null,null,null,1,1,null,null,1,null,1]
[null,null,3280,null,1,null,null,null,null,null,1,1,null,1,1,1,1,null,null,null,1,null,1,1]
[null,null,3286,1,1,1,1,null,1,1,null,1,null,null,null,null,null,null,null,null,null,null,1]
[null,null,3290,1,null,1,1,null,1,1,null,1,null,null,null,null,null,1,null,null,null,1,1]
[null,null,3293,null,null,null,null,null,null,null,1,null,null,1,1,null,null,null,null,null,null,null,null,null,1]
[null,null,3300,null,1,null,null,null,null,null,null,null,null,null,null,null,null,null,1,null,1,1]
[null,null,3304,null,null,null,null,null,null,null,null,null,null,null,null,null,null,1,1,1]
[null,null,3310,null,null,null,null,null,1,null,1,null,1,null,null,null,null,null,null,null,null,null,null,1,1,1]
[null,null,3315,null,1,null,1,null,null,null,null,null,null,null,null,null,null,1,null,null,null,1,1]
[null,null,3317,1,1,1,1,1,null,null,null,1,null,null,1,null,null,null,1,null,1,null,1]
[null,null,3320,1,null,null,null,null,null,1,1,null,1,1,null,null,null,null,null,null,null,null,null,null,null,1]
[null,null,3328,1,null,null,null,null,null,null,null,null,null,null,null,null,null,1,1,null,1,1]
[null,null,3330,1,1,1,1,null,null,1,null,1,1,1,null,null,null,null,null,null,null,1]
[null,null,3335,null,1,null,1,null,null,null,null,1,null,null,1,null,null,null,null,null,null,null,1,1,1,1]
[null,null,3339,null,null,null,null,null,null,null,null,null,1,null,null,null,null,null,1,null,1,1,null,1]
[null,null,3346,1,1,1,1,null,1,1,null,1,null,null,1,null,null,1]
[null,null,3349,null,null,null,null,null,null,null,1,null,1,1,1,null,1,null,null,null,null,null,1,null,1,1]
[null,null,3355,null,null,null,null,null,null,null,null,null,null,null,null,null,null,1,null,1,1,1,null,null,null,1]
[null,null,3359,1,1,1,null,1,1,null,null,1,null,null,null,null,null,null,1]
[null,null,3364,null,1,null,null,null,null,null,null,1,null,null,null,null,null,1,null,null,1,null,null,1]
[null,null,3366,1,1,1,1,1,null,1,null,null,null,null,1,null,null,null,null,null,1]
[null,null,3374,1,1,1,null,1,null,1,1,null,1,null,null,null,null,1]
[null,null,3377,null,null,null,null,null,null,null,null,1,null,null,null,1,null,null,null,null,null,null,1,null,null,1]
[null,null,3379,null,null,null,null,null,null,null,null,null,null,null,null,null,null,null,1,null,1,1]
[null,null,3384,1,1,null,null,null,1,1,null,1,null,null,1,null,null,null,1]
[null,null,3390,1,1,1,null,1,1,null,null,1,null,null,null,null,null,null,null,null,null,null,null,1]
[null,null,3394,null,null,null,null,null,null,null,null,null,null,null,null,null,null,1,1,null,null,1,null,1]
[null,null,3401,1,null,null,null,null,null,null,null,null,null,null,null,null,null,null,null,1,1,1]
[null,null,3404,null,null,null,1,null,null,null,null,1,null,null,1,null,1,null,null,null,null,null,1,1,1]
[null,null,3408,null,null,null,null,null,null,null,null,null,null,null,null,null,null,null,1,null,null,1]
[null,null,3414,1,1,null,null,null,1,1,null,null,null,null,null,null,null,1,1,null,null,1,null,1]
[null,null,3419,1,1,null,1,null,1,1,null,1,null,1,null,null,null,null,null,null,null,null,null,1]
[null,null,3421,null,null,null,null,null,null,null,1,null,1,1,1,1,1,null,null,null,null,null,1,null,1,1]
[null,null,3429,1,1,1,1,1,null,1,null,null,null,null,null,null,null,null,null,null,1]
[null,null,3432,null,null,1,null,null,null,null,null,null,1,null,null,1,null,1,null,null,null,null,1]
[null,null,3438,null,null,null,1,null,null,null,1,1,1,1,1,1,1]
[null,null,3439,null,null,null,1,null,null,null,null,null,null,null,null,null,1,null,null,null,null,null,1,null,null,1]
[null,null,3443,null,null,null,null,null,null,null,1,1,1,1,1,1,1,null,null,null,null,null,null,null,1,1]
[null,null,3450,null,null,null,null,null,null,null,1,1,1,1,1,1,1,null,null,null,null,null,null,null,null,1]
[null,null,3453,null,null,null,null,null,null,null,1,null,null,1,1,null,null,null,null,1,null,null,1,null,1,1]
[null,null,3458,1,1,1,1,null,null,null,null,1]
[null,null,3463,null,null,null,null,null,null,null,null,null,null,null,null,null,1,null,null,null,null,null,1]
[null,null,3468,null,null,null,null,null,null,null,null,null,null,null,null,null,null,1,null,null,1,1,null,null,1]
[null,null,3474,null,1,1,1,null,1,1,1,1,null,null,null,null,null,1,null,1]
[null,null,3478,null,null,null,null,null,null,null,1,1,null,null,null,null,null,null,1,1,null,1,null,1]
[null,null,3481,null,null,null,null,1,null,null,null,null,null,null,null,null,null,null,1,null,1,1]
[null,null,3488,null,null,null,null,null,null,1,null,null,1,null,null,1,1,null,null,null,null,null,1,1,1]
[null,null,3493,1,1,1,null,1,1,1,null,null,1,1,null,null,null,null,null,1,null,1]
[null,null,3494,1,null,1,1,null,1,1,null,1,null,null,null,null,null,1,null,null,null,null,1]
[null,null,3498,null,1,null,null,1,1,1,null,null,null,1]
[null,null,3505,null,null,null,null,null,null,null,null,null,1,1,1,null,null,null,null,null,1,null,null,1,1,1]
[null,null,3508,1,1,1,null,1,null,1,null,null,null,null,1,null,null,1]
[null,null,3512,null,1,null,null,null,null,null,1,null,1,1,null,null,null,null,null,null,null,null,null,1,1]
[null,null,3517,1,1,null,1,null,null,1,null,null,null,null,null,null,null,null,1]
[null,null,3523,1,null,1,1,1,1,1,null,1,null,1,1,null,null,null,null,null,null,null,1]
[null,null,3529,null,1,1,null,1,1,1,null,1,null,null,null,null,null,1,1,null,1]
[null,null,3532,1,1,1,null,1,1,1]
[null,null,3536,1,null,null,1,1,1,1,null,1]
[null,null,3542,null,1,null,null,1,null,1,1,null,null,null,null,null,null,1,1,1,1,null,null,null,1]
[null,null,3547,1,1,1,1,1,1,1,null,1,null,null,1]
[null,null,3552,1,null,1,1,1,1,1,1,null,null,null,null,null,null,null,null,null,null,1]
[null,null,3554,1,1,null,null,null,null,null,1,null,null,1,null,null,null,null,null,null,null,null,null,1,1,1]
[null,null,3557,1,1,1,1,null,1,1]
[null,null,3562,null,null,1,null,null,null,null,null,null,null,null,null,null,null,1,1,null,1,1,null,1,null,1]
[null,null,3567,null,null,null,null,null,null,null,null,null,1,null,1,null,null,null,null,null,null,null,null,null,1,1]
[null,null,3572,null,null,1,null,1,null,null,1,null,null,1,null,null,1,null,null,null,null,null,null,null,1]
[null,null,3578,1,null,1,1,null,null,1,null,null,null,null,1,null,null,null,1,null,null,null,1]
[null,null,3582,null,null,null,null,null,null,null,null,null,1,null,null,null,null,null,null,null,null,null,null,null,1,1]
[null,null,3585,null,null,null,null,null,null,null,null,null,null,1,1,1,null,null,null,null,null,null,null,1,1,1]
[null,null,3591,null,null,null,null,1,null,null,null,null,null,null,null,null,null,null,1,null,null,null,1,null,1,1]
[null,null,3597,null,null,null,null,1,null,null,null,null,null,null,null,1,null,null,null,null,null,null,1]
[null,null,3602,null,1,null,1,null,null,null,1,null,1,null,null,null,null,null,null,null,null,null,1,null,1]
[null,null,3607,1,1,1,1,null,null,1,null,1,null,null,1,null,1,null,1,null,null,null,1,null,1]
[null,null,3609,null,null,null,null,null,1,null,null,null,null,null,null,null,null,1,null,null,null,1,1]
[null,null,3616,null,null,null,null,null,null,1,1,1,1,1,1,1,1,null,1,null,null,null,1,null,1]
[null,null,3620,null,null,null,null,null,null,null,null,null,null,null,null,null,null,null,1,1,1,1,null,1]
[null,null,3621,null,null,null,1,null,null,null,1,1,null,1,null,1,null,1,null,1,1,null,1,null,1]
[null,null,3627,null,null,null,null,null,null,null,null,null,null,null,1,null,null,null,1,null,null,1,1,1,1]
[null,null,3633,1,null,null,1,null,1,1,null,1,null,null,null,null,1,null,null,null,null,1,null,1]
[null,null,3636,1,1,1,1,1,1,1,null,1,null,null,null,null,null,1,1]
[null,null,3640,1,1,1,null,1]
[null,null,3646,1,1,1,1,1,null,null,null,1,null,1,null,null,null,1,null,null,1]
[null,null,3651,1,null,null,1,null,null,null,1,1,1,null,1,1,1,null,null,null,null,null,null,null,1]
[null,null,3656,null,null,null,null,null,1,null,1,null,null,null,null,null,1,null,null,null,null,null,null,null,1,1]
[null,null,3658,null,null,null,null,null,null,null,null,1,null,null,null,null,null,null,null,null,1,null,null,1]
[null,null,3666,null,null,null,1,null,null,1,1,null,1,null,null,null,null,null,null,null,null,null,1,1,null,1]
[null,null,3671,1,1,1,1,1,null,null,null,1,null,null,null,null,null,1,null,null,null,null,null,1]
[null,null,3675,null,null,null,null,null,null,null,1,null,1,null,1,null,null,null,null,null,null,null,null,null,1,1]
[null,null,3676,null,null,null,null,null,null,null,null,null,1,1,null,null,1,null,null,null,null,null,null,null,1,1]
[null,null,3682,null,null,null,null,null,null,null,null,null,null,null,null,null,null,null,null,1,null,1]
[null,null,3685,null,null,null,null,null,null,null,null,null,null,null,null,null,null,null,1,1,1,1,null,null,1]
[null,null,3693,1,null,null,null,null,null,null,1,1,null,null,null,1,null,null,1,null,null,null,null,null,1]
[null,null,3695,null,null,null,null,null,null,null,1,1,null,null,1,null,null,null,null,null,null,null,null,null,1]
[null,null,3701,null,null,null,null,null,null,1,1,1,null,null,null,null,1,null,null,null,null,null,1]
[null,null,3706,null,1,null,null,null,null,null,1,null,null,1,null,null,1,null,null,null,null,null,1,null,1,1]
[null,null,3710,null,null,null,null,null,null,null,1,null,null,null,null,1,1,null,null,null,null,null,1,null,null,1]
[null,null,3713,null,null,null,null,null,null,null,1,1,null,1,null,1,null,null,null,null,null,null,1]
[null,null,3720,null,null,null,1,null,null,null,null,1,null,null,null,1,null,1,null,null,null,null,1,null,1]
[null,null,3724,null,null,null,null,null,null,1,null,null,null,null,null,null,null,1,1,1,1,1,null,1]
[null,null,3730,1,1,null,null,1,null,null,null,null,null,null,null,1,1,null,null,null,null,null,1,1]
[null,null,3735,null,null,null,null,null,null,null,1,null,1,1,1,null,1,null,null,null,null,null,1,null,1]
[null,null,3737,null,null,null,null,null,null,null,1,1,null,null,null,null,null,1,null,1,1,1]
[null,null,3740,null,1,1,1,1,1,null,null,1,1,1,null,null,null,null,1]
[null,null,3748,1,null,null,1,null,1,1,null,1,null,null,1]
[null,null,3750,null,null,null,1,null,1,1,1,1,1,null,null,null,null,null,null,null,null,null,1,1,1,1]
[null,null,3755,null,null,null,null,null,null,null,null,null,1,null,null,null,null,null,null,null,null,null,1,null,1,1]
[null,null,3760,1,1,1,1,1,null,1,null,1]
[null,null,3766,null,null,null,1,null,null,1,1,null,null,null,1,1,null,null,null,null,null,null,null,1,1]
[null,null,3769,null,null,null,null,null,1,null,1,null,null,null,null,1,null,null,null,null,null,null,null,null,1]
[null,null,3775,null,null,null,null,null,null,null,null,null,null,null,null,null,null,1,1,null,null,1]
[null,null,3779,1,1,null,null,1,1,1]
[null,null,3784,1,1,1,1,1,1,null,1,1,null,null,null,null,null,null,null,null,1,1]
[null,null,3786,null,null,null,null,null,null,null,null,null,null,null,null,null,null,1,1,1,1,1]
[null,null,3794,null,null,1,1,null,null,null,1,null,1,null,null,1,null,null,null,null,null,null,1,null,null,1]
[null,null,3797,null,null,null,null,null,null,null,null,null,null,null,null,null,null,null,null,null,null,null,null,1]
[null,null,3799,null,null,null,null,null,null,null,null,1,null,null,1,null,null,null,null,null,null,1,null,1]
[null,null,3804,1,1,1,1,1,1,1,null,null,null,null,null,null,null,1]
[null,null,3810,1,1,null,1,1,1,null,1,1,1,null,1]
[null,null,3814,null,null,null,null,null,null,1,1,null,1,1,null,null,null,null,null,null,1,null,null,null,1,1]
[null,null,3821,null,null,null,null,null,null,null,null,null,null,null,null,null,null,null,null,1,null,1]
[null,null,3824,null,null,null,null,null,null,null,null,null,null,null,null,null,null,null,1,null,1,1]
[null,null,3828,null,null,1,null,null,null,null,1,null,null,1,1,null,null,null,null,null,null,null,null,null,1,1]
[null,null,3834,1,null,null,null,null,null,null,1,null,1,null,null,null,null,null,null,null,null,null,null,null,1,1]
[null,null,3839,null,null,1,1,1,null,null,null,null,null,null,null,null,null,null,1,null,null,null,1]
[null,null,3843,null,null,null,null,null,null,null,null,null,1,1,null,null,1,null,null,null,null,null,1,1,1,1]
[null,null,3849,1,1,1,1,1,1,null,null,1,null,1,null,null,null,null,null,null,null,1]
[null,null,3852,null,null,null,1,1,null,1,1,1]
[null,null,3854,null,null,null,null,null,null,null,1,1,1,1,1,1,1,null,null,null,null,1]
[null,null,3859,1,null,null,1,1,1,1,1,1]
[null,null,3863,null,null,null,null,null,null,null,null,null,null,null,null,null,null,null,1,1,1,1,null,1]
[null,null,3870,1,1,null,1,1,1,1,1,1,1,null,null,null,1,null,null,null,1]
[null,null,3873,null,1,null,null,null,null,null,null,null,null,null,null,null,null,null,null,null,1,1]
[null,null,3879,null,null,null,null,null,null,null,null,null,null,null,null,null,null,null,null,null,1,1,null,1]
[null,null,3883,1,1,null,null,1,null,null,null,null,null,null,null,null,null,1,null,null,null,1,null,null,null,1]
[null,null,3888,1,null,1,1,null,1,null,1,1,null,1,null,null,null,null,null,null,null,null,null,null,1,1]
[null,null,3894,1,1,1,1,1,1,1,null,1,null,null,null,null,1]
[null,null,3898,null,null,1,null,null,null,null,null,null,1,null,null,null,null,1,null,null,1,null,1,null,null,1]
[null,null,3901,1,1,null,null,null,1,1,null,1,null,null,null,null,null,null,null,null,null,null,null,1]
[null,null,3908,null,1,1,null,null,null,null,null,null,1,null,1,1,1,null,null,null,1,null,1,1]
[null,null,3913,null,1,null,null,null,1,null,null,null,null,null,1,null,null,1,1,null,1,1,null,null,1]
[null,null,3914,1,null,null,null,null,null,null,null,null,null,null,null,null,null,null,1,1,null,1]
[null,null,3918,null,1,null,null,null,null,null,null,null,null,null,null,null,null,null,1,1,1,1,null,1]
[null,null,3925,null,null,null,null,null,null,null,1,1,1,1,1,null,null,null,null,null,null,null,null,null,1,1]
[null,null,3928,1,1,null,1,null,null,1,null,null,1,null,null,null,null,null,null,null,null,1]
[null,null,3932,null,null,null,null,null,null,null,null,1,null,null,null,null,null,1,1,null,null,null,1,1]
[null,null,3937,1,null,null,null,null,null,null,1,null,null,null,null,null,1]
[null,null,3943,1,1,1,null,1,1,1,null,1,null,null,null,1,1,null,1,null,null,null,1]
[null,null,3947,null,null,null,null,null,null,null,null,null,null,null,null,null,null,null,1,null,1,null,null,1]
[null,null,3953,1,1,null,null,1,null,1,null,1,1,null,null,null,null,null,1,null,null,null,1]
[null,null,3956,null,1,1,null,null,1,null,null,null,null,null,null,null,null,1,1,1,null,null,null,1]
[null,null,3962,1,1,null,null,1,null,null,null,1,1]
[null,null,3967,1,1,1,1,1,null,1,1,null,1]
[null,null,3972,1,null,1,null,1,1,null,null,1]
[null,null,3974,1,null,null,1,1,1,null,1,null,null,null,null,null,null,1]
[null,null,3977,1,null,1,1,1,1,1,null,1,null,null,null,null,1]
[null,null,3982,1,null,null,1,null,null,null,1,null,null,null,1,null,1,null,null,null,null,null,1,1,1,1]
[null,null,3987,1,1,null,1,1,null,null,null,null,null,1,null,1]
[null,null,3992,1,1,1,1,null,1,1,null,1,1,null,null,null,null,null,null,null,null,null,null,1]
[null,null,3998,null,null,null,null,null,null,null,1,null,1,1,null,null,1,null,null,null,null,null,null,null,1,1]
[null,null,4002,null,null,1,null,null,1,1,1,1,null,null,null,null,null,null,1]
[null,null,4005,null,null,null,null,null,null,null,null,null,null,null,null,null,null,null,null,1,null,null,1,1]
[null,null,4012,null,null,null,null,null,null,null,1,null,null,1,null,null,1,null,null,null,null,null,1,1,1,1]
[null,null,4017,null,1,1,1,1,1,1,null,null,null,null,null,null,null,1,1]
[null,null,4022,null,null,null,null,1,1,null,null,null,null,null,null,null,null,null,1,null,null,null,1,1]
[null,null,4027,null,null,null,null,null,null,null,null,null,null,null,null,null,null,1,null,1,1,1]
[null,null,4029,1,null,1,1,1,null,1,1,1,null,null,1,null,null,null,1]
[null,null,4032,null,null,null,null,1,null,null,null,null,null,1,null,null,1,null,null,null,null,null,1,1,1]
[null,null,4040,null,1,null,null,null,null,1,null,1,null,null,1]
[null,null,4041,null,null,null,null,null,null,null,null,null,null,null,null,1,null,null,null,null,null,null,null,null,1,1]
[null,null,4047,null,null,null,1,null,null,1,1,null,1,1,1,null,null,null,null,null,null,null,null,null,1,1]
[null,null,4051,null,1,null,null,1,null,null,null,null,null,null,null,null,null,null,1,null,null,null,1]
[null,null,4056,null,null,null,null,null,null,null,1,1,null,null,1,null,null,null,null,null,null,null,1,1,null,1]
[null,null,4060,null,null,null,null,null,null,null,1,null,null,null,1,null,1,null,null,null,null,null,null,1,1,1]
[null,null,4066,null,null,null,null,null,1,null,null,null,null,null,null,null,null,1,1,null,1,1,1]
[null,null,4071,null,null,null,null,null,null,null,null,null,null,null,null,1,null,1,null,null,null,null,1,null,1]
[null,null,4076,null,null,null,null,null,1,1,1,1,null,null,null,1,null,null,null,null,1,null,null,null,1]
[null,null,4078,1,1,1,null,1,null,null,null,null,null,null,null,null,null,null,null,null,null,null,1,null,1]
[null,null,4086,1,null,null,1,1,1,null,1,1,null,null,null,null,null,1,null,null,null,null,1]
[null,null,4091,1,1,1,1,1,null,1,null,1,null,null,null,1,null,null,1,null,null,null,1]
[null,null,4095,null,null,null,null,null,null,null,null,null,1,null,null,1,1,null,null,null,null,1,1,null,null,1]
[null,null,4096,null,null,null,null,null,null,null,1,null,null,null,1]
[null,null,4102,1,1,1,null,1,1,null,null,null,null,null,null,null,null,1]
[null,null,4106,null,1,1,1,1,null,1,1,1,null,null,null,null,null,null,null,null,null,null,1,1]
[null,null,4113,1,1,null,1,null,null,null,null,1,null,1]
[null,null,4115,null,null,null,null,null,null,null,null,null,null,null,null,null,null,null,null,1,1,1,null,null,1]
[null,null,4121,1,1,1,1,1,1,1,null,1,null,null,null,1,null,null,null,null,null,null,1,1,null,1]
[null,null,4126,1,1,1,1,1,1,1,null,1,1,1,null,null,1]
[null,null,4131,1,1,1,1,null,1,null,null,1,null,null,null,1]
[null,null,4133,1,null,null,1,null,1,null,null,1,1,null,null,null,1,null,1,null,null,null,1]
[null,null,4140,1,null,1,1,null,null,1,null,1,null,null,null,null,null,null,null,null,null,null,1]
[null,null,4144,null,null,null,1,1,null,null,1,1,1,1,null,1,1,null,null,null,null,1,1,1]
[null,null,4150,1,1,null,null,1,null,null,null,null,null,1,null,null,null,1,1,null,1,1,1]
[null,null,4151,1,1,null,1,null,null,null,1,1,null,null,1,null,null,null,null,1,null,null,1,1,1,1]
[null,null,4155,1,1,1,1,1,1,null,null,null,null,1,null,null,1,1]
[null,null,4160,null,null,null,null,null,null,null,1,null,1,null,null,null,null,null,null,null,null,null,null,null,null,1]
[null,null,4168,null,null,null,null,null,null,null,1,null,null,null,1,null,null,null,null,null,null,null,1,null,1]
[null,null,4170,1,null,null,1,null,1,null,null,1,null,1,1,null,1]
[null,null,4175,null,null,1,1,1,null,null,null,1,null,1,null,null,null,null,1,null,null,null,1]
[null,null,4180,1,1,1,null,1,1,1,null,null,1,null,null,null,null,null,1,null,null,1]
[null,null,4186,null,null,null,null,null,null,null,1,1,1,1,1,1,1,null,null,1,null,null,1,null,1]
[null,null,4189,null,null,null,1,null,null,null,1,null,null,1,null,null,null,null,null,null,null,null,null,null,1,1]
[null,null,4195,null,null,null,null,null,null,null,1,null,null,null,null,null,1,null,null,null,null,null,1]
[null,null,4199,null,null,null,null,null,null,null,null,1,null,null,null,null,null,1,1,1,null,1]
[null,null,4205,null,null,null,null,null,null,null,1,null,1,null,null,null,null,null,null,null,null,null,null,null,1,1]
[null,null,4206,null,null,null,null,null,null,null,1,null,null,1,1,null,1,null,null,null,null,null,null,1,1]
[null,null,4214,null,null,null,null,1,1,null,1,null,null,null,null,1,null,1,1,null,1,null,1,1,1,1]
[null,null,4217,null,null,null,null,null,null,null,null,null,null,1,null,null,null,1,null,null,1,1]
[null,null,4219,1,1,null,1,1,null,null,1]
[null,null,4225,null,null,null,null,1,1,1,null,1,1,null,null,null,null,null,1,null,null,1,1]
[null,null,4230,null,1,null,null,1,null,null,1,1,null,1,1,1,null,null,null,null,null,null,1,null,null,1]
[null,null,4234,null,null,null,1,1,null,1,null,1,null,null,null,null,null,null,null,null,null,1]
[null,null,4241,1,1,null,1,1,null,1,null,1,null,null,null,1]
[null,null,4244,1,null,null,null,null,null,null,null,null,null,null,null,null,null,null,1,1,null,1]
[null,null,4248,1,null,null,1,1,null,1]
[null,null,4254,1,null,null,null,null,null,null,null,null,null,null,null,1,null,1]
[null,null,4259,null,null,null,null,null,null,null,null,1,null,null,null,null,null,null,1,1,1,1,1]
[null,null,4264,1,1,1,null,1,1,1,null,1,null,1]
[null,null,4269,null,null,null,null,null,null,null,null,null,1,null,null,null,null,null,null,null,null,null,1,null,null,1]
[null,null,4272,1,null,1,null,null,null,1,1,null,null,1,null,null,null,null,null,null,null,null,null,null,1,1]
[null,null,4274,1,1,1,1,null,1,1]
[null,null,4279,null,null,1,null,1,null,null,null,1,null,null,null,null,null,null,1,null,null,null,1]
[null,null,4284,1,null,null,null,null,null,null,null,null,null,null,null,null,null,null,1,1,1,1,null,1]
[null,null,4290,null,null,1,null,null,null,null,1,null,1,1,null,null,null,1,null,null,null,null,null,null,1]
[null,null,4293,null,null,null,null,null,null,null,1,null,null,1,null,null,null,null,null,null,null,null,1,null,1,1]
[null,null,4299,null,null,null,1,null,1,null,1,null,null,1,null,null,null,null,null,null,null,null,null,null,1,1]
[null,null,4303,null,null,1,null,1,null,null,1,null,1,1,1,null,null,null,null,1,1,null,null,null,1]
[null,null,4308,null,1,null,1,1,null,null,null,1,null,1]
[null,null,4314,1,null,null,null,null,null,null,1,null,null,null,null,1,null,null,null,null,1,null,1,null,null,1]
[null,null,4318,null,null,null,null,null,null,null,1,null,1,1,1,1,1,null,null,null,null,null,null,null,1,1]
[null,null,4321,null,null,null,null,null,null,null,1,null,null,null,null,1,1]
[null,null,4328,1,1,null,1,1,null,1,null,1]
[null,null,4333,1,1,1,null,1,null,1,1,1,null,null,null,1,null,1]
[null,null,4334,null,null,1,null,1,null,null,null,null,null,null,null,null,null,1,1,null,1,null,1]
[null,null,4338,null,null,null,null,null,null,null,1,null,1,1,1,null,1,null,null,1,null,null,null,null,null,1]
[null,null,4345,null,null,1,1,1,null,1,null,null,null,null,null,null,null,1,1,null,null,1]
[null,null,4348,1,1,1,null,1,null,null,null,null,1,null,null,null,1]
[null,null,4352,null,null,null,null,null,null,null,null,null,1,1,1,null,1,null,null,null,null,null,1,1,1]
[null,null,4358,1,null,null,null,null,null,null,1,null,null,null,null,null,null,1,1,null,1,1]
[null,null,4363,null,null,null,null,null,null,null,null,null,null,null,null,null,null,null,null,null,1,1]
[null,null,4367,1,1,null,1,null,1,1,null,null,null,null,null,null,null,1,null,null,null,null,1]
[null,null,4373,null,null,null,null,null,null,null,null,null,null,null,null,1,null,null,null,1,null,null,1,1,1]
[null,null,4376,null,null,null,null,null,null,null,null,1,null,null,null,null,null,null,null,1,1,1]
[null,null,4383,null,null,null,null,1,null,null,1,1,null,null,1,null,null,null,1,null,null,null,1,null,null,1]
[null,null,4387,null,null,null,null,null,null,null,1,null,null,null,null,1,null,1,null,null,null,null,null,1,1]
[null,null,4392,null,1,1,null,null,null,null,1,1,1,1,1,1,null,null,1,null,null,1,1]
[null,null,4394,1,null,1,null,1,1,1,null,1,1,null,null,null,null,null,null,null,null,null,null,null,null,1]
[null,null,4397,null,null,1,1,null,null,1,null,null,1,null,null,null,1,null,null,null,1,null,1,1,1,1]
[null,null,4402,1,1,1,1,1,null,1,null,1,null,null,null,null,null,null,null,1]
[null,null,4407,1,1,null,1,1,null,1,null,null,null,1,null,null,null,null,1,null,null,null,1]
[null,null,4412,1,1,1,1,1,1]
[null,null,4418,null,null,null,null,1,null,null,1,null,null,null,null,null,null,null,1,null,null,1,null,1]
[null,null,4422,1,1,null,1,1,1,1,1,1,null,null,null,1,null,null,null,1]
[null,null,4425,null,null,null,null,null,null,null,null,null,null,null,null,null,null,1,1,null,1,null,1]
[null,null,4432,1,null,null,null,1,1,null,1,null,null,null,null,null,1,null,1,null,null,null,1]
[null,null,4437,null,null,null,null,null,null,null,null,null,null,null,null,null,null,1,null,1,1,1]
[null,null,4442,1,1,1,1,null,null,null,null,null,null,1,null,null,null,null,null,null,null,null,1,null,1,1]
[null,null,4447,1,null,null,1,null,1,1,null,1,null,1,null,null,null,null,null,null,null,null,null,null,1,1]
[null,null,4449,null,null,null,null,null,null,null,1,1,1,1,1,1,1,null,null,null,null,null,1,1,1,1]
[null,null,4452,1,1,null,1,1,1,1,null,null,1,1]
[null,null,4460,null,1,null,1,1,1,1]
[null,null,4461,null,null,null,null,null,null,null,1,1,null,null,null,null,1,null,null,null,null,null,1]
[null,null,4467,null,1,null,null,null,null,null,null,1,null,null,null,null,null,1,null,1,1,1]
[null,null,4471,null,null,1,null,null,null,null,null,null,null,null,1,null,null,null,1,null,null,null,1,1,1]
[null,null,4477,1,null,null,null,null,1,null,1,1,1,null,1,1,1,null,1,null,null,null,1,null,1,1]
[null,null,4480,1,null,null,null,null,null,1,null,null,null,null,null,1,1,null,1,null,null,null,1]
[null,null,4486,1,null,null,null,null,null,null,null,null,null,null,null,null,null,1,null,1,null,1,null,null,1,1]
[null,null,4491,1,1,1,1,1,null,1,null,1,null,null,null,null,null,null,null,null,null,null,1,null,null,1]
[null,null,4496,null,null,null,1,null,null,null,1,null,1,null,1,null,null,null,null,null,null,null,1,null,1]
[null,null,4498,1,1,1,null,null,null,1,null,null,null,null,null,1,null,null,1,null,null,null,1,1]
[null,null,4506,1,1,1,null,null,null,null,null,null,null,null,1,1,null,null,null,null,null,null,1,1,1,1]
[null,null,4511,1,1,1,null,null,1,1,null,1,null,null,null,null,null,null,1,null,null,null,null,1]
[null,null,4515,1,1,1,1,1,1,1,null,1,1,null,null,null,null,null,null,null,null,null,null,1]
[null,null,4516,1,null,null,1,null,null,null,1,null,null,null,1]
[null,null,4522,1,null,null,1,1,1,null,null,1,1,null,1]
[null,null,4526,null,null,null,null,1,1,1,null,null,null,null,1,null,null,null,1]
[null,null,4533,null,null,null,1,null,1,1,1,null,null,null,null,1,null,null,null,null,1,null,1,null,1,1]
[null,null,4536,null,null,null,1,null,null,null,1,null,1,1,null,null,null,null,null,null,null,null,null,null,1,1]
[null,null,4541,null,1,null,null,null,null,null,1,null,1,1,null,1,null,null,null,null,null,null,1,null,1,1]
[null,null,4546,null,null,null,null,null,null,1,1,null,null,null,null,null,null,1,1,1,1,null,1,1]
[null,null,4551,1,1,null,null,null,1,1,null,null,null,null,null,null,null,1,null,1]
[null,null,4553,1,1,1,null,null,1,1,null,1]
[null,null,4560,null,null,null,null,null,null,null,null,null,1,null,null,null,null,1,null,1,null,1,null,1]
[null,null,4564,1,null,null,null,null,null,1,1,1,null,null,null,1,null,null,null,null,null,null,1,1,null,1]
[null,null,4570,1,1,1,null,1,null,1,1,1,null,null,null,null,1,null,null,null,null,null,null,1,1]
[null,null,4571,null,null,null,null,null,null,null,null,null,null,null,1,null,null,null,null,null,null,null,1,null,null,1]
[null,null,4575,null,null,null,null,null,null,null,1,null,null,null,null,null,1,null,null,null,null,null,1,null,null,1]
[null,null,4580,null,null,null,null,null,null,null,1,1,null,1,1,null,null,null,1,null,null,null,1]
[null,null,4588,null,1,null,null,null,null,null,null,null,null,null,null,null,null,1,1,1,1,null,null,1]
[null,null,4590,null,1,null,1,null,null,1,null,1,null,1]
[null,null,4595,1,1,1,1,1,1,1,null,1,1,null,1]
[null,null,4600,1,null,null,null,1,null,1,null,1,null,null,null,null,null,null,null,null,1]
[null,null,4606,1,1,1,1,1,1,1,1,null,null,null,1]
[null,null,4610,null,null,null,null,null,null,null,null,1,null,null,1,null,1,null,null,null,1,null,null,1]
[null,null,4615,null,null,null,1,null,1,null,null,null,null,1,1,1,null,null,null,null,null,null,null,1]
[null,null,4619,null,null,null,null,null,1,null,null,null,null,null,null,null,null,null,null,null,null,null,1,1,null,1]
[null,null,4625,1,1,1,null,1,null,1,null,1,null,null,1,1]
[null,null,4626,null,1,1,1,1,1,1,null,1,null,1,null,null,null,1,null,1]
[null,null,4630,null,null,null,null,null,null,null,null,null,1,1,null,null,null,null,1,null,null,null,null,null,1,1]
[null,null,4637,1,null,1,1,null,1,1,null,1,null,null,null,1,1,1,null,null,null,null,null,1]
[null,null,4639,1,null,1,null,1,null,null,null,1,null,null,null,null,null,null,null,1,null,null,1]
[null,null,4645,1,1,1,null,null,1,1,1]
[null,null,4650,1,1,1,1,null,1,null,null,null,null,null,1,null,null,1,1,null,null,null,1,1]
[null,null,4654,null,1,1,1,null,null,null,null,null,null,null,null,null,null,1,null,null,null,null,1,1,1,1]
[null,null,4661,null,1,null,1,null,null,null,1,null,null,1,null,null,null,null,null,null,null,null,null,null,1]
[null,null,4664,null,null,null,null,null,null,null,1,null,null,null,1,1,1,1,null,null,null,null,1]
[null,null,4668,null,null,1,1,null,1,1,null,null,null,null,null,null,null,null,1,null,null,null,1]
[null,null,4674,null,null,null,null,null,null,null,null,1,null,null,null,null,null,null,null,1,1,1,null,1]
[null,null,4679,null,null,1,null,1,null,null,1,1,null,null,1,null,null,null,null,null,null,null,1,null,null,1]
[null,null,4684,null,null,null,null,1,null,null,null,null,null,null,null,null,null,null,null,1,1,null,null,1]
[null,null,4689,null,null,null,null,null,null,null,1,1,1,1,1,1,1,null,null,null,null,null,null,1,1]
[null,null,4692,null,null,null,null,null,null,null,null,null,null,null,null,null,null,1,1,null,1,1]
[null,null,4694,null,null,null,null,null,null,null,null,1,null,null,null,null,null,null,1,1,1,1,null,1]
[null,null,4699,1,1,null,null,1,null,1,null,1,null,null,null,null,null,1]
[null,null,4704,null,null,null,null,null,null,null,null,null,null,null,null,null,1,null,null,1,1,1,1]
[null,null,4710,null,null,1,null,null,1,1,1,null,1,1,1,null,null,null,1,null,null,null,1,null,1]
[null,null,4713,1,null,1,1,1,null,1,1,1,1,null,null,null,null,null,1,null,1]
[null,null,4719,1,null,null,1,1,null,null,1,null,null,1,null,1,null,null,null,null,null,null,null,null,1]
[null,null,4723,null,null,null,null,null,null,null,null,null,null,null,null,null,null,1,1,1,1]
[null,null,4729,1,null,null,null,1,null,null,null,null,null,null,null,null,null,null,1,1,1,1]
[null,null,4734,1,null,1,null,1,null,1,null,null,null,null,1,null,null,1,1,1]
[null,null,4738,null,1,null,null,null,null,null,null,null,1,null,null,null,null,null,null,null,null,null,null,null,1]
[null,null,4741,null,1,null,null,null,null,null,null,null,null,null,null,null,null,null,1,null,1,1]
[null,null,4748,1,null,null,null,null,null,null,1,null,1,1,null,1,null,null,null,null,null,null,null,null,1,1]
[null,null,4752,null,null,null,null,null,null,null,1,null,1,1,null,null,null,null,null,null,null,null,1,null,1,1]
[null,null,4753,1,1,1,null,1,null,1,null,1,1,1,null,1,null,null,null,null,null,1]
[null,null,4758,null,null,null,null,null,null,null,1,1,1,1,null,null,null,null,null,null,null,null,null,null,1]
[null,null,4765,1,1,1,null,null,null,1,null,1,null,null,null,null,null,null,null,null,null,1]
[null,null,4768,1,1,null,null,1,null,1,null,null,null,null,null,null,1]
[null,null,4772,null,1,null,null,null,null,null,null,1,null,null,null,null,null,1,1,null,null,1]
[null,null,4778,1,null,null,null,null,1,null,null,null,null,null,null,null,null,1,1,null,1]
[null,null,4783,1,null,null,null,null,1,1,null,null,null,null,null,null,null,null,1,null,null,1]
[null,null,4788,1,1,1,1,1,null,1,null,1,null,1]
[null,null,4793,null,null,1,null,null,1,1,1,1,1,null,null,1,null,null,null,null,1,null,1]
[null,null,4796,null,1,1,1,null,null,null,null,null,null,null,null,null,null,1,1,1,null,1]
[null,null,4803,1,1,null,null,null,null,null,1,1,null,1,1,null,null,null,null,null,null,null,null,null,1,1]
[null,null,4807,null,null,null,null,null,null,null,null,null,null,null,null,null,null,null,1,1,null,1,null,1]
[null,null,4812,1,1,null,1,1,null,1,null,1]
[null,null,4814,null,null,null,null,null,null,null,null,null,1,1,null,null,null,null,null,null,null,null,null,1,1,1]
[null,null,4817,null,1,null,null,null,null,1,null,1,1,1,1,null,null,null,1]
[null,null,4823,1,null,null,null,1,null,null,null,null,null,null,1,null,null,1,1,1,null,1,null,1]
[null,null,4827,null,null,null,null,null,null,null,1,null,1,1,null,null,null,null,null,null,null,null,1,null,1]
[null,null,4832,1,null,null,null,null,null,null,null,1,null,null,null,null,null,1,1,null,null,1,null,1]
[null,null,4838,null,null,null,null,null,1,null,null,null,null,null,null,null,null,1,1]
[null,null,4842,1,null,1,1]
[null,null,4845,1,null,1,1,null,null,null,null,1,null,null,null,null,null,null,null,null,1,null,null,1]
[null,null,4852,null,null,null,null,1,null,null,1,null,null,null,1,1,null,null,null,null,null,null,1,null,1]
[null,null,4856,null,1,null,null,null,null,null,null,null,null,null,1,null,null,null,null,null,null,null,1,1,null,1]
[null,null,4862,1,null,1,null,1,1,null,null,null,1,1,null,null,null,null,null,null,null,null,1]
[null,null,4867,1,1,1,null,1,null,1,null,null,null,null,null,null,null,1,1,null,null,null,1,1]
[null,null,4869,null,null,null,1,null,null,null,null,null,null,null,null,null,null,1,1,1,1,null,1]
[null,null,4872,null,null,null,null,null,null,null,1,null,null,null,null,null,1,null,null,null,null,null,null,null,null,1]
[null,null,4880,null,1,null,null,1,null,null,null,null,1,null,null,1,1,null,1,null,null,null,1,1,1,1]
[null,null,4882,1,null,null,null,null,null,null,null,null,null,null,null,null,null,1,null,1,null,1,1,1,null,1]
[null,null,4887,1,1,1,1,1,1,1,null,1,null,null,1,null,1]
[null,null,4891,null,null,1,null,null,null,null,null,null,null,null,null,null,null,1,null,1,null,1]
[null,null,4897,1,null,1,null,null,1,null,null,null,1,null,null,null,1,null,1,1,1,null,null,1]
[null,null,4900,null,null,null,1,null,null,null,null,null,null,null,null,null,null,1,1,null,null,1,1]
[null,null,4906,null,1,null,null,null,null,null,null,null,null,null,null,null,null,1,1,null,null,1]
[null,null,4911,null,null,null,null,null,null,null,null,1,null,null,null,null,null,null,null,null,1]
[null,null,4916,null,null,null,null,null,null,null,1,null,1,null,1,null,null,null,null,null,1,null,null,null,null,1]
[null,null,4918,null,null,null,1,null,null,null,1,null,null,null,1,null,null,1,1,1]
[null,null,4926,null,null,null,null,null,null,null,null,null,1,1,null,null,null,null,null,null,null,null,null,null,1,1]
[null,null,4931,null,null,null,null,null,null,null,1,1,1,1,1,1,null,null,null,null,null,null,null,1,1]
[null,null,4935,1,1,1,1,1,1,1,null,1,null,null,null,null,null,null,1]
[null,null,4936,1,null,1,1,null,1,1,1,1,null,1,null,null,null,null,null,null,null,1,1,1]
[null,null,4942,1,1,null,null,1,null,null,null,1,null,1,null,null,null,1]
[null,null,4946,null,1,null,null,null,null,null,null,null,1,null,null,1,null,null,null,null,null,null,null,1]
[null,null,4953,null,null,null,null,null,null,1,1,null,null,null,null,null,1,null,null,null,null,1,null,null,1,1]
[null,null,4956,null,null,null,null,null,null,null,null,null,1,null,1,1,null,null,null,null,1,null,1,1,1]
[null,null,4960,1,1,1,null,1,1,1,null,1,null,null,null,null,null,null,null,null,null,null,1]
[null,null,4965,1,null,null,1,1,1,null,null,1,1]
[null,null,4971,null,null,null,null,null,null,null,null,null,null,null,null,null,null,1,1,null,1,null,1]
[null,null,4973,1,1,1,1,1,1,null,1,1,null,null,1,null,null,null,1,1]
[null,null,4981,null,1,null,null,null,null,null,null,null,null,null,null,null,null,1,1,null,null,null,1]
[null,null,4984,1,1,1,1,1,1,null,1,1]
[null,null,4990,null,1,1,null,null,null,null,null,null,null,null,null,null,null,1,null,null,null,1]
[null,null,4991,null,null,null,null,1,null,1,1,null,null,1,null,null,null,null,null,null,null,null,null,null,1,1]
[null,null,4995,null,null,1,null,null,null,1,1,null,1,null,null,null,null,null,null,null,null,null,null,1,1]
[null,null,5000,null,null,null,null,null,null,null,null,null,null,null,null,null,null,1,1,null,null,1]
[null,null,5008,1,1,null,null,null,null,null,null,null,null,null,null,null,null,null,1,1,1,1,null,1]
[null,null,5010,null,null,null,null,null,null,null,1,null,null,null,null,null,1]
[null,null,5015,1,1,null,1,1,1,null,null,1,null,null,null,null,1]
[null,null,5020,1,1,1,1,null,null,null,1,1,1,1,null,null,1,null,null,null,null,null,null,null,1,1]
[null,null,5026,1,1,1,1,null,null,null,null,1,null,1,1]
[null,null,5030,null,null,null,null,null,null,null,null,null,null,null,null,null,null,null,null,1,1]
[null,null,5035,null,null,null,null,null,null,null,null,null,null,null,null,null,null,null,null,1,null,1,null,1]
[null,null,5039,null,null,null,null,null,1,null,1,null,null,null,null,null,1,null,null,null,null,null,1]
[null,null,5045,null,null,null,1,null,1,null,null,null,null,null,null,null,null,null,1,null,1,1]
[null,null,5046,null,null,null,null,null,null,null,1,null,null,1,null,1,null,null,null,null,null,null,null,1]
[null,null,5050,1,null,null,null,null,1,1,null,1,null,1]
[null,null,5057,1,1,null,null,null,null,1,1,null,null,null,null,null,null,1,1,null,null,1]
[null,null,5059,1,1,1,1,1,1,null,null,1,null,1,1,null,1,null,null,null,1]
[null,null,5064,null,null,null,null,null,null,null,1,null,1,null,null,1,null,null,null,null,null,null,1,null,1,1]
[null,null,5069,null,null,1,null,null,null,null,null,null,null,1,1,null,null,null,null,null,null,null,1,null,1,1]
[null,null,5075,null,null,null,null,null,null,1,1,null,1,1,null,null,null,null,null,null,null,null,1,null,1,1]
[null,null,5081,null,null,null,null,null,null,null,null,null,1,1,1,null,null,null,null,null,null,null,1,null,1]
[null,null,5084,null,null,1,null,null,null,null,1,1,null,null,null,null,1,null,null,null,null,1,1,1]
[null,null,5088,null,null,null,null,1,null,null,null,1,null,null,null,null,null,1,null,null,1,1]
[null,null,5094,null,1,null,null,null,null,null,null,null,null,null,null,null,null,1,null,1,1,1,null,1]
[null,null,5099,null,null,null,null,null,null,null,null,1,null,null,null,null,null,1,null,null,1,1,null,null,null,1]
[null,null,5104,null,null,null,1,1,null,1,null,null,null,null,null,null,null,1,null,1]
[null,null,5109,1,1,1,null,null,1,1,null,1,1,null,null,null,null,null,null,null,null,null,null,1]
[null,null,5112,null,null,null,null,1,null,null,null,null,null,null,null,null,null,1,1,1,null,1]
[null,null,5114,null,null,null,null,null,1,1,1,null,null,null,1,1,null,null,null,null,null,null,1,1]
[null,null,5119,null,null,null,1,null,null,null,1,null,null,null,1,null,1]
[null,null,5124,null,null,null,null,null,null,null,null,null,null,null,null,null,null,null,null,null,null,1]
[null,null,5130,null,null,null,null,null,null,null,1,1,1,1,1,1,1]
[null,null,5134,null,null,null,null,null,1,null,null,null,1,null,null,null,null,null,null,null,null,1,1,1,1]
[null,null,5139,null,null,null,null,null,null,1,1,1,1,null,null,null,null,null,null,null,null,null,null,null,null,1]
[null,null,5143,null,null,null,null,null,null,null,1,null,null,null,null,1,null,null,null,null,null,null,1,null,1]
[null,null,5149,null,1,null,null,null,null,null,1,null,1,1,null,1,null,null,null,null,null,null,1,null,1,1]
[null,null,5154,null,null,null,null,null,null,1,null,null,null,null,null,null,null,1,1]
[null,null,5158,null,1,1,1,1,1,1,null,1,null,null,1]
[null,null,5161,null,null,null,1,null,null,null,1,null,1,1,1,1,1,null,null,null,null,null,null,null,1]
[null,null,5168,null,null,null,null,null,null,null,null,1,null,null,null,null,null,null,null,null,1,1]
[null,null,5172,null,null,null,null,null,null,null,null,null,null,null,null,null,null,1,1,null,1,1,null,1]
[null,null,5173,1,null,1,1,1,1,1,null,1,null,null,null,null,null,null,null,null,1]
[null,null,5178,null,null,null,1,null,null,null,null,null,null,null,null,null,null,1,1,1,1,1]
[null,null,5185,null,null,null,null,null,null,1,null,null,null,null,1,null,null,null,1,1,1,null,null,1]
[null,null,5188,null,null,1,null,null,null,null,null,1,null,null,null,null,null,null,null,null,1,1]
[null,null,5192,null,1,1,1,1,1,null,1,1,null,null,null,null,null,null,null,null,null,null,null,1]
[null,null,5198,1,1,1,null,1,1,1,null,1,null,1]
[null,null,5203,null,null,null,null,null,null,null,null,null,1,null,null,null,null,null,null,null,null,null,null,null,1,1]
[null,null,5208,null,null,null,null,null,null,null,null,null,1,1,null,1,null,null,null,null,null,1,1,null,1,1]
[null,null,5213,1,1,1,1,1,null,1,null,1,1,null,null,null,null,null,null,null,1,null,null,1]
[null,null,5216,null,null,null,null,null,null,null,null,null,null,null,null,null,null,1,1,1,1,1]
[null,null,5223,null,1,null,null,null,null,null,1,null,1,1,1,1,null,null,null,null,null,null,null,null,1]
[null,null,5227,null,1,1,null,null,1,1,null,1,1,1]
[null,null,5228,null,null,null,null,null,1,null,null,null,null,null,null,null,null,null,1,null,null,null,1,1,1,1]
[null,null,5234,1,null,1,null,1,1,1,1,null,1,1,null,null,1,null,null,null,null,null,null,null,null,1]
[null,null,5237,null,null,null,null,null,null,null,1,1,null,null,null,1,null,null,null,null,null,null,null,1]
[null,null,5243,1,null,null,null,1,1,null,null,1,1,null,null,null,null,1,null,null,null,1,null,1]
[null,null,5247,null,null,1,1,1,null,null,null,null,null,null,null,null,null,1,1,null,null,1,null,1]
[null,null,5252,null,null,null,null,null,1,null,null,null,null,null,null,null,null,1,null,1]
[null,null,5258,1,1,1,1,1,1,1,null,1,null,null,1,null,null,null,1]
[null,null,5262,null,null,null,1,null,null,null,null,null,null,null,null,null,null,1,null,1,1,1,null,1,null,1]
[null,null,5265,1,1,1,null,1,1,1,null,1,null,null,null,null,null,null,null,null,null,null,1]
[null,null,5272,null,null,1,null,null,null,null,1,null,null,1,null,null,null,null,null,null,null,null,1,null,1,1]
[null,null,5276,1,1,1,1,1,null,1,null,1,1,null,null,null,null,1,1,null,1]
[null,null,5282,1,null,1,1,1,null,1,null,null,null,null,null,null,null,1,1,null,null,null,null,1]
[null,null,5287,1,1,1,1,1,null,null,1,1,null,null,1]
[null,null,5289,null,null,null,null,1,null,1,1,null,null,1,1,null,null,null,null,null,null,null,null,null,1,1]
[null,null,5292,1,null,1,1,1,1,1,null,1,null,null,null,null,null,null,null,null,null,null,null,1]
[null,null,5300,null,1,1,null,null,null,null,1,null,1,null,null,null,null,null,null,null,null,null,1,null,1,1]
[null,null,5302,null,null,null,1,null,1,1,null,1,null,null,null,null,null,null,1,null,null,null,1,1]
[null,null,5307,null,null,1,null,null,1,1,null,null,null,null,null,null,null,1,1,1,1,1]
[null,null,5311,null,1,null,1,1,1,null,1,1]
[null,null,5317,null,null,null,null,null,null,null,1,null,null,null,1,null,null,null,null,null,null,null,null,1,1]
[null,null,5320,null,null,null,null,null,null,null,1,null,1,null,null,null,null,null,null,null,null,null,null,null,1,1]
[null,null,5327,1,1,1,null,1,null,1,1,1,1,null,null,null,1]
[null,null,5331,null,null,null,null,null,null,1,1,null,1,null,1,null,null,null,1,null,null,null,1,1,1,1]
[null,null,5336,null,1,1,1,1,1,1,null,null,null,null,null,null,null,null,1,null,null,null,1]
[null,null,5338,1,1,1,1,null,null,1,1,1,null,null,null,null,1,null,null,null,null,null,null,1]
[null,null,5346,1,null,null,null,null,1,null,null,null,1,null,1,1,null,null,null,1,null,null,1,1,1,1]
[null,null,5347,1,1,1,1,1,1,1,null,null,1,1,1,null,null,1,null,null,null,null,1]
[null,null,5355,null,null,1,null,null,null,null,null,1,1,null,null,null,null,1,1,1,null,1]
[null,null,5356,1,1,null,null,null,1,null,1,null,null,1,null,null,null,null,null,null,null,null,null,null,1,1]
[null,null,5362,null,null,null,null,null,1,null,1,1,null,1,null,null,null,null,null,null,null,null,1,null,1,1]
[null,null,5366,1,1,null,1,null,1,null,null,null,null,null,null,null,null,null,null,null,null,null,null,null,null,1]
[null,null,5373,null,null,null,null,null,null,null,1,null,1,null,null,null,null,1,null,null,null,null,null,1,1]
[null,null,5376,null,null,null,null,null,null,null,null,null,null,null,null,null,null,1,null,1,1,1,1]
[null,null,5380,null,null,null,null,null,null,null,null,null,null,null,null,null,null,null,1,1,1]
[null,null,5386,null,null,null,null,null,1,1,null,1,null,1,null,null,null,1]
[null,null,5391,null,null,null,null,null,null,null,1,null,1,1,null,1,null,null,null,null,null,null,1,null,1,1]
[null,null,5393,null,1,null,null,1,null,null,1,1,null,null,null,null,1,null,null,null,null,null,1]
[null,null,5401,1,null,null,null,null,null,null,null,null,null,null,null,null,null,null,1,1,null,1,1,1]
[null,null,5404,1,1,1,1,1,1,1,null,null,null,null,1,null,null,null,null,null,null,1]
[null,null,5410,1,1,1,1,null,1,1,null,1,null,null,null,1,null,null,null,null,null,null,null,1]
[null,null,5411,null,1,1,1,null,null,1,null,1,null,null,null,null,null,1,1]
[null,null,5415,1,null,1,1,null,1,1,null,1]
[null,null,5421,null,1,null,null,null,null,1,1,null,null,1,null,null,1,null,null,null,null,null,1,1]
[null,null,5428,1,null,null,null,null,null,null,1,null,null,null,null,null,null,1,1,null,null,1]
[null,null,5430,1,1,null,null,null,1,null,1,null,null,null,null,null,null,1,1,null,null,1]
[null,null,5435,1,1,1,1,null,null,1,null,1,1,1,null,null,1,null,1,null,null,null,1,null,null,1]
[null,null,5440,null,null,null,null,null,null,null,1,null,1,1,null,null,1,null,1,null,null,null,1,null,1,1]
[null,null,5446,null,null,null,null,null,null,null,1,null,1,null,1,null,null,null,null,null,null,null,null,1,null,1]
[null,null,5450,1,1,1,null,null,null,1,null,null,null,null,null,null,null,1,1,null,null,null,1]
[null,null,5455,1,1,1,1,1,1,1,null,1,null,null,null,null,null,1,null,null,null,1]
[null,null,5459,null,null,null,null,null,null,null,1,null,null,1,null,1,1,null,null,null,null,1,1,null,1]
[null,null,5465,null,null,null,null,null,null,null,null,1,null,null,1,1,1,null,null,1,1,null,1,1]
[null,null,5466,null,null,null,null,null,null,null,1,null,null,null,null,null,1,null,null,null,null,null,1]
[null,null,5470,null,null,null,null,null,null,null,null,null,null,null,1,null,1]
[null,null,5477,null,null,null,null,null,1,null,null,1,1,null,null,null,null,null,null,null,null,null,null,null,1]
[null,null,5480,null,1,null,null,null,null,null,1,null,1,null,1,1,null,null,1,null,null,null,null,null,1,1]
[null,null,5484,1,null,1,1,null,null,1,1,1,null,null,null,null,null,null,null,null,null,null,null,null,null,1]
[null,null,5489,null,null,null,null,null,null,null,null,null,null,null,null,null,null,1,1,null,1,1,1]
[null,null,5495,null,1,null,1,1,null,null,null,1,null,null,null,null,null,null,1,null,null,null,null,1]
[null,null,5501,null,null,1,1,null,null,null,1,1,1,null,null,null,null,null,null,null,null,null,1,null,1,1]
[null,null,5505,null,null,null,null,null,null,null,1,null,1,1,1,1,null,null,null,null,null,null,null,null,1]
[null,null,5508,null,null,null,null,null,null,null,null,null,null,null,null,null,null,null,1,1,1,1,1,1]
[null,null,5514,null,null,null,null,null,null,null,1,1,1,null,null,null,null,null,null,null,null,null,1,null,1,1]
[null,null,5519,null,null,null,null,null,1,null,null,null,null,null,null,1,null,null,null,null,null,1,null,1]
[null,null,5524,null,null,1,null,null,null,null,null,1,1,null,null,1,1,null,1,null,null,1,1,null,1]
[null,null,5529,null,null,null,null,1,null,null,null,null,null,null,null,null,null,null,null,1,1,1]
[null,null,5532,1,1,null,null,null,null,1,null,null,null,null,null,null,null,1,1,null,null,1]
[null,null,5534,null,null,null,null,null,null,null,1,null,1,null,1,null,1,null,null,null,1,null,1,null,1]
[null,null,5539,1,1,null,1,null,1,1,1,1]
[null,null,5544,1,null,1,null,1,null,null,1,null,null,1,null,null,1,1]
[null,null,5550,null,null,null,null,null,null,null,1,null,1,null,1,1,null,1,1,null,1,null,null,null,1,1]
[null,null,5554,1,1,1,1,1,null,1,null,1]
[null,null,5559,null,null,null,null,null,null,null,null,null,null,null,null,null,null,null,null,null,1,1,1]
[null,null,5562,null,1,null,null,null,null,null,1,1,1,1,1,1,1,null,null,null,null,null,1,null,1]
[null,null,5563,null,null,null,1,null,null,null,1,null,null,1,1,null,null,1,null,null,null,null,1,null,null,1]
[null,null,5564,null,null,null,null,null,null,null,null,null,null,null,null,null,null,null,1,1,1,1,1,1]
[null,null,5565,null,null,null,null,null,null,null,1,null,1,1,1,null,null,null,null,null,null,null,null,null,1,1]
[null,null,5566,null,null,null,null,null,null,null,1,null,null,null,null,1,1,null,null,null,null,null,1,1,1,1]
[null,null,5567,1,1,1,1,1,1,1,null,1,1,null,null,null,null,null,null,1,1,null,null,1]
[null,null,5568,null,null,null,null,null,null,null,null,null,1,1,1,null,null,null,null,null,null,null,1,null,1,1]
[null,null,5569,1,null,null,null,null,1,null,null,1,1,null,1,1,1,null,null,null,null,null,1,1,null,1]
[null,null,5570,null,1,null,null,null,null,null,null,1,null,null,null,null,null,null,null,null,null,null,1,1,1]
[null,null,5571,null,null,null,null,null,null,null,1,null,1,1,1,null,null,null,null,null,null,null,null,null,null,1]
[null,null,5572,null,null,null,null,1,null,null,null,null,null,1,1]
[null,null,5573,1,null,1,1,null,1,null,1,null,1,1,null,null,null,1]
[null,null,5574,null,null,null,1,null,null,null,null,null,null,null,null,null,null,null,null,null,1,1]
[null,null,5575,null,null,1,1,null,null,null,1,null,null,null,null,1,1,null,null,null,null,1,1,1,1]
[null,null,5576,null,null,null,null,null,null,null,1,null,null,null,1,null,1,null,null,null,null,null,null,1,1]
[null,null,5577,null,1,null,null,null,1,1,null,1,1,1,1]
[null,null,5578,null,null,null,null,null,null,null,1,null,null,null,1,null,null,null,null,null,null,null,1,null,null,1]
[null,null,5579,1,null,null,1,null,null,null,null,null,1,1,null,null,null,null,null,null,null,null,1,null,null,1]
[null,null,5580,null,null,null,1,1,1,1,null,1,null,1,null,1,null,null,null,null,null,null,null,1]
[null,null,5581,1,1,null,1,null,null,null,null,null,null,null,null,null,null,1,null,1,1,1,null,1,null,1]
[null,null,5582,1,1,null,1,null,1,1,1,null,null,1,null,null,null,null,1,null,null,null,1,null,1]
[null,null,5583,null,null,null,null,null,null,null,1,null,1,null,1,null,1,null,null,null,null,null,1,null,1,1]
[null,null,5584,null,1,null,1,1,null,null,null,null,null,null,null,1,null,null,null,null,null,null,1,null,1,1]
[null,null,5585,null,1,null,null,null,null,null,null,null,null,null,null,1,1,null,1,null,null,null,1,1]
[null,null,5586,null,null,null,null,1,null,null,null,null,1,null,null,1,null,null,1,1,1,1,1,1,1]
[null,null,5587,1,1,1,1,1,1,null,1,1,1,null,1,null,null,null,null,null,null,1,1]
[null,null,5588,null,null,null,null,null,null,null,null,null,null,null,null,1,null,null,null,null,null,null,1]
[null,null,5589,null,null,1,null,null,1,null,1,1,null,null,1,1,1,null,1,null,null,null,1,null,null,1]
[null,null,5590,1,1,null,1,1,null,1,null,null,null,null,null,null,1,null,null,null,null,null,1]
[null,null,5591,null,null,null,null,null,null,null,null,1,null,null,null,null,null,null,null,null,1,null,1,null,null,1]
[null,null,5592,1,1,null,1,1,1,1,null,1,null,null,null,null,null,null,1,null,null,null,null,null,null,1]
[null,null,5593,null,1,null,null,null,1,null,null,null,null,null,1,null,null,1,1,null,null,1,null,1,1]
[null,null,5594,null,null,null,null,null,null,1,1,null,1,1,1,1,1]
[null,null,5595,null,null,null,null,null,null,null,null,null,1,null,1,1,1,null,null,1,null,null,1,1,null,1]
[null,null,5596,null,null,null,null,1,1,null,1,null,null,1,null,null,1,null,null,1,null,null,1,1,1]
[null,null,5597,1,null,null,null,null,null,null,1,null,1,null,null,null,null,1,null,null,1,null,1,null,1,1]
[null,null,5598,1,null,null,null,null,null,1,1,null,null,null,null,null,null,null,1,null,null,null,1,1]
[null,null,5599,null,null,null,1,null,1,null,null,null,null,null,null,null,null,1]
[null,null,5600,null,null,null,null,null,null,null,null,null,null,null,null,null,null,1,null,null,1,1,1,1]
[null,null,5601,null,1,1,null,null,null,null,1,1,1,1,null,null,1,null,1,null,null,null,null,null,1]
[null,null,5602,1,1,1,1,1,null,1,null,1,1,null,1,null,null,null,null,null,null,null,null,1]
[null,null,5603,null,null,null,1,null,null,null,1,null,1,null,null,null,1,null,1,null,1,null,null,null,null,1]
[null,null,5604,null,null,null,null,null,null,null,1,null,null,null,null,null,null,1,1,1,1,1,1]
[null,null,5605,1,null,null,null,null,null,null,null,null,null,null,null,1,null,1,null,null,1,null,null,1]
[null,null,5606,1,1,1,1,1,null,1]
[null,null,5607,1,null,1,null,1,1,null,null,1,1,null,null,null,null,1,null,null,null,null,1]
[null,null,5608,1,1,1,1,1,null,1,null,1,1,1]
[null,null,5609,null,null,null,null,null,null,null,null,null,1,1,null,null,null,null,null,null,null,null,null,null,1,1]
[null,null,5610,null,null,null,1,null,null,null,null,null,null,1,1,null,1,null,null,null,null,1,1,null,null,1]
[null,null,5611,1,null,null,null,null,null,null,null,null,null,null,null,null,null,null,null,null,1,1,1]
[null,null,5612,null,null,null,null,null,null,null,null,null,1,1,1,null,null,null,null,null,null,null,1,null,1,1]
[null,null,5613,null,null,null,null,null,null,null,null,1,null,null,null,null,null,1,1,null,1,1,null,1]
[null,null,5614,1,1,1,1,1,1,1,null,1,null,1]
[null,null,5615,1,null,1,1,1,1,1,1,1]
[null,null,5616,null,1,1,1,1,null,1,1,1,null,null,null,null,null,null,null,null,null,null,1,null,null,1]
[null,null,5617,null,null,null,1,null,null,null,1,1,null,null,1,null,1,null,null,null,null,null,null,null,null,1]
[null,null,5618,null,null,null,null,null,null,null,null,null,null,null,null,null,null,1,null,1]
[null,null,5619,1,1,1,null,1,1,null,null,1]
[null,null,5620,null,1,null,null,1,1,null,1,1,null,null,null,null,null,null,null,null,null,1]
[null,null,5621,1,null,1,1,null,1,null,null,1,null,null,1,1,null,null,null,null,null,null,null,null,null,1]
[null,null,5622,1,1,1,null,null,1,1,null,1,null,null,null,null,null,null,null,null,null,null,1]
[null,null,5623,1,null,null,null,null,null,null,1,null,null,null,null,1,1,1,null,null,1,null,null,1]
[null,null,5624,1,1,1,null,1,null,null,1,1,1,null,null,null,null,1]
[null,null,5625,1,null,null,1,null,null,null,null,1,null,1,null,null,null,1,null,1,1,null,1,1,1]
[null,null,5626,1,1,1,null,1,1,1,null,1,null,1]
[null,null,5627,1,null,1,1,null,null,1,null,1,null,null,null,null,null,null,null,null,null,1,1]
[null,null,5628,null,1,1,1,null,1,null,null,null,null,null,1,null,null,null,null,null,null,null,1]
[null,null,5629,null,null,null,null,null,null,null,null,null,1,null,null,null,1,null,null,null,null,null,1,null,1,1]
[null,null,5630,1,1,1,null,1,null,1,null,1,null,1,1]
[null,null,5631,null,null,1,null,null,null,1,1,null,null,null,1,1,null,null,null,null,1,null,1,1]
[null,null,5632,1,null,null,1,null,null,null,1,null,null,null,1,null,null,null,null,null,null,null,null,1,1]
[null,null,5633,null,null,1,null,null,null,null,1,1,1,1,null,1,1,null,null,null,null,null,1,1,null,1]
[null,null,5634,1,1,1,1,null,null,1,null,1]
[null,null,5635,null,null,null,null,null,null,null,1,null,1,null,null,1,null,null,null,null,null,null,1]
[null,null,5636,null,1,1,1,1,null,1,null,1,null,null,null,null,null,null,null,null,null,null,null,1]
[null,null,5637,1,1,null,1,null,null,1,null,null,null,null,null,null,null,null,null,null,null,null,1,1]
[null,null,5638,1,1,1,1,1,null,1,null,null,null,null,null,null,null,1,null,null,null,null,1]
[null,null,5639,null,null,null,null,null,null,null,1,null,1,1,1,null,1,null,null,null,null,null,null,null,1]
[null,null,5640,null,1,null,1,1,1,null,null,1,null,null,null,null,null,null,1]
[null,null,5641,null,null,1,null,null,null,null,1,null,null,null,1,null,1,null,null,null,null,null,null,null,1,1]
[null,null,5642,1,1,1,1,1,1,null,null,1,null,1]
[null,null,5643,1,null,null,null,null,null,null,1,1,null,null,1,1,null,null,1,null,null,1,null,1,1]
[null,null,5644,null,1,1,null,null,null,null,1,null,null,1,1,null,null,null,null,null,null,null,1,null,1]
[null,null,5645,null,null,null,null,null,null,null,1,1,null,null,null,null,1,null,null,null,null,null,1]
[null,null,5646,null,1,null,1,null,null,null,1,null,null,1,1,null,null,null,null,null,null,null,null,null,1]
[null,null,5647,null,null,null,null,null,null,null,null,1,1,1,null,1,null,null,null,1,null,null,null,1]
[null,null,5648,1,1,1,1,1,null,null,null,null,null,null,null,null,null,null,null,null,null,null,1]
[null,null,5649,1,null,null,null,1,null,null,1,null,1,null,null,null,null,null,null,null,null,null,null,null,1,1]
[null,null,5650,null,null,1,null,null,null,null,1,1,1,1,null,1,1,null,null,null,null,null,null,null,1]
[null,null,5651,1,1,null,1,1,1,1,null,1,null,null,null,null,null,1]
[null,null,5652,1,1,null,1,1,null,null,null,1,1,null,1,null,null,null,null,1,null,null,null,1]
[null,null,5653,null,null,null,1,null,null,1,1,1,null,1,null,null,null,null,null,null,null,null,null,null,1,1]
[null,null,5654,1,1,1,1,1,null,1,null,1,null,null,null,null,null,null,null,null,null,null,null,1]
[null,null,5655,null,1,1,1,1,1,1,null,1,null,null,1,null,null,1]
[null,null,5656,1,null,1,null,1,null,1,null,1,null,1,null,null,null,null,1]
[null,null,5657,1,1,1,1,1,null,1,1,1,null,null,1,null,null,1,1,null,null,null,1,1]
[null,null,5658,1,null,1,1,null,1,1,1,1,null,null,1,null,null,null,null,null,null,null,null,1]
[null,null,5659,null,null,null,null,null,null,1,1,null,null,null,null,1,1,null,null,null,null,null,null,null,null,1]
[null,null,5660,1,1,1,1,1,null,1,null,null,1,null,null,null,null,null,1,null,1,null,1]
[null,null,5661,1,1,1,1,1,null,1,null,1,null,null,null,null,1,1,null,null,null,null,null,1]
[null,null,5662,null,null,null,null,null,null,null,null,null,null,null,null,null,null,null,1,1,1,1,null,1]
[null,null,5663,1,1,1,1,1,1,null,null,1]
[null,null,5664,null,null,null,null,null,null,null,1,null,1,1,1,1,null,null,null,null,null,null,1,null,1,1]
[null,null,5665,null,null,1,null,null,null,null,null,null,null,null,null,null,null,null,1,1,null,1,1]
[null,null,5666,1,1,1,1,null,null,1,null,1,null,1,1,null,null,null,null,1]
[null,null,5667,1,1,1,null,null,1,1,null,1,null,1,null,null,null,null,null,null,null,null,1]
[null,null,5668,1,1,1,null,null,null,1,null,null,null,null,null,null,1,null,null,null,null,null,1]
[null,null,5669,1,null,1,null,null,null,null,1,1,1,null,null,null,null,null,null,null,null,null,null,null,null,1]
[null,null,5670,null,1,1,1,1,1,1,null,1,1]
[null,null,5671,null,null,1,1,1,1,1,null,1]
[null,null,5672,null,1,1,null,null,1,null,1,null,1,1,null,null,null,null,null,null,null,null,null,null,1,1]
[null,null,5673,null,1,1,1,1,1,1,null,null,null,null,null,null,null,null,1]
[null,null,5674,null,null,null,null,null,null,null,1,null,null,null,null,null,null,null,1,1,null,1]
[null,null,5675,null,null,null,null,1,null,null,null,null,null,null,null,null,null,null,1,null,1,1]
[null,null,5676,1,1,1,null,1,null,1,null,1,null,null,null,null,null,1,null,null,null,null,1]
[null,null,5677,null,1,1,null,1,1,1,null,1,null,null,null,null,null,null,null,null,null,1,1]
[null,null,5678,null,1,1,1,1,1,1,null,1,1]
[null,null,5679,null,null,1,null,null,null,null,null,null,null,null,null,null,null,1,null,1,1]
[null,null,5680,null,null,null,null,1,1,null,1,null,null,null,1,null,null,null,1,null,null,null,1,null,1]
[null,null,5681,null,null,null,1,null,null,null,null,1,null,null,1,1,1,1,null,null,null,null,1,null,1]
[null,null,5682,null,null,null,null,null,null,null,null,null,null,null,null,null,null,1,null,1,null,1,null,1]
[null,null,5683,null,null,null,null,null,1,null,null,null,1,1,1,null,null,null,null,null,null,null,null,null,null,1]
[null,null,5684,null,null,null,null,null,null,null,null,1,1,1,null,1,null,null,null,null,null,1,1,null,1,1]
[null,null,5685,null,null,null,null,null,null,null,1,1,null,null,null,1,null,null,null,null,null,null,null,null,1]
[null,null,5686,null,null,1,1,null,null,null,null,1,1]
[null,null,5687,null,null,null,null,null,null,null,1,null,1,1,1,null,null,null,null,null,null,null,null,null,1,1]
[null,null,5688,null,null,null,null,null,null,1,null,null,null,null,null,null,null,1,1,1,null,1,1,1]
[null,null,5689,null,null,null,null,null,null,null,null,null,null,null,null,null,null,null,null,null,1,null,1,1]
[null,null,5690,null,1,1,null,null,null,null,1,1,1,1,1,1,1,null,null,null,null,null,1,1,null,1]
[null,null,5691,1,1,1,1,1,1,1,null,1,1,null,null,null,null,null,1,null,null,null,1]
[null,null,5692,null,null,null,null,null,null,null,null,null,null,null,null,null,null,1,null,1,1,1,null,1,null,1]
[null,null,5693,1,1,1,null,null,1,1,null,1,null,null,null,null,1,null,null,null,null,1]
[null,null,5694,null,1,null,1,1,1,1,null,1,null,null,null,null,null,null,1,null,null,null,1]
[null,null,5695,1,null,1,1,1,null,null,null,1,null,null,null,null,null,null,1]
[null,null,5696,null,null,1,null,null,null,1,null,null,1,1,null,null,null,1,null,1,null,null,null,null,1,1]
[null,null,5697,null,1,null,1,1,1,null,null,1,null,null,1,null,null,null,1,null,null,null,1,1]
[null,null,5698,1,1,1,1,1,1,1,null,1,null,null,1,null,null,null,1,null,null,null,1]
[null,null,5699,null,null,null,null,null,null,null,1,1,null,null,null,1,null,null,null,null,null,null,1]
[null,null,5700,null,1,null,1,null,null,null,null,null,null,1,null,null,null,1,1,null,null,1]
[null,null,5701,1,null,null,null,null,null,null,1,1,1,1,1,1,1,null,null,null,null,null,null,null,1]
[null,null,5702,null,null,null,null,null,null,null,1,null,null,null,null,null,1,null,null,null,null,null,null,null,1]
[null,null,5703,null,null,null,1,null,null,null,1,null,null,null,null,null,null,1,1,1,1,null,null,1]
[null,null,5704,1,null,null,null,null,null,null,1,null,null,null,1,1,null,null,null,null,null,null,1]
[null,null,5705,null,null,null,null,1,1,null,1,null,1,null,null,null,null,null,null,null,null,null,1,null,1,1]
[null,null,5706,null,null,null,null,null,null,null,null,1,null,null,null,null,1,null,null,null,null,null,1]
[null,null,5707,null,null,null,null,null,null,null,1,1,1,1,1,1,1,null,1,null,null,null,null,null,1]
[null,null,5708,null,1,1,1,null,null,null,1,null,null,null,null,1]
[null,null,5709,null,1,null,null,1,null,1,null,1,null,null,1,1]
[null,null,5710,null,1,null,1,null,null,null,null,null,1,null,null,null,null,1,null,1,null,1,null,1,1]
[null,null,5711,null,null,null,null,1,null,null,null,null,1,1,null,null,null,1,null,null,null,1,1,null,1,1]
[null,null,5712,null,null,null,null,null,1,1,1,1]
[null,null,5713,null,null,null,null,null,null,null,null,null,1,null,1,null,1,null,null,null,null,null,null,null,1,1]
[null,null,5714,1,1,1,1,null,1,1,1,1,null,null,null,null,null,1]
[null,null,5715,1,1,1,1,null,1,1,null,1,null,null,null,null,null,null,1]
[null,null,5716,null,null,1,null,null,null,1,1,1,null,null,1,1,null,1,1,1,null,1,1,null,1]
[null,null,5717,1,1,null,1,1,1,1,1,1,null,null,null,null,null,1,null,null,null,null,1]
[null,null,5718,null,null,null,null,null,null,null,null,null,1,null,null,null,null,1,null,1,null,null,1,1]
[null,null,5719,null,null,1,null,null,null,null,1,null,1,1,null,1,1,null,null,null,null,null,null,1,null,1]
[null,null,5720,null,null,null,null,null,null,null,null,null,null,null,null,null,null,null,null,null,1,1]
[null,null,5721,1,null,null,null,null,null,null,null,null,null,null,null,1,null,null,null,null,null,null,null,null,null,1]
[null,null,5722,1,null,1,1,null,1,1,null,1,null,null,null,null,null,1,1]
[null,null,5723,1,1,1,1,1,1,1,null,1]
[null,null,5724,1,1,1,1,1,null,1,null,1,null,null,null,null,1,null,1]
[null,null,5725,null,null,null,null,null,null,null,1,null,1,1,1,1,null,null,null,null,null,null,null,null,1,1]
[null,null,5726,1,null,1,1,1,1,null,null,1,1]
[null,null,5727,null,null,null,null,null,1,null,1,1,null,null,null,1,null,null,null,null,null,null,1]
[null,null,5728,null,1,1,null,1,null,1,null,1,null,null,null,1]
[null,null,5729,null,null,1,null,null,1,null,null,null,null,1,1,null,null,null,null,null,1,null,null,1,1]
[null,null,5730,null,null,null,null,null,null,null,1,null,1,null,null,null,1,null,null,null,null,null,1,null,null,1]
[null,null,5731,null,1,1,null,null,null,1,null,1,null,null,null,null,null,null,null,null,null,null,1]
[null,null,5732,null,1,1,null,null,null,null,1,null,null,null,null,null,null,1,1,1,null,1,null,1]
[null,null,5733,1,null,1,null,1,1,1,null,null,1,1,null,null,1]
[null,null,5734,null,null,null,null,null,null,null,1,null,null,1,null,null,null,null,null,null,null,null,null,null,1,1]
[null,null,5735,null,null,null,null,null,null,null,null,null,null,null,null,null,null,1,1,1,1,1]
[null,null,5736,1,1,null,null,null,1,1,1,1,1]
[null,null,5737,1,null,null,null,1,1,null,1,1,null,null,null,1,null,null,null,null,null,1]
[null,null,5738,1,1,null,1,1,null,1,null,null,null,null,1,null,null,null,1,null,1,1]
[null,null,5739,1,1,1,null,1,1,1,1,1,null,null,null,null,1]
[null,null,5740,null,null,null,null,1,null,null,1,null,null,null,1,null,1,null,null,null,null,null,null,1]
[null,null,5741,null,null,null,null,null,null,null,null,null,1,1,null,null,null,null,null,1,null,null,1,null,1,1]
[null,null,5742,1,1,1,null,1,1,1,null,null,1,null,null,null,null,null,1]
[null,null,5743,null,null,null,null,null,null,1,null,1,null,1,null,null,null,1,1,null,null,1,1,null,null,1]
[null,null,5744,null,null,null,null,null,null,null,null,null,null,null,null,null,null,null,null,null,null,null,1,null,1,1]
[null,null,5745,null,1,null,null,null,1,null,1,null,1,1,1,1,1,null,1,null,null,null,null,1,null,1]
[null,null,5746,null,1,1,1,null,1,1,null,1,null,null,null,null,null,1,1,null,null,null,null,1]
[null,null,5747,1,null,null,null,null,null,null,1,null,null,null,null,1,1,null,null,null,null,null,1,1,null,1]
[null,null,5748,null,null,null,1,null,1,1,null,1,1,null,null,null,null,null,null,1]
[null,null,5749,1,null,null,null,null,1,null,1,null,null,null,null,1,null,null,null,null,null,null,1,null,1]
[null,null,5750,null,null,1,null,null,null,null,null,1,null,1,1,null,1,null,null,null,null,null,1]
[null,null,5751,null,null,null,null,null,null,null,1,null,1,1,1,null,null,null,null,null,null,null,1,null,1,1]
[null,null,5752,1,1,1,null,null,null,null,1,1,null,1,null,null,null,null,null,null,null,null,1,1]
[null,null,5753,null,null,null,null,null,1,null,1,null,null,null,1,null,null,null,1,null,null,null,1]
[null,null,5754,null,null,null,null,null,null,1,1,null,null,null,null,null,null,1,1]
[null,null,5755,null,1,1,1,null,null,1,null,1,null,null,null,null,null,1,null,null,null,null,null,1]
[null,null,5756,1,null,null,null,null,null,null,1,null,1,null,null,null,null,1,null,1,null,1]
[null,null,5757,1,null,1,1,null,null,1,null,1,1,null,null,1,1,null,null,null,null,null,null,1]
[null,null,5758,null,null,null,null,null,null,null,null,null,null,null,null,null,null,1,null,null,1,1,null,1]
[null,null,5759,null,null,null,null,null,null,null,1,1,1,null,1,1,1,1,null,null,null,null,1]
[null,null,5760,1,null,1,1,1,1,null,null,1,1,null,null,null,null,null,1,null,null,null,1]
[null,null,5761,null,1,null,null,null,1,1,1,1,1,null,1,1,1,null,1,null,null,null,1,null,1,1]
[null,null,5762,null,null,null,null,null,null,null,1,null,1,null,null,null,null,null,null,null,null,null,1,null,1]
[null,null,5763,null,null,null,null,null,null,null,null,null,null,null,null,null,null,null,null,1,null,null,null,1,1]
[null,null,5764,1,1,1,null,1,1,null,1,1,null,null,null,null,null,null,1]
[null,null,5765,null,1,null,null,null,null,null,1,null,1,1,null,1,1,null,null,null,1,null,1,null,1]
[null,null,5766,null,null,null,null,null,1,null,1,1,null,null,1,1,1,null,null,null,null,null,null,1,1]
[null,null,5767,null,null,null,null,null,null,null,null,null,null,1,1,1,1,null,null,null,null,null,1,null,1,1]
[null,null,5768,1,1,1,null,1,1,1,null,1,null,null,1,null,null,null,null,null,null,null,1]
[null,null,5769,null,null,null,1,null,null,null,1,null,1,1,1,null,1,null,null,null,null,null,null,null,null,1]
[null,null,5770,1,1,1,null,null,null,1,null,null,null,null,null,null,1,1,1,1,null,1,null,1]
[null,null,5771,null,null,null,null,null,null,null,null,null,null,null,null,null,null,null,null,1,1,1]
[null,null,5772,null,null,null,null,null,null,null,null,null,1,1,null,null,null,null,null,null,1,null,null,null,1,1]
[null,null,5773,null,null,null,1,null,1,null,null,null,null,null,null,null,null,null,1,1,1,1]
[null,null,5774,null,null,null,null,null,null,null,null,1,null,null,null,null,null,1,1,null,1,null,null,1]
[null,null,5775,1,1,1,1,1,1,null,null,1,1,null,null,null,null,null,1,null,null,1]
[null,null,5776,null,null,null,null,null,null,null,null,null,null,1,null,null,null,null,null,null,null,1,1,1]
[null,null,5777,null,null,1,null,null,1,null,1,null,null,null,1,null,null,1,null,null,null,null,1,null,1]
[null,null,5778,null,null,null,null,null,null,null,null,1,null,null,null,null,null,null,null,1,1,1,null,1]
[null,null,5779,null,null,null,null,null,1,null,null,1,null,null,null,null,1]
[null,null,5780,1,1,1,1,null,null,1,null,1,null,null,null,null,null,null,1]
[null,null,5781,null,null,null,null,null,null,null,1,null,1,1,1,null,null,null,null,1,null,null,1,1,1,1]
[null,null,5782,null,null,null,null,null,null,null,1,1,1,1,1,1,1,null,null,null,null,null,null,null,1,1]
[null,null,5783,1,null,null,1,null,1,1,1,1]
[null,null,5784,null,null,null,null,null,null,null,1,null,1,1,1,1,1,null,null,null,null,null,null,null,1,1]
[null,null,5785,null,null,null,null,null,null,1,null,null,null,null,null,null,null,null,null,null,1,1,1,1,1]
[null,null,5786,null,1,null,null,null,1,null,1,null,null,null,1,1,null,null,null,null,null,null,null,1]
[null,null,5787,null,null,null,null,null,null,null,1,null,null,null,null,null,null,1,null,1,1,1,null,1]
[null,null,5788,null,1,null,null,null,null,null,1,null,null,null,null,null,null,null,1,null,1,1,null,1,null,1]
[null,null,5789,null,1,null,1,null,1,null,null,null,null,null,null,null,null,1,null,1,null,1,null,null,1]
[null,null,5790,1,null,1,1,null,1,null,null,null,null,1,null,null,null,1,null,null,null,null,1,1]
[null,null,5791,null,1,1,1,null,1,1,null,null,null,null,null,null,null,null,1,null,null,null,1,null,null,1]
[null,null,5792,null,1,null,null,null,null,null,1,null,1,1,null,null,null,null,null,null,null,null,null,null,null,1]
[null,null,5793,1,null,1,1,1,1,null,null,1,null,null,null,null,null,null,null,null,null,null,1]
[null,null,5794,null,null,null,null,null,null,null,null,null,null,null,1,null,null,1,1]
[null,null,5795,1,1,1,null,1,null,1,null,1,null,null,null,null,null,1,1]
[null,null,5796,null,null,null,null,null,null,null,null,null,null,null,null,1,null,null,null,1,1,null,null,1,null,1]
[null,null,5797,1,1,null,null,1,null,null,null,null,null,1,null,null,null,null,null,null,null,null,null,1]
[null,null,5798,1,1,1,null,null,null,null,null,1]
[null,null,5799,null,1,null,null,null,null,null,1,null,1,1,1,null,null,null,null,1,null,null,null,1,1]
[null,null,5800,1,null,null,1,1,1,null,null,null,null,null,null,null,null,1,1,1,1,1]
[null,null,5801,1,1,1,null,1,null,null,null,null,null,null,null,1,null,null,null,null,null,null,null,1]
[null,null,5802,1,null,1,1,1,1,1,null,1,1,null,null,null,null,null,1]
[null,null,5803,null,null,1,1,null,1,null,1,null,1]
[null,null,5804,1,1,1,1,null,null,null,null,1,null,null,null,null,null,1,1,null,null,null,1]
[null,null,5805,1,1,1,1,1,null,1,1,1,1,null,null,null,1]
[null,null,5806,null,null,null,null,null,1,null,null,null,null,null,null,null,null,1,null,1]
[null,null,5807,null,null,1,null,null,null,null,1,null,1,1,1,1,null,null,null,null,null,1,null,null,1]
[null,null,5808,1,null,null,1,1,null,null,1,null,null,null,1,null,null,null,1,1,null,1]
[null,null,5809,null,null,null,null,null,null,1,null,null,null,null,null,null,null,null,null,1,1,null,1,1,null,1]
[null,null,5810,null,null,null,1,null,null,null,1,null,1,1,null,1,1,null,null,null,null,null,null,null,1,1]
[null,null,null,{"$f":"SUM(D5:D5814)","v":2043},2019,2016,1929,1835,1784,1971,2281,2287,1592,1619,1493,1177,1153,1477,1683,1071,1145,1266,2065,1630,1656,{"$f":"SUM(Z5:Z5814)","v":1463}]

{"sheet":"Товары","index":1,"n_rows":27,"n_cols":3,"rows_kept":27,"cut":false,"hidden":false,"merged":[]}
[]
[null,null,23]
[]
[null,null,"Товар"]
[null,1,"Молоко"]
[null,2,"Сметана"]
[null,3,"Творог"]
[null,4,"Кефир"]
[null,5,"Сыр"]
[null,6,"Йогурт"]
[null,7,"Ряженка"]
[null,8,"Хлеб черный"]
[null,9,"Хлеб белый"]
[null,10,"Мясо"]
[null,11,"Колбаса"]
[null,12,"Рыба"]
[null,13,"Курица"]
[null,14,"Индейка"]
[null,15,"Конфеты"]
[null,16,"Печенье"]
[null,17,"Шоколад"]
[null,18,"Мармелад"]
[null,19,"Зефир"]
[null,20,"Овощи"]
[null,21,"Фрукты"]
[null,22,"Алкоголь"]
[null,23,"Табак"]